﻿Directorate,Service,Division,Responsible Unit,Expense Type,Payment Date,Trans No,Net Amount,Supplier Name
Childrens Services,Education Services,Early Years,Mowlem CC,Hire of Other Vehicles - Contract Hire/Operating Leases,01/12/2017,3950029,380.00,Crown Promotions and Removals Ltd
Childrens Services,Children's Social Care,Services for young people,Youth Service Management,Stationery,01/12/2017,3953801,310.36,Office Depot (Catalogue)
Childrens Services,Education Services,Early Years,Mowlem CC,Stationery,01/12/2017,3962945,256.04,Office Depot (Catalogue)
Childrens Services,Education Services,Other Strategic Functions,Special Education Needs DSG,Third Party Payments - Payments to Schools,01/12/2017,3964595,"16,454.88",Woodcroft School Ltd
Childrens Services,Education Services,Other Strategic Functions,Special Education Needs DSG,Third Party Payments - Payments to Schools,01/12/2017,3964596,"16,454.88",Woodcroft School Ltd
Childrens Services,Education Services,Other Strategic Functions,Special Education Needs DSG,Third Party Payments - Payments to Schools,01/12/2017,3964597,"16,454.88",Woodcroft School Ltd
Childrens Services,Children's Social Care,Children Looked After,S23 Fam Pl P&V-F/Care,Childrens Act Section 23 - Placement Fee,01/12/2017,3964601,"3,805.99",COMPASS FOSTERING LONDON LIMITED
Childrens Services,Children's Social Care,Children Looked After,S23 Family Placements P&V,Childrens Act Section 23 - Placement Fee,01/12/2017,3964602,"4,977.60",COMPASS FOSTERING LONDON LIMITED
Childrens Services,Children's Social Care,Children Looked After,S23 Fam Pl P&V-F/Care,Childrens Act Section 23 - Placement Fee,01/12/2017,3964603,"3,167.10",COMPASS FOSTERING LONDON LIMITED
Childrens Services,Children's Social Care,Children Looked After,S23 Fam Pl P&V-F/Care,Childrens Act Section 23 - Placement Fee,01/12/2017,3964604,"3,167.10",COMPASS FOSTERING LONDON LIMITED
Childrens Services,Education Services,Other Strategic Functions,Schools Library,Comms - Courier,01/12/2017,3964637,"1,431.00",Figurehead Studios
Childrens Services,Education Services,Other Strategic Functions,Special Education Needs DSG,Third Party Payments - Payments to Schools,01/12/2017,3964764,"16,454.88",Woodcroft School Ltd
Childrens Services,Education Services,Other Strategic Functions,Special Education Needs DSG,Third Party Payments - Payments to Schools,01/12/2017,3964780,"16,454.88",Woodcroft School Ltd
Childrens Services,Education Services,Other Strategic Functions,Special Education Needs DSG,Third Party Payments - Payments to Schools,01/12/2017,3964789,"16,454.88",Woodcroft School Ltd
Childrens Services,Education Services,Other Strategic Functions,Special Education Needs DSG,Third Party Payments - Payments to Schools,01/12/2017,3964795,"16,454.88",Woodcroft School Ltd
Childrens Services,Education Services,Other Strategic Functions,Special Education Needs DSG,Third Party Payments - Payments to Schools,01/12/2017,3964799,"16,454.88",Woodcroft School Ltd
Childrens Services,Education Services,Other Strategic Functions,Special Education Needs DSG,Third Party Payments - Payments to Schools,01/12/2017,3964805,"16,454.88",Woodcroft School Ltd
Childrens Services,Education Services,Other Strategic Functions,Special Education Needs DSG,Third Party Payments - Payments to Schools,01/12/2017,3964811,"16,454.88",Woodcroft School Ltd
Childrens Services,Education Services,Other Strategic Functions,Special Education Needs DSG,Third Party Payments - Payments to Schools,01/12/2017,3964814,"16,454.88",Woodcroft School Ltd
Childrens Services,Education Services,Other Strategic Functions,Special Education Needs DSG,Third Party Payments - Payments to Schools,01/12/2017,3964817,"16,454.88",Woodcroft School Ltd
Childrens Services,Education Services,Other Strategic Functions,Special Education Needs DSG,Third Party Payments - Payments to Schools,01/12/2017,3964822,"16,454.88",Woodcroft School Ltd
Childrens Services,Education Services,Other Strategic Functions,Special Education Needs DSG,Third Party Payments - Payments to Schools,01/12/2017,3964827,"16,454.88",Woodcroft School Ltd
Childrens Services,Education Services,Other Strategic Functions,Special Education Needs DSG,Third Party Payments - Payments to Schools,01/12/2017,3964834,"16,454.88",Woodcroft School Ltd
Childrens Services,Children's Social Care,Support Service and Management Costs,Sch. Meals A/c - Central Production Unit,Kitchen Supplies - Food and Beverages,01/12/2017,3965147,"1,171.65",William White Meats Ltd
Childrens Services,Children's Social Care,Support Service and Management Costs,Welfare Catering,Kitchen Supplies - Food and Beverages,01/12/2017,3965198,347.95,William White Meats Ltd
Childrens Services,Children's Social Care,Support Service and Management Costs,Schools Catering,Kitchen Supplies - Food and Beverages,01/12/2017,3965440,273.25,William White Meats Ltd
Childrens Services,Children's Social Care,Support Service and Management Costs,Schools Catering,Kitchen Supplies - Food and Beverages,01/12/2017,3965461,270.00,William White Meats Ltd
Childrens Services,Children's Social Care,Support Service and Management Costs,Schools Catering,Kitchen Supplies - Food and Beverages,01/12/2017,3965528,692.62,William White Meats Ltd
Childrens Services,Adult Social Care,Support Service and Management Costs,Org Development L&D Training,Training Expenses - Staff External Training (UK Based),01/12/2017,3966362,"2,000.00",Huntersjoy Ltd
Childrens Services,Cultural and Related Services,Recreation & Sport,Sports Development,Recreational Activities,01/12/2017,3966475,"2,865.00",Greenwich Leisure LTD
Childrens Services,Children's Social Care,Support Service and Management Costs,Schools Catering,Kitchen Supplies - Food and Beverages,01/12/2017,3966586,305.00,William White Meats Ltd
Childrens Services,Children's Social Care,Support Service and Management Costs,Schools Catering,Kitchen Supplies - Food and Beverages,01/12/2017,3966655,271.20,William White Meats Ltd
Childrens Services,Children's Social Care,Support Service and Management Costs,Schools Catering,Kitchen Supplies - Food and Beverages,01/12/2017,3966660,286.15,William White Meats Ltd
Childrens Services,Children's Social Care,Support Service and Management Costs,Schools Catering,Kitchen Supplies - Food and Beverages,01/12/2017,3967215,345.80,William White Meats Ltd
Childrens Services,Children's Social Care,Support Service and Management Costs,Schools Catering,Kitchen Supplies - Food and Beverages,01/12/2017,3967218,597.40,William White Meats Ltd
Childrens Services,Children's Social Care,Support Service and Management Costs,Schools Catering,Kitchen Supplies - Food and Beverages,01/12/2017,3967221,278.45,William White Meats Ltd
Childrens Services,Children's Social Care,Services for young people,Youth Service Management,Office Furniture/Equipment,01/12/2017,3967319,"1,298.00",ESPO
Childrens Services,Education Services,Early Years,Early Years-Qaulity Assurance Teachers,Comms - Courier,01/12/2017,3967337,"1,192.50",Figurehead Studios
Childrens Services,Education Services,Other Strategic Functions,Special Education Needs DSG,Third Party Payments - Payments to Schools,01/12/2017,3967943,"23,746.78",Ferndearle Child Care Services Ltd
Childrens Services,Education Services,Other Strategic Functions,Empty Properties,Repairs and Maintenance - Responsive - Repair & Maintenance,01/12/2017,3968246,"22,320.00",Manpower Direct UK
Childrens Services,Cultural and Related Services,Open Spaces,Stepney Green,Services - Professional Fees - Security Fees,01/12/2017,3968255,"3,264.77",Manpower Direct UK
Childrens Services,Cultural and Related Services,Open Spaces,Victoria Park,Services - Professional Fees - Security Fees,01/12/2017,3968259,"4,609.08",Manpower Direct UK
Childrens Services,Children's Social Care,Support Service and Management Costs,Schools Catering,Kitchen Supplies - Food and Beverages,01/12/2017,3968590,360.12,William White Meats Ltd
Childrens Services,Children's Social Care,Support Service and Management Costs,Swanlea,Kitchen Supplies - Food and Beverages,01/12/2017,3968591,620.90,William White Meats Ltd
Childrens Services,Children's Social Care,Support Service and Management Costs,Welfare Catering,Kitchen Supplies - Food and Beverages,01/12/2017,3968592,342.26,William White Meats Ltd
Childrens Services,Education Services,Other Strategic Functions,Special Education Needs DSG,Third Party Payments - Payments to Schools,01/12/2017,3968594,"2,906.17",Gatehouse Educational Trust Ltd
Childrens Services,Children's Social Care,Support Service and Management Costs,Schools Catering,Kitchen Supplies - Food and Beverages,01/12/2017,3968660,414.66,William White Meats Ltd
Childrens Services,Children's Social Care,Support Service and Management Costs,Schools Catering,Kitchen Supplies - Food and Beverages,01/12/2017,3968681,472.33,William White Meats Ltd
Childrens Services,Children's Social Care,Support Service and Management Costs,Schools Catering,Kitchen Supplies - Food and Beverages,01/12/2017,3968697,397.96,William White Meats Ltd
Childrens Services,Children's Social Care,Support Service and Management Costs,Schools Catering,Kitchen Supplies - Food and Beverages,01/12/2017,3968717,844.33,William White Meats Ltd
Childrens Services,Children's Social Care,Support Service and Management Costs,Schools Catering,Kitchen Supplies - Food and Beverages,01/12/2017,3968732,785.80,William White Meats Ltd
Childrens Services,Children's Social Care,Support Service and Management Costs,Schools Catering,Kitchen Supplies - Food and Beverages,01/12/2017,3968738,316.88,William White Meats Ltd
Childrens Services,Children's Social Care,Support Service and Management Costs,Schools Catering,Kitchen Supplies - Food and Beverages,01/12/2017,3968747,517.06,William White Meats Ltd
Childrens Services,Children's Social Care,Support Service and Management Costs,Schools Catering,Kitchen Supplies - Food and Beverages,01/12/2017,3968753,834.39,William White Meats Ltd
Childrens Services,Children's Social Care,Support Service and Management Costs,Schools Catering,Kitchen Supplies - Food and Beverages,01/12/2017,3968756,331.75,William White Meats Ltd
Childrens Services,Children's Social Care,Support Service and Management Costs,Schools Catering,Kitchen Supplies - Food and Beverages,01/12/2017,3968759,496.60,William White Meats Ltd
Childrens Services,Children's Social Care,Support Service and Management Costs,Schools Catering,Kitchen Supplies - Food and Beverages,01/12/2017,3968795,266.14,William White Meats Ltd
Childrens Services,Children's Social Care,Support Service and Management Costs,Schools Catering,Kitchen Supplies - Food and Beverages,01/12/2017,3968801,610.01,William White Meats Ltd
Childrens Services,Children's Social Care,Support Service and Management Costs,Schools Catering,Kitchen Supplies - Food and Beverages,01/12/2017,3968809,300.30,William White Meats Ltd
Childrens Services,Children's Social Care,Support Service and Management Costs,Schools Catering,Kitchen Supplies - Food and Beverages,01/12/2017,3968837,487.85,William White Meats Ltd
Childrens Services,Children's Social Care,Support Service and Management Costs,Schools Catering,Kitchen Supplies - Food and Beverages,01/12/2017,3968846,288.53,William White Meats Ltd
Childrens Services,Children's Social Care,Support Service and Management Costs,Schools Catering,Kitchen Supplies - Food and Beverages,01/12/2017,3968852,654.25,William White Meats Ltd
Childrens Services,Children's Social Care,Support Service and Management Costs,Schools Catering,Kitchen Supplies - Food and Beverages,01/12/2017,3968855,477.22,William White Meats Ltd
Childrens Services,Children's Social Care,Children Looked After,Leaving Care-UASC,Leaving Care Financial Assistance - Grant Pay Special Needs,01/12/2017,3970370,"1,992.68",The Way Care Services Ltd
Childrens Services,Children's Social Care,Children Looked After,Leaving Care-UASC,Leaving Care Financial Assistance - Reg Plan Maint L-Allow,01/12/2017,3970370,256.37,The Way Care Services Ltd
Childrens Services,Children's Social Care,Children Looked After,Leaving Care-UASC,Leaving Care Financial Assistance - Supp Accom/Hous Rents,01/12/2017,3970370,"3,321.34",The Way Care Services Ltd
Childrens Services,Children's Social Care,Children Looked After,LCS/Allowances-Accom,Leaving Care Financial Assistance - Grant Pay Special Needs,01/12/2017,3970371,"1,107.01",The Way Care Services Ltd
Childrens Services,Children's Social Care,Children Looked After,LCS/Allowances-Accom,Leaving Care Financial Assistance - Reg Plan Maint L-Allow,01/12/2017,3970371,256.37,The Way Care Services Ltd
Childrens Services,Children's Social Care,Children Looked After,LCS/Allowances-Accom,Leaving Care Financial Assistance - Supp Accom/Hous Rents,01/12/2017,3970371,"3,321.34",The Way Care Services Ltd
Childrens Services,Education Services,Other Strategic Functions,Special Education Needs DSG,Third Party Payments - Payments to Schools,01/12/2017,3970422,"20,000.00",Octavia House Scholls Ltd
Childrens Services,Children's Social Care,Children Looked After,S23-Other-Semi-Ind. Unit,Childrens Act Section 23 - Placement Fee,01/12/2017,3971428,"4,071.60",Netpex
Childrens Services,Children's Social Care,Children Looked After,S23-Other-Semi-Ind. Unit,Childrens Act Section 23 - Placement Fee,01/12/2017,3971469,272.00,Netpex
Childrens Services,Children's Social Care,Family Support Services,CNN Pool: Joint Family Support,Childrens Act Section 17 - Respite Care,01/12/2017,3972195,323.40,QALB Centre Short Break Services
Childrens Services,Children's Social Care,Family Support Services,CNN Pool: Joint Family Support,Childrens Act Section 17 - Respite Care,01/12/2017,3972225,441.30,QALB Centre Short Break Services
Childrens Services,Children's Social Care,Family Support Services,Disabled Children�s Outreach Service,Office Furniture/Equipment,01/12/2017,3973961,"1,416.00",Back Care Solutions Ltd
Childrens Services,Education Services,Other Strategic Functions,Special Education Needs DSG,Office Furniture/Equipment,01/12/2017,3974061,"1,369.82",The Complete Works Ltd
Childrens Services,Education Services,Other Strategic Functions,Special Education Needs DSG,Third Party Payments - Payments to Schools,01/12/2017,3974080,"4,400.00",The Complete Works Ltd
Childrens Services,Children's Social Care,Support Service and Management Costs,Sch. Meals A/c - C.F.S. Upper (Harley Grove),Catering - Hospitality,01/12/2017,3974102,750.50,Tiffin Sandwiches
Childrens Services,Children's Social Care,Support Service and Management Costs,Sch. Meals A/c - George Green,Catering - Hospitality,01/12/2017,3974103,711.00,Tiffin Sandwiches
Childrens Services,Children's Social Care,Support Service and Management Costs,Sch. Meals A/c - Langdon Park,Catering - Hospitality,01/12/2017,3974104,551.42,Tiffin Sandwiches
Childrens Services,Children's Social Care,Support Service and Management Costs,Sch. Meals A/c - Morpeth,Catering - Hospitality,01/12/2017,3974105,857.15,Tiffin Sandwiches
Childrens Services,Children's Social Care,Support Service and Management Costs,Sch. Meals A/c - Mulberry,Catering - Hospitality,01/12/2017,3974106,786.05,Tiffin Sandwiches
Childrens Services,Children's Social Care,Support Service and Management Costs,Sch. Meals A/c - Oaklands,Catering - Hospitality,01/12/2017,3974107,577.49,Tiffin Sandwiches
Childrens Services,Children's Social Care,Support Service and Management Costs,Sch. Meals A/c - Raines Foundation,Catering - Hospitality,01/12/2017,3974108,316.00,Tiffin Sandwiches
Childrens Services,Children's Social Care,Support Service and Management Costs,Sch. Meals A/c - St. Paul's Way Comm. Trust,Catering - Hospitality,01/12/2017,3974109,353.13,Tiffin Sandwiches
Childrens Services,Children's Social Care,Support Service and Management Costs,Sch. Meals A/c - Stepney Green,Catering - Hospitality,01/12/2017,3974110,474.00,Tiffin Sandwiches
Childrens Services,Education Services,Other Strategic Functions,Special Education Needs GF,Training Expenses - Staff External Training (UK Based),01/12/2017,3974457,"2,650.00",University of East London
Childrens Services,Children's Social Care,Support Service and Management Costs,Sch. Meals A/c - Bow School,Catering - Hospitality,01/12/2017,3974481,758.40,Tiffin Sandwiches
Childrens Services,Children's Social Care,Children Looked After,S23 Family Placements P&V,Childrens Act Section 23 - Placement Fee,01/12/2017,3974519,"4,714.29",Credo Care ltd
Childrens Services,Education Services,Services to Young People and Other Community Learners,Further and Higher Education,Education Trust - Grant,01/12/2017,3974534,"2,000.00",ISLAND ADVICE CENTRE
Childrens Services,Education Services,Other Strategic Functions,High Needs FE Colleges,Third Party Payments - Payments to Schools,01/12/2017,3974813,"13,224.53",Orchard Hill College
Childrens Services,Education Services,Other Strategic Functions,Special Education Needs DSG,Third Party Payments - Payments to Schools,01/12/2017,3974822,"3,415.59",Cavendish School
Childrens Services,Education Services,Other Strategic Functions,Special Education Needs DSG,Third Party Payments - Payments to Schools,01/12/2017,3974823,"9,563.64",Cavendish School
Childrens Services,Education Services,Other Strategic Functions,Special Education Needs DSG,Third Party Payments - Payments to Schools,01/12/2017,3974915,"9,563.64",Cavendish School
Childrens Services,Children's Social Care,Children Looked After,S23-Other-Semi-Ind. Unit,Childrens Act Section 23 - Placement Fee,01/12/2017,3975319,289.50,Netpex
Childrens Services,Children's Social Care,Service Strategy,89 CA Sec 17 Chld in Need BGW,Childrens Act Section 17 - Spec Pymnts Legal,01/12/2017,3976924,"2,600.00",Nubian Consultants Ltd
Childrens Services,Cultural and Related Services,Culture & Heritage,Brady Arts Centre,Water Services - Metered,01/12/2017,3976970,595.68,CASTLE WATER
Childrens Services,Education Services,Other Strategic Functions,Schools Library,Comms - Courier,01/12/2017,3977028,265.50,Ram Transport LTD
Childrens Services,Children's Social Care,Children's and Young People's Safety,Community Safeguarding,Third Party Payments - Voluntary Associations,01/12/2017,3977063,"1,020.00",Osmani Trust
Childrens Services,Children's Social Care,Children Looked After,S23-Other-Semi-Ind. Unit,Childrens Act Section 23 - Placement Fee,01/12/2017,3977084,"1,648.87",Pangea Support Services
Childrens Services,Children's Social Care,Children Looked After,S23-Other-Semi-Ind. Unit,Childrens Act Section 23 - Placement Fee,01/12/2017,3977085,"2,047.54",Pangea Support Services
Childrens Services,Children's Social Care,Children Looked After,S23-Other-Semi-Ind. Unit,Childrens Act Section 23 - Placement Fee,01/12/2017,3977090,"2,801.28",Pangea Support Services
Childrens Services,Children's Social Care,Children Looked After,S23-Other-Semi-Ind. Unit,Childrens Act Section 23 - Placement Fee,01/12/2017,3977094,"1,912.57",Pangea Support Services
Childrens Services,Children's Social Care,Children Looked After,S23-Other-Semi-Ind. Unit,Childrens Act Section 23 - Placement Fee,01/12/2017,3977096,"1,762.57",Pangea Support Services
Childrens Services,Children's Social Care,Children Looked After,S23-Other-Semi-Ind. Unit,Childrens Act Section 23 - Placement Fee,01/12/2017,3977097,"1,874.37",Pangea Support Services
Childrens Services,Children's Social Care,Children Looked After,S23-Other-Semi-Ind. Unit,Childrens Act Section 23 - Placement Fee,01/12/2017,3977106,"1,804.97",Pangea Support Services
Childrens Services,Children's Social Care,Children Looked After,S23-Other-Semi-Ind. Unit,Childrens Act Section 23 - Placement Fee,01/12/2017,3977107,"1,962.57",Pangea Support Services
Childrens Services,Children's Social Care,Children Looked After,S23-Other-Semi-Ind. Unit,Childrens Act Section 23 - Placement Fee,01/12/2017,3977110,"3,821.14",Pangea Support Services
Childrens Services,Children's Social Care,Children Looked After,S23-Other-Semi-Ind. Unit,Childrens Act Section 23 - Placement Fee,01/12/2017,3977112,"1,792.57",Pangea Support Services
Childrens Services,Children's Social Care,Children Looked After,S23-Other-Semi-Ind. Unit,Childrens Act Section 23 - Placement Fee,01/12/2017,3977114,"2,184.00",Pangea Support Services
Childrens Services,Children's Social Care,Children Looked After,S23-Other-Semi-Ind. Unit,Childrens Act Section 23 - Placement Fee,01/12/2017,3977115,"1,787.57",Pangea Support Services
Childrens Services,Children's Social Care,Children Looked After,S23-Other-Semi-Ind. Unit,Childrens Act Section 23 - Placement Fee,01/12/2017,3977119,608.42,Pangea Support Services
Childrens Services,Children's Social Care,Children Looked After,Youth Detention- STC,Childrens Act Section 23 - Placement Fee,01/12/2017,3977122,"16,616.00",The Youth Justice Board
Childrens Services,Children's Social Care,Children Looked After,S23-Other-Prison,Childrens Act Section 23 - Placement Fee,01/12/2017,3977123,"5,921.00",The Youth Justice Board
Childrens Services,Education Services,Early Years,SSEYCG Two Year Old Pilot,Third Party Payments - Voluntary Associations,01/12/2017,3977339,"17,910.00",ABERTOTS PLAY
Childrens Services,Education Services,Early Years,SSEYCG Two Year Old Pilot,Third Party Payments - Voluntary Associations,01/12/2017,3977340,"24,840.00",Allen Gardens Playgroup
Childrens Services,Education Services,Early Years,SSEYCG Two Year Old Pilot,Third Party Payments - Voluntary Associations,01/12/2017,3977341,"15,300.00",Avebury Playgroup
Childrens Services,Education Services,Early Years,SSEYCG Two Year Old Pilot,Third Party Payments - Voluntary Associations,01/12/2017,3977342,"21,059.60",Barnardo's
Childrens Services,Education Services,Early Years,SSEYCG Two Year Old Pilot,Third Party Payments - Voluntary Associations,01/12/2017,3977343,"4,766.00",BRAYFORD SQUARE PLAYGROUP
Childrens Services,Education Services,Early Years,SSEYCG Two Year Old Pilot,Third Party Payments - Voluntary Associations,01/12/2017,3977344,"10,710.00",Burdett Estate playgroup
Childrens Services,Education Services,Early Years,SSEYCG Two Year Old Pilot,Third Party Payments - Voluntary Associations,01/12/2017,3977345,"22,635.00",Calvary Charismatic Baptist Church
Childrens Services,Education Services,Early Years,SSEYCG Two Year Old Pilot,Third Party Payments - Voluntary Associations,01/12/2017,3977346,"8,369.10",SOMALI INTEGRATION TEAM
Childrens Services,Education Services,Early Years,SSEYCG Two Year Old Pilot,Third Party Payments - Voluntary Associations,01/12/2017,3977347,"8,370.00",DATE PALM PRIMARY
Childrens Services,Education Services,Early Years,SSEYCG Two Year Old Pilot,Third Party Payments - Voluntary Associations,01/12/2017,3977348,"4,410.40",Dreammaker Day Nursery
Childrens Services,Education Services,Early Years,SSEYCG Two Year Old Pilot,Third Party Payments - Voluntary Associations,01/12/2017,3977349,"4,320.00",EXCELLENCE CHRISTIAN SCHOOL
Childrens Services,Education Services,Early Years,SSEYCG Two Year Old Pilot,Third Party Payments - Voluntary Associations,01/12/2017,3977350,"25,552.25",CITY GATEWAY
Childrens Services,Education Services,Early Years,SSEYCG Two Year Old Pilot,Third Party Payments - Voluntary Associations,01/12/2017,3977351,"25,785.00",GLOBAL KIDS DAY CARE
Childrens Services,Education Services,Early Years,SSEYCG Two Year Old Pilot,Third Party Payments - Voluntary Associations,01/12/2017,3977352,"21,645.00",Account 3 Ltd
Childrens Services,Education Services,Early Years,SSEYCG Two Year Old Pilot,Third Party Payments - Voluntary Associations,01/12/2017,3977353,"6,390.00",Incy Wincy Stars Childcare Ltd
Childrens Services,Education Services,Early Years,SSEYCG Two Year Old Pilot,Third Party Payments - Voluntary Associations,01/12/2017,3977354,"30,960.00",Iqra Pre School
Childrens Services,Education Services,Early Years,SSEYCG Two Year Old Pilot,Third Party Payments - Voluntary Associations,01/12/2017,3977355,"14,440.50",ISLAND HOUSE PRE SCHOOL PLAYGROUP
Childrens Services,Education Services,Early Years,SSEYCG Two Year Old Pilot,Third Party Payments - Voluntary Associations,01/12/2017,3977356,"23,754.84",Jingle Jungle Nursery
Childrens Services,Education Services,Early Years,SSEYCG Two Year Old Pilot,Third Party Payments - Voluntary Associations,01/12/2017,3977357,"10,395.00",Kids Kingdom Nursery
Childrens Services,Education Services,Early Years,SSEYCG Two Year Old Pilot,Third Party Payments - Voluntary Associations,01/12/2017,3977358,"43,875.35",Limehouse Arches Day Nursery
Childrens Services,Education Services,Early Years,SSEYCG Two Year Old Pilot,Third Party Payments - Voluntary Associations,01/12/2017,3977359,"33,345.00",Lincoln Hall Playgroup
Childrens Services,Education Services,Early Years,SSEYCG Two Year Old Pilot,Third Party Payments - Voluntary Associations,01/12/2017,3977360,"22,320.00",Limehouse Project
Childrens Services,Education Services,Early Years,SSEYCG Two Year Old Pilot,Third Party Payments - Voluntary Associations,01/12/2017,3977361,"27,000.00",Little St Matthias Pre School
Childrens Services,Education Services,Early Years,SSEYCG Two Year Old Pilot,Third Party Payments - Voluntary Associations,01/12/2017,3977362,"21,420.00",Matchbox Day Nursery Ltd
Childrens Services,Education Services,Early Years,SSEYCG Two Year Old Pilot,Third Party Payments - Voluntary Associations,01/12/2017,3977363,"7,335.00",MILE END NURSERY
Childrens Services,Education Services,Early Years,SSEYCG Two Year Old Pilot,Third Party Payments - Voluntary Associations,01/12/2017,3977364,"33,570.00",Munchkins Playgroup
Childrens Services,Education Services,Early Years,SSEYCG Two Year Old Pilot,Third Party Payments - Voluntary Associations,01/12/2017,3977365,"2,160.00",Pepe & Friends Ltd
Childrens Services,Education Services,Early Years,SSEYCG Two Year Old Pilot,Third Party Payments - Voluntary Associations,01/12/2017,3977366,"27,540.00",Rainbow House
Childrens Services,Education Services,Early Years,SSEYCG Two Year Old Pilot,Third Party Payments - Voluntary Associations,01/12/2017,3977367,"3,240.00",Scallywags Playgroup
Childrens Services,Education Services,Early Years,SSEYCG Two Year Old Pilot,Third Party Payments - Voluntary Associations,01/12/2017,3977368,"6,441.07",CATHOLIC CHILDREN'S SOCIETY(WESTMINSTER)
Childrens Services,Education Services,Early Years,SSEYCG Two Year Old Pilot,Third Party Payments - Voluntary Associations,01/12/2017,3977369,"7,980.00",Bethnal Green Montessuri Nursery
Childrens Services,Education Services,Early Years,SSEYCG Two Year Old Pilot,Third Party Payments - Voluntary Associations,01/12/2017,3977370,"15,358.82",Step By Step Nursery
Childrens Services,Education Services,Early Years,SSEYCG Two Year Old Pilot,Third Party Payments - Voluntary Associations,01/12/2017,3977371,"15,816.45",TATE HOUSE PLAYGROUP
Childrens Services,Education Services,Early Years,SSEYCG Two Year Old Pilot,Third Party Payments - Voluntary Associations,01/12/2017,3977372,"9,090.00",Tower Hamlets College
Childrens Services,Education Services,Early Years,SSEYCG Two Year Old Pilot,Third Party Payments - Voluntary Associations,01/12/2017,3977373,"8,145.00",Tower Hamlets Opportunity Group
Childrens Services,Education Services,Early Years,SSEYCG Two Year Old Pilot,Third Party Payments - Voluntary Associations,01/12/2017,3977374,"15,840.00",VERNON PLAYGROUP
Childrens Services,Education Services,Early Years,SSEYCG Two Year Old Pilot,Third Party Payments - Voluntary Associations,01/12/2017,3977375,"3,150.00",WAPPING PLAYGROUP
Childrens Services,Education Services,Early Years,3&4 Year old PVI�s,Third Party Payments - Voluntary Associations,01/12/2017,3977377,"2,160.00",Poplar Play Centre
Childrens Services,Education Services,Early Years,3&4 Year old PVI�s,Third Party Payments - Voluntary Associations,01/12/2017,3977378,"24,435.00",The Pier Head Preparatory School
Childrens Services,Education Services,Early Years,Private Voluntary & Independant Extended Funding Hours,Third Party Payments - Voluntary Associations,01/12/2017,3977379,"3,675.00",The Pier Head Preparatory School
Childrens Services,Education Services,Early Years,SSEYCG Two Year Old Pilot,Third Party Payments - Voluntary Associations,01/12/2017,3977380,"2,818.00",Barkantine Community Nursery
Childrens Services,Education Services,Early Years,3&4 Year old PVI�s,Third Party Payments - Voluntary Associations,01/12/2017,3977381,275.40,CITY GATEWAY
Childrens Services,Education Services,Early Years,Mowlem CC,Stationery,04/12/2017,3961974,477.26,Office Depot (Catalogue)
Childrens Services,No Service Specified,No Division Specified,Capital-Minor Works (SC),Other External Fees - Architects Fees,04/12/2017,3963932,"14,475.00",Architype
Childrens Services,Children's Social Care,Support Service and Management Costs,Welfare Catering,Kitchen Supplies - Food and Beverages,04/12/2017,3964623,386.02,Thomas Ridley & Son Ltd
Childrens Services,Children's Social Care,Support Service and Management Costs,Sch. Meals A/c - Central Production Unit,Kitchen Supplies - Food and Beverages,04/12/2017,3964624,823.04,Thomas Ridley & Son Ltd
Childrens Services,Children's Social Care,Support Service and Management Costs,"Mulberry Caf�		",Kitchen Supplies - Food and Beverages,04/12/2017,3964626,482.86,Thomas Ridley & Son Ltd
Childrens Services,Education Services,Early Years,Mowlem CC,Photocopier Charges - Consumables,04/12/2017,3964662,562.60,Supplies Team Ltd
Childrens Services,Children's Social Care,Support Service and Management Costs,Schools Catering,Kitchen Supplies - Food and Beverages,04/12/2017,3964806,533.73,Thomas Ridley & Son Ltd
Childrens Services,Children's Social Care,Support Service and Management Costs,Schools Catering,Kitchen Supplies - Food and Beverages,04/12/2017,3964812,273.69,Thomas Ridley & Son Ltd
Childrens Services,Children's Social Care,Support Service and Management Costs,Schools Catering,Kitchen Supplies - Food and Beverages,04/12/2017,3964815,525.78,Thomas Ridley & Son Ltd
Childrens Services,Children's Social Care,Support Service and Management Costs,Schools Catering,Kitchen Supplies - Food and Beverages,04/12/2017,3964818,346.52,Thomas Ridley & Son Ltd
Childrens Services,Children's Social Care,Support Service and Management Costs,Schools Catering,Kitchen Supplies - Food and Beverages,04/12/2017,3964823,510.20,Thomas Ridley & Son Ltd
Childrens Services,Children's Social Care,Support Service and Management Costs,Schools Catering,Kitchen Supplies - Food and Beverages,04/12/2017,3964841,544.60,Thomas Ridley & Son Ltd
Childrens Services,Children's Social Care,Support Service and Management Costs,Schools Catering,Kitchen Supplies - Food and Beverages,04/12/2017,3964855,627.95,Thomas Ridley & Son Ltd
Childrens Services,Children's Social Care,Support Service and Management Costs,Schools Catering,Kitchen Supplies - Food and Beverages,04/12/2017,3964863,717.24,Thomas Ridley & Son Ltd
Childrens Services,Children's Social Care,Support Service and Management Costs,Schools Catering,Kitchen Supplies - Food and Beverages,04/12/2017,3964876,271.30,Thomas Ridley & Son Ltd
Childrens Services,Children's Social Care,Support Service and Management Costs,Schools Catering,Kitchen Supplies - Food and Beverages,04/12/2017,3964881,296.33,Thomas Ridley & Son Ltd
Childrens Services,Children's Social Care,Support Service and Management Costs,Schools Catering,Kitchen Supplies - Food and Beverages,04/12/2017,3964882,610.70,Thomas Ridley & Son Ltd
Childrens Services,Children's Social Care,Support Service and Management Costs,Schools Catering,Kitchen Supplies - Food and Beverages,04/12/2017,3964883,421.31,Thomas Ridley & Son Ltd
Childrens Services,Children's Social Care,Support Service and Management Costs,Schools Catering,Kitchen Supplies - Food and Beverages,04/12/2017,3964884,337.91,Thomas Ridley & Son Ltd
Childrens Services,Children's Social Care,Support Service and Management Costs,Schools Catering,Kitchen Supplies - Food and Beverages,04/12/2017,3964885,333.53,Thomas Ridley & Son Ltd
Childrens Services,Children's Social Care,Support Service and Management Costs,Schools Catering,Kitchen Supplies - Food and Beverages,04/12/2017,3964886,295.71,Thomas Ridley & Son Ltd
Childrens Services,Children's Social Care,Support Service and Management Costs,Schools Catering,Kitchen Supplies - Food and Beverages,04/12/2017,3964887,374.88,Thomas Ridley & Son Ltd
Childrens Services,Children's Social Care,Support Service and Management Costs,Schools Catering,Kitchen Supplies - Food and Beverages,04/12/2017,3964888,402.65,Thomas Ridley & Son Ltd
Childrens Services,Children's Social Care,Support Service and Management Costs,Schools Catering,Kitchen Supplies - Food and Beverages,04/12/2017,3964889,669.72,Thomas Ridley & Son Ltd
Childrens Services,Children's Social Care,Support Service and Management Costs,Schools Catering,Kitchen Supplies - Food and Beverages,04/12/2017,3964890,555.57,Thomas Ridley & Son Ltd
Childrens Services,Children's Social Care,Support Service and Management Costs,Schools Catering,Kitchen Supplies - Food and Beverages,04/12/2017,3964892,842.99,Thomas Ridley & Son Ltd
Childrens Services,Children's Social Care,Support Service and Management Costs,Schools Catering,Kitchen Supplies - Food and Beverages,04/12/2017,3964896,414.22,Thomas Ridley & Son Ltd
Childrens Services,Children's Social Care,Support Service and Management Costs,Schools Catering,Kitchen Supplies - Food and Beverages,04/12/2017,3964897,579.00,Thomas Ridley & Son Ltd
Childrens Services,Children's Social Care,Support Service and Management Costs,Schools Catering,Kitchen Supplies - Food and Beverages,04/12/2017,3964898,705.58,Thomas Ridley & Son Ltd
Childrens Services,Children's Social Care,Support Service and Management Costs,Schools Catering,Kitchen Supplies - Food and Beverages,04/12/2017,3964900,360.14,Thomas Ridley & Son Ltd
Childrens Services,Children's Social Care,Support Service and Management Costs,Schools Catering,Kitchen Supplies - Food and Beverages,04/12/2017,3964902,427.93,Thomas Ridley & Son Ltd
Childrens Services,Children's Social Care,Support Service and Management Costs,Schools Catering,Kitchen Supplies - Food and Beverages,04/12/2017,3964903,396.79,Thomas Ridley & Son Ltd
Childrens Services,Children's Social Care,Support Service and Management Costs,Schools Catering,Kitchen Supplies - Food and Beverages,04/12/2017,3964905,470.07,Thomas Ridley & Son Ltd
Childrens Services,Children's Social Care,Support Service and Management Costs,Schools Catering,Kitchen Supplies - Food and Beverages,04/12/2017,3964906,517.62,Thomas Ridley & Son Ltd
Childrens Services,Children's Social Care,Support Service and Management Costs,Schools Catering,Kitchen Supplies - Food and Beverages,04/12/2017,3964907,"1,150.13",Thomas Ridley & Son Ltd
Childrens Services,Children's Social Care,Support Service and Management Costs,Schools Catering,Kitchen Supplies - Food and Beverages,04/12/2017,3964908,616.57,Thomas Ridley & Son Ltd
Childrens Services,Children's Social Care,Support Service and Management Costs,Schools Catering,Kitchen Supplies - Food and Beverages,04/12/2017,3964909,696.62,Thomas Ridley & Son Ltd
Childrens Services,Children's Social Care,Support Service and Management Costs,Schools Catering,Kitchen Supplies - Food and Beverages,04/12/2017,3964910,314.21,Thomas Ridley & Son Ltd
Childrens Services,Children's Social Care,Support Service and Management Costs,Schools Catering,Kitchen Supplies - Food and Beverages,04/12/2017,3964911,285.22,Thomas Ridley & Son Ltd
Childrens Services,Children's Social Care,Support Service and Management Costs,Schools Catering,Kitchen Supplies - Food and Beverages,04/12/2017,3964913,819.62,Thomas Ridley & Son Ltd
Childrens Services,Children's Social Care,Support Service and Management Costs,Schools Catering,Kitchen Supplies - Food and Beverages,04/12/2017,3964914,561.44,Thomas Ridley & Son Ltd
Childrens Services,Children's Social Care,Support Service and Management Costs,Schools Catering,Kitchen Supplies - Food and Beverages,04/12/2017,3964915,690.81,Thomas Ridley & Son Ltd
Childrens Services,Children's Social Care,Support Service and Management Costs,Schools Catering,Kitchen Supplies - Food and Beverages,04/12/2017,3964916,296.64,Thomas Ridley & Son Ltd
Childrens Services,Children's Social Care,Support Service and Management Costs,Schools Catering,Kitchen Supplies - Food and Beverages,04/12/2017,3964917,495.21,Thomas Ridley & Son Ltd
Childrens Services,Children's Social Care,Support Service and Management Costs,Schools Catering,Kitchen Supplies - Food and Beverages,04/12/2017,3964920,510.00,Thomas Ridley & Son Ltd
Childrens Services,Children's Social Care,Support Service and Management Costs,Schools Catering,Kitchen Supplies - Food and Beverages,04/12/2017,3964921,332.41,Thomas Ridley & Son Ltd
Childrens Services,Children's Social Care,Support Service and Management Costs,Schools Catering,Kitchen Supplies - Food and Beverages,04/12/2017,3964923,668.35,Thomas Ridley & Son Ltd
Childrens Services,Children's Social Care,Support Service and Management Costs,Schools Catering,Kitchen Supplies - Food and Beverages,04/12/2017,3964924,507.06,Thomas Ridley & Son Ltd
Childrens Services,Children's Social Care,Support Service and Management Costs,Schools Catering,Kitchen Supplies - Food and Beverages,04/12/2017,3964930,465.51,Thomas Ridley & Son Ltd
Childrens Services,Children's Social Care,Support Service and Management Costs,Schools Catering,Kitchen Supplies - Food and Beverages,04/12/2017,3964931,588.12,Thomas Ridley & Son Ltd
Childrens Services,Children's Social Care,Support Service and Management Costs,Schools Catering,Kitchen Supplies - Food and Beverages,04/12/2017,3964932,338.24,Thomas Ridley & Son Ltd
Childrens Services,Children's Social Care,Support Service and Management Costs,Schools Catering,Kitchen Supplies - Food and Beverages,04/12/2017,3964933,612.01,Thomas Ridley & Son Ltd
Childrens Services,Children's Social Care,Support Service and Management Costs,Schools Catering,Kitchen Supplies - Food and Beverages,04/12/2017,3964934,333.49,Thomas Ridley & Son Ltd
Childrens Services,Children's Social Care,Support Service and Management Costs,Schools Catering,Kitchen Supplies - Food and Beverages,04/12/2017,3964935,554.65,Thomas Ridley & Son Ltd
Childrens Services,Children's Social Care,Support Service and Management Costs,Schools Catering,Kitchen Supplies - Food and Beverages,04/12/2017,3964936,326.27,Thomas Ridley & Son Ltd
Childrens Services,Children's Social Care,Support Service and Management Costs,Schools Catering,Kitchen Supplies - Food and Beverages,04/12/2017,3964939,636.52,Thomas Ridley & Son Ltd
Childrens Services,Children's Social Care,Support Service and Management Costs,Schools Catering,Kitchen Supplies - Food and Beverages,04/12/2017,3964941,278.18,Thomas Ridley & Son Ltd
Childrens Services,Children's Social Care,Support Service and Management Costs,Schools Catering,Kitchen Supplies - Food and Beverages,04/12/2017,3964944,562.58,Thomas Ridley & Son Ltd
Childrens Services,Children's Social Care,Support Service and Management Costs,Schools Catering,Kitchen Supplies - Food and Beverages,04/12/2017,3964945,785.73,Thomas Ridley & Son Ltd
Childrens Services,Children's Social Care,Support Service and Management Costs,Schools Catering,Kitchen Supplies - Food and Beverages,04/12/2017,3964947,427.12,Thomas Ridley & Son Ltd
Childrens Services,Children's Social Care,Support Service and Management Costs,Schools Catering,Kitchen Supplies - Food and Beverages,04/12/2017,3964948,361.60,Thomas Ridley & Son Ltd
Childrens Services,Children's Social Care,Support Service and Management Costs,Schools Catering,Kitchen Supplies - Food and Beverages,04/12/2017,3964950,320.61,Thomas Ridley & Son Ltd
Childrens Services,Children's Social Care,Support Service and Management Costs,Sch. Meals A/c - Central Production Unit,Kitchen Supplies - Food and Beverages,04/12/2017,3965012,"1,097.62",Thomas Ridley & Son Ltd
Childrens Services,Children's Social Care,Service Strategy,Children's Placement Team,Services - Professional Fees - Training,04/12/2017,3965117,525.00,L.A. Training
Childrens Services,Children's Social Care,Support Service and Management Costs,Schools Catering,Kitchen Supplies - Food and Beverages,04/12/2017,3965219,256.05,Prescott-Thomas LTD.
Childrens Services,Children's Social Care,Support Service and Management Costs,Schools Catering,Kitchen Supplies - Food and Beverages,04/12/2017,3965241,"1,131.78",Thomas Ridley & Son Ltd
Childrens Services,Children's Social Care,Support Service and Management Costs,Schools Catering,Kitchen Supplies - Food and Beverages,04/12/2017,3965251,443.00,Thomas Ridley & Son Ltd
Childrens Services,Children's Social Care,Support Service and Management Costs,Schools Catering,Kitchen Supplies - Food and Beverages,04/12/2017,3965260,878.76,Thomas Ridley & Son Ltd
Childrens Services,Children's Social Care,Support Service and Management Costs,Schools Catering,Kitchen Supplies - Food and Beverages,04/12/2017,3965269,524.12,Thomas Ridley & Son Ltd
Childrens Services,Children's Social Care,Support Service and Management Costs,Schools Catering,Kitchen Supplies - Food and Beverages,04/12/2017,3965276,"1,051.99",Thomas Ridley & Son Ltd
Childrens Services,Children's Social Care,Support Service and Management Costs,Schools Catering,Kitchen Supplies - Food and Beverages,04/12/2017,3965290,573.60,Thomas Ridley & Son Ltd
Childrens Services,Children's Social Care,Support Service and Management Costs,Schools Catering,Kitchen Supplies - Food and Beverages,04/12/2017,3965297,355.11,Thomas Ridley & Son Ltd
Childrens Services,Children's Social Care,Support Service and Management Costs,Schools Catering,Kitchen Supplies - Food and Beverages,04/12/2017,3965304,557.01,Thomas Ridley & Son Ltd
Childrens Services,Children's Social Care,Support Service and Management Costs,Schools Catering,Kitchen Supplies - Food and Beverages,04/12/2017,3965315,250.95,Prescott-Thomas LTD.
Childrens Services,Children's Social Care,Support Service and Management Costs,Schools Catering,Kitchen Supplies - Food and Beverages,04/12/2017,3965342,370.88,Prescott-Thomas LTD.
Childrens Services,Children's Social Care,Support Service and Management Costs,Professional Dev Centre,Stationery,04/12/2017,3966307,333.08,Office Depot (Catalogue)
Childrens Services,Children's Social Care,Support Service and Management Costs,Welfare Catering,Kitchen Supplies - Food and Beverages,04/12/2017,3966406,627.85,Thomas Ridley & Son Ltd
Childrens Services,Children's Social Care,Support Service and Management Costs,"Mulberry Caf�		",Kitchen Supplies - Food and Beverages,04/12/2017,3966407,594.63,Thomas Ridley & Son Ltd
Childrens Services,Children's Social Care,Support Service and Management Costs,Sch. Meals A/c - Central Production Unit,Kitchen Supplies - Food and Beverages,04/12/2017,3966416,374.16,Prescott-Thomas LTD.
Childrens Services,Children's Social Care,Support Service and Management Costs,Schools Catering,Kitchen Supplies - Food and Beverages,04/12/2017,3966614,302.79,Thomas Ridley & Son Ltd
Childrens Services,Children's Social Care,Support Service and Management Costs,Schools Catering,Kitchen Supplies - Food and Beverages,04/12/2017,3966622,394.12,Thomas Ridley & Son Ltd
Childrens Services,Children's Social Care,Support Service and Management Costs,Schools Catering,Kitchen Supplies - Food and Beverages,04/12/2017,3966627,433.41,Thomas Ridley & Son Ltd
Childrens Services,Children's Social Care,Support Service and Management Costs,Schools Catering,Kitchen Supplies - Food and Beverages,04/12/2017,3966631,683.36,Thomas Ridley & Son Ltd
Childrens Services,Children's Social Care,Support Service and Management Costs,Schools Catering,Kitchen Supplies - Food and Beverages,04/12/2017,3966639,817.82,Thomas Ridley & Son Ltd
Childrens Services,Children's Social Care,Support Service and Management Costs,Schools Catering,Kitchen Supplies - Food and Beverages,04/12/2017,3966653,327.98,Thomas Ridley & Son Ltd
Childrens Services,Children's Social Care,Support Service and Management Costs,Schools Catering,Kitchen Supplies - Food and Beverages,04/12/2017,3966662,588.72,Thomas Ridley & Son Ltd
Childrens Services,Children's Social Care,Support Service and Management Costs,Schools Catering,Kitchen Supplies - Food and Beverages,04/12/2017,3967202,314.76,Thomas Ridley & Son Ltd
Childrens Services,Children's Social Care,Support Service and Management Costs,Schools Catering,Kitchen Supplies - Food and Beverages,04/12/2017,3967206,505.73,Thomas Ridley & Son Ltd
Childrens Services,Children's Social Care,Support Service and Management Costs,Schools Catering,Kitchen Supplies - Food and Beverages,04/12/2017,3967210,572.83,Thomas Ridley & Son Ltd
Childrens Services,Children's Social Care,Support Service and Management Costs,Schools Catering,Kitchen Supplies - Food and Beverages,04/12/2017,3967214,365.01,Thomas Ridley & Son Ltd
Childrens Services,Children's Social Care,Support Service and Management Costs,Schools Catering,Kitchen Supplies - Food and Beverages,04/12/2017,3967220,443.69,Thomas Ridley & Son Ltd
Childrens Services,Children's Social Care,Support Service and Management Costs,Schools Catering,Kitchen Supplies - Food and Beverages,04/12/2017,3967225,502.43,Thomas Ridley & Son Ltd
Childrens Services,Children's Social Care,Support Service and Management Costs,Schools Catering,Kitchen Supplies - Food and Beverages,04/12/2017,3967227,360.21,Thomas Ridley & Son Ltd
Childrens Services,Children's Social Care,Support Service and Management Costs,Schools Catering,Kitchen Supplies - Food and Beverages,04/12/2017,3967229,424.40,Thomas Ridley & Son Ltd
Childrens Services,Children's Social Care,Support Service and Management Costs,Schools Catering,Kitchen Supplies - Food and Beverages,04/12/2017,3967231,577.75,Thomas Ridley & Son Ltd
Childrens Services,Children's Social Care,Support Service and Management Costs,Schools Catering,Kitchen Supplies - Food and Beverages,04/12/2017,3967241,310.23,Thomas Ridley & Son Ltd
Childrens Services,Children's Social Care,Support Service and Management Costs,Schools Catering,Kitchen Supplies - Food and Beverages,04/12/2017,3967243,708.29,Thomas Ridley & Son Ltd
Childrens Services,Children's Social Care,Support Service and Management Costs,Schools Catering,Kitchen Supplies - Food and Beverages,04/12/2017,3967247,377.69,Thomas Ridley & Son Ltd
Childrens Services,Children's Social Care,Support Service and Management Costs,Schools Catering,Kitchen Supplies - Food and Beverages,04/12/2017,3967249,379.21,Thomas Ridley & Son Ltd
Childrens Services,Children's Social Care,Support Service and Management Costs,Schools Catering,Kitchen Supplies - Food and Beverages,04/12/2017,3967251,306.63,Thomas Ridley & Son Ltd
Childrens Services,Children's Social Care,Support Service and Management Costs,Schools Catering,Kitchen Supplies - Food and Beverages,04/12/2017,3967253,303.70,Thomas Ridley & Son Ltd
Childrens Services,Children's Social Care,Support Service and Management Costs,Schools Catering,Kitchen Supplies - Food and Beverages,04/12/2017,3967255,707.31,Thomas Ridley & Son Ltd
Childrens Services,Children's Social Care,Support Service and Management Costs,Schools Catering,Kitchen Supplies - Food and Beverages,04/12/2017,3967256,875.43,Thomas Ridley & Son Ltd
Childrens Services,Children's Social Care,Support Service and Management Costs,Schools Catering,Kitchen Supplies - Food and Beverages,04/12/2017,3967257,565.51,Thomas Ridley & Son Ltd
Childrens Services,Children's Social Care,Support Service and Management Costs,Schools Catering,Kitchen Supplies - Food and Beverages,04/12/2017,3967259,500.93,Thomas Ridley & Son Ltd
Childrens Services,Children's Social Care,Support Service and Management Costs,Schools Catering,Kitchen Supplies - Food and Beverages,04/12/2017,3967262,733.14,Thomas Ridley & Son Ltd
Childrens Services,Education Services,Early Years,Mowlem CC,Rent Charges,04/12/2017,3967960,"1,749.00",St Hilda's East Community Centre
Childrens Services,Children's Social Care,Support Service and Management Costs,Schools Catering,Materials - Cleaning Materials,04/12/2017,3968454,292.01,The Maintenance Supply Co Ltd
Childrens Services,Children's Social Care,Support Service and Management Costs,Sch. Meals A/c - Central Production Unit,Kitchen Supplies - Food and Beverages,04/12/2017,3968593,274.50,William White Meats Ltd
Childrens Services,Education Services,Other Education and Community Budget,Community Languages,Catering - Hospitality,04/12/2017,3969438,"1,598.70",Biryani Hut Ltd
Childrens Services,Children's Social Care,Children Looked After,LCS/Allowances-Accom,Leaving Care Financial Assistance - Emer Pays Subsistence,04/12/2017,3969488,975.00,Sainsburys Business Direct
Childrens Services,Children's Social Care,Children's and Young People's Safety,CLA Reviewing Service,Computing - Purchase of Software,04/12/2017,3969493,700.52,Specialist Computer Centres PLC
Childrens Services,Children's Social Care,Support Service and Management Costs,Sch. Meals A/c - Central Production Unit,Kitchen Supplies - Catering Equipment,04/12/2017,3970354,320.96,W V Howe LTD
Childrens Services,Children's Social Care,Family Support Services,CNN Pool: Joint Family Support,Services - Professional Fees - Translation Fees,04/12/2017,3970421,"1,002.20",DA Languages Ltd
Childrens Services,Children's Social Care,Children's and Young People's Safety,Child Protection Mgt & Admin,Panel & Conference Expenses - Conference - UK Based,04/12/2017,3974873,280.00,London Consortium Accredited Programme
Childrens Services,Children's Social Care,Children Looked After,S23-Other-Semi-Ind. Unit,Childrens Act Section 23 - Placement Fee,04/12/2017,3977091,327.42,Pangea Support Services
Childrens Services,Children's Social Care,Children Looked After,S23-Other-Semi-Ind. Unit,Childrens Act Section 23 - Placement Fee,04/12/2017,3977105,"1,774.57",Pangea Support Services
Childrens Services,Children's Social Care,Children Looked After,S23-Other-Semi-Ind. Unit,Childrens Act Section 23 - Placement Fee,04/12/2017,3977111,"1,767.57",Pangea Support Services
Childrens Services,Children's Social Care,Family Support Services,Eva Armsby Family Centre,Services - Professional Fees - Legal Fees/Expenses,04/12/2017,3977916,"4,785.25",Umeed Ltd
Childrens Services,Education Services,Other Strategic Functions,Music Trading Account,Third Party Payments - Voluntary Associations,04/12/2017,3984551,390.00,Auto Italia South East
Childrens Services,Education Services,Early Years,Mowlem CC,Photocopier Charges - Consumables,06/12/2017,3966436,293.94,Supplies Team Ltd
Childrens Services,Children's Social Care,Support Service and Management Costs,Sch. Meals A/c - Central Production Unit,Kitchen Supplies - Food and Beverages,06/12/2017,3967324,"1,204.21",Thomas Ridley & Son Ltd
Childrens Services,Children's Social Care,Support Service and Management Costs,Welfare Catering,Kitchen Supplies - Food and Beverages,06/12/2017,3967325,681.95,Thomas Ridley & Son Ltd
Childrens Services,Children's Social Care,Support Service and Management Costs,"Mulberry Caf�		",Kitchen Supplies - Food and Beverages,06/12/2017,3967396,456.72,Thomas Ridley & Son Ltd
Childrens Services,Children's Social Care,Support Service and Management Costs,Schools Catering,Kitchen Supplies - Food and Beverages,06/12/2017,3967428,"1,071.66",Thomas Ridley & Son Ltd
Childrens Services,Children's Social Care,Support Service and Management Costs,Schools Catering,Kitchen Supplies - Food and Beverages,06/12/2017,3967436,688.77,Thomas Ridley & Son Ltd
Childrens Services,Children's Social Care,Support Service and Management Costs,Schools Catering,Kitchen Supplies - Food and Beverages,06/12/2017,3967444,785.03,Thomas Ridley & Son Ltd
Childrens Services,Children's Social Care,Support Service and Management Costs,Schools Catering,Kitchen Supplies - Food and Beverages,06/12/2017,3967446,797.24,Thomas Ridley & Son Ltd
Childrens Services,Children's Social Care,Support Service and Management Costs,Schools Catering,Kitchen Supplies - Food and Beverages,06/12/2017,3967453,288.90,Thomas Ridley & Son Ltd
Childrens Services,Children's Social Care,Support Service and Management Costs,Schools Catering,Kitchen Supplies - Food and Beverages,06/12/2017,3967456,575.95,Thomas Ridley & Son Ltd
Childrens Services,Children's Social Care,Support Service and Management Costs,Schools Catering,Kitchen Supplies - Food and Beverages,06/12/2017,3967462,310.49,Thomas Ridley & Son Ltd
Childrens Services,Children's Social Care,Support Service and Management Costs,Schools Catering,Kitchen Supplies - Food and Beverages,06/12/2017,3967464,696.35,Thomas Ridley & Son Ltd
Childrens Services,Children's Social Care,Support Service and Management Costs,Schools Catering,Kitchen Supplies - Food and Beverages,06/12/2017,3967468,354.89,Thomas Ridley & Son Ltd
Childrens Services,Children's Social Care,Support Service and Management Costs,Schools Catering,Kitchen Supplies - Food and Beverages,06/12/2017,3967470,304.25,Thomas Ridley & Son Ltd
Childrens Services,Children's Social Care,Support Service and Management Costs,Schools Catering,Kitchen Supplies - Food and Beverages,06/12/2017,3967473,646.83,Thomas Ridley & Son Ltd
Childrens Services,Children's Social Care,Support Service and Management Costs,Schools Catering,Kitchen Supplies - Food and Beverages,06/12/2017,3967477,"1,151.86",Thomas Ridley & Son Ltd
Childrens Services,Children's Social Care,Support Service and Management Costs,Schools Catering,Kitchen Supplies - Food and Beverages,06/12/2017,3967478,393.86,Thomas Ridley & Son Ltd
Childrens Services,Children's Social Care,Support Service and Management Costs,Schools Catering,Kitchen Supplies - Food and Beverages,06/12/2017,3967479,953.14,Thomas Ridley & Son Ltd
Childrens Services,Children's Social Care,Support Service and Management Costs,Schools Catering,Kitchen Supplies - Food and Beverages,06/12/2017,3967480,925.89,Thomas Ridley & Son Ltd
Childrens Services,Children's Social Care,Support Service and Management Costs,Schools Catering,Kitchen Supplies - Food and Beverages,06/12/2017,3967481,463.79,Thomas Ridley & Son Ltd
Childrens Services,Children's Social Care,Support Service and Management Costs,Schools Catering,Kitchen Supplies - Food and Beverages,06/12/2017,3967482,502.32,Thomas Ridley & Son Ltd
Childrens Services,Children's Social Care,Support Service and Management Costs,Schools Catering,Kitchen Supplies - Food and Beverages,06/12/2017,3967484,809.64,Thomas Ridley & Son Ltd
Childrens Services,Children's Social Care,Support Service and Management Costs,Schools Catering,Kitchen Supplies - Food and Beverages,06/12/2017,3967485,786.03,Thomas Ridley & Son Ltd
Childrens Services,Children's Social Care,Support Service and Management Costs,Schools Catering,Kitchen Supplies - Food and Beverages,06/12/2017,3967486,283.11,Thomas Ridley & Son Ltd
Childrens Services,Children's Social Care,Support Service and Management Costs,Schools Catering,Kitchen Supplies - Food and Beverages,06/12/2017,3967487,273.91,Thomas Ridley & Son Ltd
Childrens Services,Children's Social Care,Support Service and Management Costs,Schools Catering,Kitchen Supplies - Food and Beverages,06/12/2017,3967488,391.55,Thomas Ridley & Son Ltd
Childrens Services,Children's Social Care,Support Service and Management Costs,Schools Catering,Kitchen Supplies - Food and Beverages,06/12/2017,3967489,682.65,Thomas Ridley & Son Ltd
Childrens Services,Children's Social Care,Support Service and Management Costs,Schools Catering,Kitchen Supplies - Food and Beverages,06/12/2017,3967491,338.55,Thomas Ridley & Son Ltd
Childrens Services,Children's Social Care,Support Service and Management Costs,Schools Catering,Kitchen Supplies - Food and Beverages,06/12/2017,3967499,834.60,Thomas Ridley & Son Ltd
Childrens Services,Children's Social Care,Support Service and Management Costs,Schools Catering,Kitchen Supplies - Food and Beverages,06/12/2017,3967501,275.42,Thomas Ridley & Son Ltd
Childrens Services,Children's Social Care,Support Service and Management Costs,Schools Catering,Kitchen Supplies - Food and Beverages,06/12/2017,3967503,519.60,Thomas Ridley & Son Ltd
Childrens Services,Children's Social Care,Support Service and Management Costs,Schools Catering,Kitchen Supplies - Food and Beverages,06/12/2017,3967581,663.72,Thomas Ridley & Son Ltd
Childrens Services,Children's Social Care,Support Service and Management Costs,Schools Catering,Kitchen Supplies - Food and Beverages,06/12/2017,3967582,421.59,Thomas Ridley & Son Ltd
Childrens Services,Education Services,Other Strategic Functions,Special Education Needs DSG,Third Party Payments - Payments to Schools,06/12/2017,3967846,"21,000.00",Transitional Care LTD
Childrens Services,Education Services,Other Strategic Functions,Special Education Needs DSG,Third Party Payments - Payments to Schools,06/12/2017,3967848,"21,000.00",Transitional Care LTD
Childrens Services,Education Services,Early Years,John Smith CC,Stationery,06/12/2017,3967866,338.49,Office Depot (Catalogue)
Childrens Services,Children's Social Care,Children Looked After,Virtual School PPG,Agency Staff - Associations,06/12/2017,3967935,690.45,Academics ltd
Childrens Services,Children's Social Care,Children Looked After,Virtual School PPG,Agency Staff - Associations,06/12/2017,3967936,920.60,Academics ltd
Childrens Services,Children's Social Care,Children Looked After,Virtual School PPG,Agency Staff - Associations,06/12/2017,3967938,"1,150.75",Academics ltd
Childrens Services,Children's Social Care,Service Strategy,Children's Placement Team,Services - Professional Fees - Training,06/12/2017,3967946,525.00,L.A. Training
Childrens Services,Education Services,Other Strategic Functions,Special Education Needs DSG,Third Party Payments - Payments to Schools,06/12/2017,3967987,"22,750.00",Transitional Care LTD
Childrens Services,Education Services,Other Strategic Functions,Special Education Needs DSG,Third Party Payments - Payments to Schools,06/12/2017,3967988,"18,166.67",Transitional Care LTD
Childrens Services,Children's Social Care,Children Looked After,Virtual School PPG,Agency Staff - Associations,06/12/2017,3968012,"1,150.75",Academics ltd
Childrens Services,Children's Social Care,Children Looked After,Virtual School PPG,Agency Staff - Associations,06/12/2017,3968013,"1,150.75",Academics ltd
Childrens Services,Education Services,Other Strategic Functions,Special Education Needs DSG,Third Party Payments - Payments to Schools,06/12/2017,3968023,"22,750.00",Transitional Care LTD
Childrens Services,Education Services,Other Strategic Functions,Special Education Needs DSG,Third Party Payments - Payments to Schools,06/12/2017,3968034,"21,000.00",Transitional Care LTD
Childrens Services,Children's Social Care,Support Service and Management Costs,Schools Catering,Kitchen Supplies - Food and Beverages,06/12/2017,3968068,430.34,Thomas Ridley & Son Ltd
Childrens Services,Children's Social Care,Support Service and Management Costs,Schools Catering,Kitchen Supplies - Food and Beverages,06/12/2017,3968073,576.41,Thomas Ridley & Son Ltd
Childrens Services,Children's Social Care,Support Service and Management Costs,Schools Catering,Kitchen Supplies - Food and Beverages,06/12/2017,3968079,273.28,Thomas Ridley & Son Ltd
Childrens Services,Children's Social Care,Support Service and Management Costs,Schools Catering,Kitchen Supplies - Food and Beverages,06/12/2017,3968084,733.46,Thomas Ridley & Son Ltd
Childrens Services,Children's Social Care,Support Service and Management Costs,Schools Catering,Kitchen Supplies - Food and Beverages,06/12/2017,3968088,724.42,Thomas Ridley & Son Ltd
Childrens Services,Children's Social Care,Support Service and Management Costs,Schools Catering,Kitchen Supplies - Food and Beverages,06/12/2017,3968090,260.07,Thomas Ridley & Son Ltd
Childrens Services,Children's Social Care,Support Service and Management Costs,Schools Catering,Kitchen Supplies - Food and Beverages,06/12/2017,3968092,858.44,Thomas Ridley & Son Ltd
Childrens Services,Education Services,Other Strategic Functions,Property & Asset Management,Computing - Purchase of Hardware,06/12/2017,3968268,454.95,Highgate IT
Childrens Services,Children's Social Care,Support Service and Management Costs,Schools Catering,Materials - Cleaning Materials,06/12/2017,3968491,311.78,The Maintenance Supply Co Ltd
Childrens Services,Cultural and Related Services,Culture & Heritage,Arts-Park Events,Events & Exhibition Supplies,06/12/2017,3968536,"3,000.00",Kelly Bros Solar Signs Ltd
Childrens Services,Cultural and Related Services,Culture & Heritage,Arts-Park Events,Events & Exhibition Supplies,06/12/2017,3968597,"10,747.00",Metro City PA LTD
Childrens Services,Education Services,Other Strategic Functions,Student Admissions,Computing - Maint Agreements - Computing Costs,06/12/2017,3968610,637.30,Specialist Computer Centres PLC
Childrens Services,Adult Social Care,Support Service and Management Costs,Org Development L&D Training,Social Care - Drugs/Alcohol Dual Dia,06/12/2017,3968613,595.00,Talking Life
Childrens Services,Children's Social Care,Support Service and Management Costs,Welfare Catering,Kitchen Supplies - Food and Beverages,06/12/2017,3968649,594.76,William White Meats Ltd
Childrens Services,Children's Social Care,Commissioning and Social Work,Family Support & Protection Team 2,Services - Professional Fees - Translation Fees,06/12/2017,3968655,"1,198.90",Oncall Interpreters LTD
Childrens Services,Children's Social Care,Support Service and Management Costs,Schools Catering,Kitchen Supplies - Food and Beverages,06/12/2017,3968726,282.67,William White Meats Ltd
Childrens Services,Cultural and Related Services,Open Spaces,Victoria Park,Repairs and Maintenance - Responsive - Repair & Maintenance,06/12/2017,3969529,"1,094.50",Rigby Taylor Ltd
Childrens Services,Cultural and Related Services,Open Spaces,Mile End Park,Repairs and Maintenance - Responsive - Buildings,06/12/2017,3969586,600.00,J&L Coster (Drainage) Ltd
Childrens Services,Children's Social Care,Support Service and Management Costs,Schools Catering,Kitchen Supplies - Food and Beverages,06/12/2017,3969683,266.08,William White Meats Ltd
Childrens Services,Education Services,Other Strategic Functions,Information & Support Services,Third Party Payments - Payments to Schools,06/12/2017,3970329,"10,434.94",London Borough Of Redbridge
Childrens Services,Children's Social Care,Support Service and Management Costs,Professional Dev Centre,Grounds Maintenance - Contract - Arboriculture Works,06/12/2017,3970380,410.00,Figurehead Studios
Childrens Services,Children's Social Care,Support Service and Management Costs,Professional Dev Centre,Grounds Maintenance - Contract - Arboriculture Works,06/12/2017,3970381,506.00,Figurehead Studios
Childrens Services,Children's Social Care,Youth Justice,Youth Justice Team,Training Expenses - Staff External Training (UK Based),06/12/2017,3970435,580.50,Dod's Parliamentary Communications
Childrens Services,Children's Social Care,Family Support Services,CNN Pool: Joint Family Support,Services - Professional Fees - Translation Fees,06/12/2017,3971384,"1,238.45",Oncall Interpreters LTD
Childrens Services,Children's Social Care,Children Looked After,S23 Fam Pl In-Hse-S/Term F/C,Childrens Act Section 23 - Interpreting/Translation,06/12/2017,3971390,510.00,Oncall Interpreters LTD
Childrens Services,Children's Social Care,Service Strategy,89 CA Sec 17 Chld in Need WAPP,Services - Professional Fees - Translation Fees,06/12/2017,3971405,"1,441.50",Oncall Interpreters LTD
Childrens Services,Children's Social Care,Service Strategy,89 CA Sec 17 Chld in Need BGW,Services - Professional Fees - Translation Fees,06/12/2017,3971408,885.00,Oncall Interpreters LTD
Childrens Services,No Service Specified,No Division Specified,Capital-Minor Works (SC),Other External Fees - Other External Fees,06/12/2017,3971433,500.00,Arcus Consulting LLP
Childrens Services,Children's Social Care,Youth Justice,Youth Justice Team,Services - Professional Fees - Translation Fees,06/12/2017,3971457,274.00,Oncall Interpreters LTD
Childrens Services,Children's Social Care,Children Looked After,S23-Resi-P&V/OLA-Child Home,Childrens Act Section 23 - Placement Fee,06/12/2017,3971494,"2,332.00",Horizon Residential Homes LTD
Childrens Services,Cultural and Related Services,Culture & Heritage,Arts-Park Events,Events & Exhibition Supplies,06/12/2017,3972132,"1,739.00",2CL Communications Ltd
Childrens Services,Children's Social Care,Children Looked After,Virtual School PPG,Subscriptions - Associations,06/12/2017,3972516,500.00,National Association of Virtual Heads
Childrens Services,Children's Social Care,Children Looked After,Leaving Care-UASC,Leaving Care Financial Assistance - Supp Accom/Hous Rents,06/12/2017,3973732,"1,265.70",Newhaven 16 Plus
Childrens Services,Education Services,Other Strategic Functions,Alternative Provision,Third Party Payments - Payments to Schools,06/12/2017,3974404,"3,000.00",George Green School
Childrens Services,Education Services,Other Strategic Functions,Alternative Provision,Third Party Payments - Payments to Schools,06/12/2017,3974405,"3,000.00",George Green School
Childrens Services,Education Services,Other Strategic Functions,Alternative Provision,Third Party Payments - Payments to Schools,06/12/2017,3974406,"3,000.00",RAINES FOUNDATION SCHOOL
Childrens Services,Education Services,Services to Young People and Other Community Learners,Further and Higher Education,Education Trust - Grant,06/12/2017,3974486,"4,000.00",London South Bank University
Childrens Services,Education Services,Other Strategic Functions,Special Education Needs DSG,Third Party Payments - Payments to Schools,06/12/2017,3974737,720.00,Supply Desk Ltd
Childrens Services,Children's Social Care,Children Looked After,S23-Other-Semi-Ind. Unit,Childrens Act Section 23 - Placement Fee,06/12/2017,3975368,"34,286.00",Netpex
Childrens Services,Education Services,Other Strategic Functions,Non-Statemented Ed.Placemts,Social Care - Nursing Care,06/12/2017,3977121,"2,625.00",Kibble Education and Care Centre
Childrens Services,Children's Social Care,Children Looked After,S23-Resi-P&V/OLA-Sec Acc-Wel,Childrens Act Section 23 - Placement Fee,06/12/2017,3977121,"2,625.00",Kibble Education and Care Centre
Childrens Services,Children's Social Care,Children Looked After,S23-Other-Semi-Ind. Unit,Childrens Act Section 23 - Placement Fee,06/12/2017,3977571,"4,965.03",KPMS LTD
Childrens Services,Children's Social Care,Family Support Services,CNN Pool: Joint Family Support,Services - Professional Fees - Translation Fees,06/12/2017,3977672,929.10,Oncall Interpreters LTD
Childrens Services,Cultural and Related Services,Culture & Heritage,Arts-Park Events,Events & Exhibition Supplies,06/12/2017,3977966,"3,150.00",Redacted Section 40 FOI Act
Childrens Services,Adult Social Care,Support Service and Management Costs,Org Development L&D Training,Training Expenses - Staff External Training (UK Based),06/12/2017,3977978,650.00,Mental Health Trainers & Associates
Childrens Services,Cultural and Related Services,Culture & Heritage,Arts-Park Events,Events & Exhibition Supplies,06/12/2017,3977979,"12,000.00",Redacted Section 40 FOI Act
Childrens Services,Children's Social Care,Service Strategy,Child Care M & A,Stationery,06/12/2017,3977992,486.00,Love2Reward
Childrens Services,Adult Social Care,Support Service and Management Costs,Org Development L&D Training,Training Expenses - Staff External Training (UK Based),06/12/2017,3978066,730.00,Mental Health Trainers & Associates
Childrens Services,Adult Social Care,Support Service and Management Costs,Org Development L&D Training,Training Expenses - Staff External Training (UK Based),06/12/2017,3978085,750.00,Mental Health Trainers & Associates
Childrens Services,Children's Social Care,Family Support Services,Eva Armsby Family Centre,Services - Professional Fees - Legal Fees/Expenses,06/12/2017,3978179,"2,219.00",EF Focus Ltd
Childrens Services,Education Services,Other Strategic Functions,Music Trading Account,Meeting Expenses,06/12/2017,3978342,300.00,Osmani Trust
Childrens Services,Children's Social Care,Support Service and Management Costs,Sch. Meals A/c - Central Production Unit,Kitchen Supplies - Food and Beverages,06/12/2017,3978426,374.16,Prescott-Thomas LTD.
Childrens Services,Children's Social Care,Support Service and Management Costs,Sch. Meals A/c - Central Production Unit,Kitchen Supplies - Food and Beverages,06/12/2017,3978436,374.16,Prescott-Thomas LTD.
Childrens Services,Education Services,Other Strategic Functions,Parents Advice Centre,Education & Training - Non Staff Tuition Fees,06/12/2017,3978922,275.00,ACE Education Training LLP
Childrens Services,Children's Social Care,Support Service and Management Costs,Sch. Meals A/c - Stebon,Kitchen Supplies - Catering Equipment,06/12/2017,3978937,407.00,W V Howe LTD
Childrens Services,Children's Social Care,Support Service and Management Costs,Sch. Meals A/c - Old Ford,Kitchen Supplies - Catering Equipment,06/12/2017,3978940,722.50,W V Howe LTD
Childrens Services,Children's Social Care,Children Looked After,Leaving Care-UASC,Leaving Care Financial Assistance - Supp Accom/Hous Rents,08/12/2017,3964716,"6,683.75",Light Touch Accomodation Ltd
Childrens Services,Children's Social Care,Children Looked After,Leaving Care-UASC,Leaving Care Financial Assistance - Supp Accom/Hous Rents,08/12/2017,3964717,"6,683.75",Light Touch Accomodation Ltd
Childrens Services,Children's Social Care,Children Looked After,Leaving Care-UASC,Leaving Care Financial Assistance - Supp Accom/Hous Rents,08/12/2017,3964718,"6,683.75",Light Touch Accomodation Ltd
Childrens Services,Children's Social Care,Children Looked After,Leaving Care-UASC,Leaving Care Financial Assistance - Supp Accom/Hous Rents,08/12/2017,3964719,"6,683.75",Light Touch Accomodation Ltd
Childrens Services,Children's Social Care,Support Service and Management Costs,Sch. Meals A/c - P.D.C. Cateen,Kitchen Supplies - Food and Beverages,08/12/2017,3967911,251.28,Thomas Ridley & Son Ltd
Childrens Services,Children's Social Care,Support Service and Management Costs,Schools Catering,Kitchen Supplies - Food and Beverages,08/12/2017,3968097,733.05,Thomas Ridley & Son Ltd
Childrens Services,Children's Social Care,Support Service and Management Costs,Schools Catering,Kitchen Supplies - Food and Beverages,08/12/2017,3968101,364.66,Thomas Ridley & Son Ltd
Childrens Services,Children's Social Care,Support Service and Management Costs,Schools Catering,Kitchen Supplies - Food and Beverages,08/12/2017,3968105,271.36,Thomas Ridley & Son Ltd
Childrens Services,Children's Social Care,Support Service and Management Costs,Schools Catering,Kitchen Supplies - Food and Beverages,08/12/2017,3968107,396.10,Thomas Ridley & Son Ltd
Childrens Services,Children's Social Care,Support Service and Management Costs,Schools Catering,Kitchen Supplies - Food and Beverages,08/12/2017,3968109,341.45,Thomas Ridley & Son Ltd
Childrens Services,Cultural and Related Services,Culture & Heritage,Arts-Park Events,Events & Exhibition Supplies,08/12/2017,3968187,"17,570.00",Magpie Resources
Childrens Services,Education Services,Other Strategic Functions,High Needs FE Colleges,Third Party Payments - Payments to Schools,08/12/2017,3968273,"8,203.00",City Gateway 14-19 Provision
Childrens Services,Children's Social Care,Children Looked After,Leaving Care-UASC,Leaving Care Financial Assistance - Supp Accom/Hous Rents,08/12/2017,3968276,"5,805.31",Light Touch Accomodation Ltd
Childrens Services,Children's Social Care,Children Looked After,Leaving Care-UASC,Leaving Care Financial Assistance - Supp Accom/Hous Rents,08/12/2017,3968277,"6,683.75",Light Touch Accomodation Ltd
Childrens Services,Children's Social Care,Children Looked After,Leaving Care-UASC,Leaving Care Financial Assistance - Supp Accom/Hous Rents,08/12/2017,3968278,"6,683.75",Light Touch Accomodation Ltd
Childrens Services,Children's Social Care,Children Looked After,Leaving Care-UASC,Leaving Care Financial Assistance - Supp Accom/Hous Rents,08/12/2017,3968279,"6,683.75",Light Touch Accomodation Ltd
Childrens Services,Children's Social Care,Commissioning and Social Work,Family Support & Protection Team 2,Services - Professional Fees - Translation Fees,08/12/2017,3968555,715.50,Oncall Interpreters LTD
Childrens Services,Children's Social Care,Support Service and Management Costs,Swanlea,Kitchen Supplies - Food and Beverages,08/12/2017,3968650,876.24,William White Meats Ltd
Childrens Services,Children's Social Care,Support Service and Management Costs,Sch. Meals A/c - Central Production Unit,Kitchen Supplies - Food and Beverages,08/12/2017,3968661,"1,811.56",William White Meats Ltd
Childrens Services,Children's Social Care,Support Service and Management Costs,Schools Catering,Kitchen Supplies - Food and Beverages,08/12/2017,3968945,626.60,William White Meats Ltd
Childrens Services,Children's Social Care,Support Service and Management Costs,Schools Catering,Kitchen Supplies - Food and Beverages,08/12/2017,3969591,429.49,William White Meats Ltd
Childrens Services,Children's Social Care,Support Service and Management Costs,Schools Catering,Kitchen Supplies - Food and Beverages,08/12/2017,3969613,322.66,William White Meats Ltd
Childrens Services,Children's Social Care,Support Service and Management Costs,Schools Catering,Kitchen Supplies - Food and Beverages,08/12/2017,3969657,301.78,William White Meats Ltd
Childrens Services,Children's Social Care,Support Service and Management Costs,Schools Catering,Kitchen Supplies - Food and Beverages,08/12/2017,3969694,420.41,William White Meats Ltd
Childrens Services,Children's Social Care,Support Service and Management Costs,Schools Catering,Kitchen Supplies - Food and Beverages,08/12/2017,3970236,522.40,William White Meats Ltd
Childrens Services,Children's Social Care,Support Service and Management Costs,Schools Catering,Kitchen Supplies - Food and Beverages,08/12/2017,3970241,300.47,William White Meats Ltd
Childrens Services,Children's Social Care,Support Service and Management Costs,Schools Catering,Kitchen Supplies - Food and Beverages,08/12/2017,3970247,446.22,William White Meats Ltd
Childrens Services,Children's Social Care,Support Service and Management Costs,Schools Catering,Kitchen Supplies - Food and Beverages,08/12/2017,3970251,323.62,William White Meats Ltd
Childrens Services,Children's Social Care,Support Service and Management Costs,Schools Catering,Kitchen Supplies - Food and Beverages,08/12/2017,3970253,283.91,William White Meats Ltd
Childrens Services,Children's Social Care,Support Service and Management Costs,Schools Catering,Kitchen Supplies - Food and Beverages,08/12/2017,3970255,250.60,William White Meats Ltd
Childrens Services,Children's Social Care,Support Service and Management Costs,Schools Catering,Kitchen Supplies - Food and Beverages,08/12/2017,3970259,265.67,William White Meats Ltd
Childrens Services,Children's Social Care,Support Service and Management Costs,Schools Catering,Kitchen Supplies - Food and Beverages,08/12/2017,3970261,442.39,William White Meats Ltd
Childrens Services,Children's Social Care,Children's and Young People's Safety,CLA Reviewing Service,Non Staff Transport Costs - Reimbursement,08/12/2017,3970300,"1,081.10",RSP Rail Travel (Rail Settlement Plan)
Childrens Services,Education Services,Secondary Schools,PFI Hldg Account-Grouped Schoo,Repairs and Maintenance - Responsive - Buildings,08/12/2017,3970342,253.99,Tower Hamlets Schools LTD
Childrens Services,Education Services,Secondary Schools,PFI Hldg Account-Grouped Schoo,Repairs and Maintenance - Responsive - Buildings,08/12/2017,3970343,890.91,Tower Hamlets Schools LTD
Childrens Services,Education Services,Secondary Schools,PFI Hldg Account-Grouped Schoo,Repairs and Maintenance - Responsive - Buildings,08/12/2017,3970344,956.77,Tower Hamlets Schools LTD
Childrens Services,Education Services,Secondary Schools,PFI Hldg Account-Grouped Schoo,Repairs and Maintenance - Responsive - Buildings,08/12/2017,3970345,"9,308.03",Tower Hamlets Schools LTD
Childrens Services,Education Services,Secondary Schools,PFI Hldg Account-Grouped Schoo,Repairs and Maintenance - Responsive - Buildings,08/12/2017,3970347,"9,937.73",Tower Hamlets Schools LTD
Childrens Services,Children's Social Care,Family Support Services,Short Breaks and Family Support,Third Party Payments - Voluntary Associations,08/12/2017,3970436,"14,419.62",Childrens Specialist Services SENSE
Childrens Services,Children's Social Care,Children Looked After,LCS/Allowances-Accom,Leaving Care Financial Assistance - Grant Pay Special Needs,08/12/2017,3971324,"2,300.00",F & J Consults Ltd trading as Greenbridge 16 Plus
Childrens Services,Children's Social Care,Children Looked After,LCS/Allowances-Accom,Leaving Care Financial Assistance - Supp Accom/Hous Rents,08/12/2017,3971324,"1,000.00",F & J Consults Ltd trading as Greenbridge 16 Plus
Childrens Services,Education Services,Early Years,Marner. CC,Office Furniture/Equipment,08/12/2017,3971454,286.55,Yorkshire Purchasing Organisation
Childrens Services,Children's Social Care,Support Service and Management Costs,Schools Catering,Kitchen Supplies - Food and Beverages,08/12/2017,3972166,351.27,William White Meats Ltd
Childrens Services,Children's Social Care,Support Service and Management Costs,Welfare Catering,Kitchen Supplies - Food and Beverages,08/12/2017,3972167,320.83,William White Meats Ltd
Childrens Services,Children's Social Care,Support Service and Management Costs,Sch. Meals A/c - Central Production Unit,Kitchen Supplies - Food and Beverages,08/12/2017,3972168,411.70,William White Meats Ltd
Childrens Services,Children's Social Care,Support Service and Management Costs,Schools Catering,Kitchen Supplies - Food and Beverages,08/12/2017,3972237,300.60,William White Meats Ltd
Childrens Services,Children's Social Care,Support Service and Management Costs,Schools Catering,Kitchen Supplies - Food and Beverages,08/12/2017,3972257,328.08,William White Meats Ltd
Childrens Services,Children's Social Care,Support Service and Management Costs,Schools Catering,Kitchen Supplies - Food and Beverages,08/12/2017,3972270,334.52,William White Meats Ltd
Childrens Services,Children's Social Care,Support Service and Management Costs,Schools Catering,Kitchen Supplies - Food and Beverages,08/12/2017,3972274,985.80,William White Meats Ltd
Childrens Services,Children's Social Care,Support Service and Management Costs,Schools Catering,Kitchen Supplies - Food and Beverages,08/12/2017,3972278,357.36,William White Meats Ltd
Childrens Services,Children's Social Care,Support Service and Management Costs,Schools Catering,Kitchen Supplies - Food and Beverages,08/12/2017,3972282,473.35,William White Meats Ltd
Childrens Services,Children's Social Care,Support Service and Management Costs,Schools Catering,Kitchen Supplies - Food and Beverages,08/12/2017,3972286,399.35,William White Meats Ltd
Childrens Services,Children's Social Care,Support Service and Management Costs,Schools Catering,Kitchen Supplies - Food and Beverages,08/12/2017,3972294,544.05,William White Meats Ltd
Childrens Services,Children's Social Care,Support Service and Management Costs,Schools Catering,Kitchen Supplies - Food and Beverages,08/12/2017,3972301,309.59,William White Meats Ltd
Childrens Services,Children's Social Care,Support Service and Management Costs,Schools Catering,Kitchen Supplies - Food and Beverages,08/12/2017,3972304,360.50,William White Meats Ltd
Childrens Services,Children's Social Care,Support Service and Management Costs,Schools Catering,Kitchen Supplies - Food and Beverages,08/12/2017,3972310,257.15,William White Meats Ltd
Childrens Services,Children's Social Care,Support Service and Management Costs,Schools Catering,Kitchen Supplies - Food and Beverages,08/12/2017,3972314,"1,024.69",William White Meats Ltd
Childrens Services,Children's Social Care,Support Service and Management Costs,Schools Catering,Kitchen Supplies - Food and Beverages,08/12/2017,3972316,531.37,William White Meats Ltd
Childrens Services,Children's Social Care,Support Service and Management Costs,Schools Catering,Kitchen Supplies - Food and Beverages,08/12/2017,3972318,409.28,William White Meats Ltd
Childrens Services,Children's Social Care,Support Service and Management Costs,Schools Catering,Kitchen Supplies - Food and Beverages,08/12/2017,3972320,770.60,William White Meats Ltd
Childrens Services,Children's Social Care,Support Service and Management Costs,Schools Catering,Kitchen Supplies - Food and Beverages,08/12/2017,3972322,459.48,William White Meats Ltd
Childrens Services,Children's Social Care,Support Service and Management Costs,Schools Catering,Kitchen Supplies - Food and Beverages,08/12/2017,3972326,334.41,William White Meats Ltd
Childrens Services,Children's Social Care,Support Service and Management Costs,Schools Catering,Kitchen Supplies - Food and Beverages,08/12/2017,3972328,491.50,William White Meats Ltd
Childrens Services,Children's Social Care,Support Service and Management Costs,Schools Catering,Kitchen Supplies - Food and Beverages,08/12/2017,3972331,618.52,William White Meats Ltd
Childrens Services,Children's Social Care,Support Service and Management Costs,Schools Catering,Kitchen Supplies - Food and Beverages,08/12/2017,3972336,"1,177.05",William White Meats Ltd
Childrens Services,Children's Social Care,Support Service and Management Costs,Schools Catering,Kitchen Supplies - Food and Beverages,08/12/2017,3972340,319.76,William White Meats Ltd
Childrens Services,Children's Social Care,Support Service and Management Costs,Schools Catering,Kitchen Supplies - Food and Beverages,08/12/2017,3972342,574.99,William White Meats Ltd
Childrens Services,Children's Social Care,Support Service and Management Costs,Schools Catering,Kitchen Supplies - Food and Beverages,08/12/2017,3972353,345.86,William White Meats Ltd
Childrens Services,Children's Social Care,Support Service and Management Costs,Schools Catering,Kitchen Supplies - Food and Beverages,08/12/2017,3972355,286.44,William White Meats Ltd
Childrens Services,Children's Social Care,Support Service and Management Costs,Schools Catering,Kitchen Supplies - Food and Beverages,08/12/2017,3972357,334.16,William White Meats Ltd
Childrens Services,Children's Social Care,Support Service and Management Costs,Schools Catering,Kitchen Supplies - Food and Beverages,08/12/2017,3972359,441.02,William White Meats Ltd
Childrens Services,Children's Social Care,Support Service and Management Costs,Schools Catering,Kitchen Supplies - Food and Beverages,08/12/2017,3972361,956.40,William White Meats Ltd
Childrens Services,Children's Social Care,Support Service and Management Costs,Schools Catering,Kitchen Supplies - Food and Beverages,08/12/2017,3972364,319.70,William White Meats Ltd
Childrens Services,Children's Social Care,Support Service and Management Costs,Schools Catering,Kitchen Supplies - Food and Beverages,08/12/2017,3972368,312.29,William White Meats Ltd
Childrens Services,Children's Social Care,Support Service and Management Costs,Schools Catering,Kitchen Supplies - Food and Beverages,08/12/2017,3972370,412.62,William White Meats Ltd
Childrens Services,Children's Social Care,Support Service and Management Costs,Schools Catering,Kitchen Supplies - Food and Beverages,08/12/2017,3972374,269.18,William White Meats Ltd
Childrens Services,Children's Social Care,Support Service and Management Costs,Schools Catering,Kitchen Supplies - Food and Beverages,08/12/2017,3972377,361.02,William White Meats Ltd
Childrens Services,Children's Social Care,Support Service and Management Costs,Schools Catering,Kitchen Supplies - Food and Beverages,08/12/2017,3972382,272.24,William White Meats Ltd
Childrens Services,Children's Social Care,Support Service and Management Costs,Schools Catering,Kitchen Supplies - Food and Beverages,08/12/2017,3972384,309.62,William White Meats Ltd
Childrens Services,Children's Social Care,Support Service and Management Costs,Schools Catering,Kitchen Supplies - Food and Beverages,08/12/2017,3972389,396.07,William White Meats Ltd
Childrens Services,Education Services,Secondary Schools,PFI Hldg Account-Grouped Schoo,Payments to Private Contractors - Other Contractors,08/12/2017,3972513,"-1,001.79",Tower Hamlets Schools LTD
Childrens Services,Children's Social Care,Support Service and Management Costs,Welfare Catering,Kitchen Supplies - Food and Beverages,08/12/2017,3972555,649.97,Apetito LTD
Childrens Services,Education Services,Secondary Schools,PFI Hldg Account-Grouped Schoo,Payments to Private Contractors - Other Contractors,08/12/2017,3972922,"-1,001.79",Tower Hamlets Schools LTD
Childrens Services,Children's Social Care,Children Looked After,LCS/Allowances-Accom,Leaving Care Financial Assistance - Supp Accom/Hous Rents,08/12/2017,3973733,"1,500.00",Newhaven 16 Plus
Childrens Services,Children's Social Care,Children Looked After,Leaving Care-UASC,Leaving Care Financial Assistance - Supp Accom/Hous Rents,08/12/2017,3973734,929.10,Newhaven 16 Plus
Childrens Services,Children's Social Care,Children Looked After,LCS/Allowances-Accom,Leaving Care Financial Assistance - Supp Accom/Hous Rents,08/12/2017,3973735,929.10,Newhaven 16 Plus
Childrens Services,Children's Social Care,Children Looked After,LCS/Allowances-Accom,Leaving Care Financial Assistance - Supp Accom/Hous Rents,08/12/2017,3973736,929.10,Newhaven 16 Plus
Childrens Services,Children's Social Care,Children Looked After,LCS/Allowances-Accom,Leaving Care Financial Assistance - Supp Accom/Hous Rents,08/12/2017,3973737,929.10,Newhaven 16 Plus
Childrens Services,Children's Social Care,Children Looked After,LCS/Allowances-Accom,Leaving Care Financial Assistance - Supp Accom/Hous Rents,08/12/2017,3973738,402.61,Newhaven 16 Plus
Childrens Services,Children's Social Care,Children Looked After,LCS/Allowances-Accom,Leaving Care Financial Assistance - Supp Accom/Hous Rents,08/12/2017,3973739,929.10,Newhaven 16 Plus
Childrens Services,Children's Social Care,Children Looked After,LCS/Allowances-Accom,Leaving Care Financial Assistance - Supp Accom/Hous Rents,08/12/2017,3973741,929.10,Newhaven 16 Plus
Childrens Services,Children's Social Care,Children Looked After,LCS/Allowances-Accom,Leaving Care Financial Assistance - Supp Accom/Hous Rents,08/12/2017,3973742,-727.20,Newhaven 16 Plus
Childrens Services,Children's Social Care,Children Looked After,LCS/Allowances-Accom,Leaving Care Financial Assistance - Supp Accom/Hous Rents,08/12/2017,3973743,"1,071.30",Newhaven 16 Plus
Childrens Services,Children's Social Care,Children Looked After,Leaving Care-UASC,Leaving Care Financial Assistance - Supp Accom/Hous Rents,08/12/2017,3973744,"1,071.30",Newhaven 16 Plus
Childrens Services,Children's Social Care,Children Looked After,LCS/Allowances-Accom,Leaving Care Financial Assistance - Supp Accom/Hous Rents,08/12/2017,3973745,"1,114.92",Newhaven 16 Plus
Childrens Services,Children's Social Care,Children Looked After,Leaving Care-UASC,Leaving Care Financial Assistance - Supp Accom/Hous Rents,08/12/2017,3973746,929.10,Newhaven 16 Plus
Childrens Services,Children's Social Care,Children Looked After,LCS/Allowances-Accom,Leaving Care Financial Assistance - Supp Accom/Hous Rents,08/12/2017,3973747,929.10,Newhaven 16 Plus
Childrens Services,Children's Social Care,Children Looked After,LCS/Allowances-Accom,Leaving Care Financial Assistance - Grant Pay Special Needs,08/12/2017,3973797,"3,570.60",Newhaven 16 Plus
Childrens Services,Children's Social Care,Children Looked After,LCS/Allowances-Accom,Leaving Care Financial Assistance - Grant Pay Special Needs,08/12/2017,3973798,"3,570.60",Newhaven 16 Plus
Childrens Services,Children's Social Care,Children Looked After,LCS/Allowances-Accom,Leaving Care Financial Assistance - Grant Pay Special Needs,08/12/2017,3973799,478.50,Newhaven 16 Plus
Childrens Services,Children's Social Care,Children Looked After,LCS/Allowances-Accom,Leaving Care Financial Assistance - Grant Pay Special Needs,08/12/2017,3973800,"4,284.72",Newhaven 16 Plus
Childrens Services,Children's Social Care,Children Looked After,Leaving Care-UASC,Leaving Care Financial Assistance - Grant Pay Special Needs,08/12/2017,3973801,999.30,Newhaven 16 Plus
Childrens Services,Children's Social Care,Children Looked After,LCS/Allowances-Accom,Leaving Care Financial Assistance - Grant Pay Special Needs,08/12/2017,3973802,"3,570.60",Newhaven 16 Plus
Childrens Services,Children's Social Care,Children Looked After,LCS/Allowances-Accom,Leaving Care Financial Assistance - Supp Accom/Hous Rents,08/12/2017,3973816,"-1,454.30",Newhaven 16 Plus
Childrens Services,Children's Social Care,Children Looked After,LCS/Allowances-Accom,Leaving Care Financial Assistance - Supp Accom/Hous Rents,08/12/2017,3973818,-623.31,Newhaven 16 Plus
Childrens Services,Children's Social Care,Children Looked After,LCS/Allowances-Accom,Leaving Care Financial Assistance - Supp Accom/Hous Rents,08/12/2017,3973819,-727.20,Newhaven 16 Plus
Childrens Services,Children's Social Care,Support Service and Management Costs,Sch. Meals A/c - Bow School,Catering - Hospitality,08/12/2017,3974122,758.40,Tiffin Sandwiches
Childrens Services,Children's Social Care,Support Service and Management Costs,Sch. Meals A/c - C.F.S. Upper (Harley Grove),Catering - Hospitality,08/12/2017,3974123,750.50,Tiffin Sandwiches
Childrens Services,Children's Social Care,Support Service and Management Costs,Sch. Meals A/c - George Green,Catering - Hospitality,08/12/2017,3974124,711.00,Tiffin Sandwiches
Childrens Services,Children's Social Care,Support Service and Management Costs,Sch. Meals A/c - Langdon Park,Catering - Hospitality,08/12/2017,3974125,606.72,Tiffin Sandwiches
Childrens Services,Children's Social Care,Support Service and Management Costs,Sch. Meals A/c - Morpeth,Catering - Hospitality,08/12/2017,3974126,718.90,Tiffin Sandwiches
Childrens Services,Children's Social Care,Support Service and Management Costs,Sch. Meals A/c - Mulberry,Catering - Hospitality,08/12/2017,3974127,776.57,Tiffin Sandwiches
Childrens Services,Children's Social Care,Support Service and Management Costs,Sch. Meals A/c - Oaklands,Catering - Hospitality,08/12/2017,3974128,560.90,Tiffin Sandwiches
Childrens Services,Children's Social Care,Support Service and Management Costs,Sch. Meals A/c - Raines Foundation,Catering - Hospitality,08/12/2017,3974129,395.00,Tiffin Sandwiches
Childrens Services,Children's Social Care,Support Service and Management Costs,Sch. Meals A/c - St. Paul's Way Comm. Trust,Catering - Hospitality,08/12/2017,3974130,363.40,Tiffin Sandwiches
Childrens Services,Children's Social Care,Support Service and Management Costs,Sch. Meals A/c - Stepney Green,Catering - Hospitality,08/12/2017,3974131,474.00,Tiffin Sandwiches
Childrens Services,Education Services,Early Years,Chrisp St,Meeting Expenses,08/12/2017,3977587,"7,854.00",St Nicholas Church
Childrens Services,Education Services,Management and Support Services,Learning & Achievm't M&A GF,Training Expenses - Staff External Training (UK Based),08/12/2017,3978051,295.00,PUBLIC POLICY EXCHANGE
Childrens Services,Children's Social Care,Children Looked After,S23 Fam Pl P&V-F/Care,Childrens Act Section 23 - All Contact Expenses,08/12/2017,3978289,496.88,Limehouse Children Contact Centre LTD
Childrens Services,Children's Social Care,Children Looked After,S23-Other-Semi-Ind. Unit,Childrens Act Section 23 - Placement Fee,08/12/2017,3978876,"3,660.55",TSS Ltd
Childrens Services,Education Services,Other Strategic Functions,SEN External Travel,Non Staff Transport Costs - Reimbursement,08/12/2017,3978935,"36,137.00",Mile End Car Hire Limited
Childrens Services,Education Services,Other Strategic Functions,SEN External Travel,Non Staff Transport Costs - Reimbursement,08/12/2017,3978961,"41,617.00",TKG LTD T/A The Keen Group
Childrens Services,Education Services,Other Strategic Functions,SEN External Travel,Non Staff Transport Costs - Reimbursement,08/12/2017,3979034,"14,850.00",Mile End Car Hire Limited
Childrens Services,Education Services,Other Strategic Functions,Music Trading Account,Third Party Payments - Voluntary Associations,08/12/2017,3979043,550.00,Rich Mix Cultural Enterprises LTD
Childrens Services,Cultural and Related Services,Open Spaces,Mile End Park,Services - Professional Fees - Security Fees,08/12/2017,3979083,353.28,A P Security (North) LTD
Childrens Services,Cultural and Related Services,Open Spaces,Mile End Park,Services - Professional Fees - Security Fees,08/12/2017,3979090,323.84,A P Security (North) LTD
Childrens Services,Cultural and Related Services,Open Spaces,Mile End Park,Services - Professional Fees - Security Fees,08/12/2017,3979104,309.12,A P Security (North) LTD
Childrens Services,Cultural and Related Services,Open Spaces,Mile End Park,Services - Professional Fees - Security Fees,08/12/2017,3979111,397.44,A P Security (North) LTD
Childrens Services,Cultural and Related Services,Open Spaces,Mile End Park,Services - Professional Fees - Security Fees,08/12/2017,3979126,309.12,A P Security (North) LTD
Childrens Services,Cultural and Related Services,Open Spaces,Mile End Park,Services - Professional Fees - Security Fees,08/12/2017,3979133,250.24,A P Security (North) LTD
Childrens Services,Cultural and Related Services,Open Spaces,Mile End Park,Services - Professional Fees - Security Fees,08/12/2017,3979140,338.56,A P Security (North) LTD
Childrens Services,Cultural and Related Services,Open Spaces,Mile End Park,Services - Professional Fees - Security Fees,08/12/2017,3979146,323.84,A P Security (North) LTD
Childrens Services,Cultural and Related Services,Open Spaces,Mile End Park,Services - Professional Fees - Security Fees,08/12/2017,3979162,353.28,A P Security (North) LTD
Childrens Services,Cultural and Related Services,Open Spaces,Mile End Park,Services - Professional Fees - Security Fees,08/12/2017,3979167,368.00,A P Security (North) LTD
Childrens Services,Cultural and Related Services,Open Spaces,Mile End Park,Services - Professional Fees - Security Fees,08/12/2017,3979172,279.68,A P Security (North) LTD
Childrens Services,Cultural and Related Services,Open Spaces,Mile End Park,Services - Professional Fees - Security Fees,08/12/2017,3979179,368.00,A P Security (North) LTD
Childrens Services,Children's Social Care,Children Looked After,S23 Fam Pl In-Hse-S/Term F/C,Childrens Act Section 23 - Spec Pymnts Legal,08/12/2017,3979773,300.00,Redacted Section 40 FOI Act
Childrens Services,Children's Social Care,Support Service and Management Costs,Schools Catering,Kitchen Supplies - Food and Beverages,08/12/2017,3979882,395.55,Thomas Ridley & Son Ltd
Childrens Services,Cultural and Related Services,Culture & Heritage,Arts-Park Events,Events & Exhibition Supplies,08/12/2017,3979903,"1,040.00",Artel Scaffolding Ltd
Childrens Services,Children's Social Care,Support Service and Management Costs,Schools Catering,Kitchen Supplies - Food and Beverages,08/12/2017,3979904,273.36,Thomas Ridley & Son Ltd
Childrens Services,Children's Social Care,Support Service and Management Costs,Schools Catering,Kitchen Supplies - Food and Beverages,08/12/2017,3980088,672.07,Thomas Ridley & Son Ltd
Childrens Services,Children's Social Care,Support Service and Management Costs,Schools Catering,Kitchen Supplies - Food and Beverages,08/12/2017,3980103,442.80,Thomas Ridley & Son Ltd
Childrens Services,Children's Social Care,Support Service and Management Costs,Schools Catering,Kitchen Supplies - Food and Beverages,08/12/2017,3980145,258.11,Thomas Ridley & Son Ltd
Childrens Services,Children's Social Care,Support Service and Management Costs,Schools Catering,Kitchen Supplies - Food and Beverages,08/12/2017,3980151,267.08,Thomas Ridley & Son Ltd
Childrens Services,Children's Social Care,Support Service and Management Costs,Schools Catering,Kitchen Supplies - Food and Beverages,08/12/2017,3980155,288.70,Thomas Ridley & Son Ltd
Childrens Services,Children's Social Care,Support Service and Management Costs,Schools Catering,Kitchen Supplies - Food and Beverages,08/12/2017,3980159,389.74,Thomas Ridley & Son Ltd
Childrens Services,Children's Social Care,Support Service and Management Costs,Schools Catering,Kitchen Supplies - Food and Beverages,08/12/2017,3980163,315.17,Thomas Ridley & Son Ltd
Childrens Services,Children's Social Care,Support Service and Management Costs,Schools Catering,Kitchen Supplies - Food and Beverages,08/12/2017,3980172,428.40,Thomas Ridley & Son Ltd
Childrens Services,Children's Social Care,Support Service and Management Costs,Schools Catering,Kitchen Supplies - Food and Beverages,08/12/2017,3980176,261.20,Thomas Ridley & Son Ltd
Childrens Services,Children's Social Care,Support Service and Management Costs,Schools Catering,Kitchen Supplies - Food and Beverages,08/12/2017,3980180,376.12,Thomas Ridley & Son Ltd
Childrens Services,Children's Social Care,Support Service and Management Costs,Schools Catering,Kitchen Supplies - Food and Beverages,08/12/2017,3980186,766.69,Thomas Ridley & Son Ltd
Childrens Services,Children's Social Care,Support Service and Management Costs,Schools Catering,Kitchen Supplies - Food and Beverages,08/12/2017,3980195,292.20,Thomas Ridley & Son Ltd
Childrens Services,Children's Social Care,Support Service and Management Costs,Schools Catering,Kitchen Supplies - Food and Beverages,08/12/2017,3980198,634.82,Thomas Ridley & Son Ltd
Childrens Services,Children's Social Care,Support Service and Management Costs,Schools Catering,Kitchen Supplies - Food and Beverages,08/12/2017,3980200,378.04,Thomas Ridley & Son Ltd
Childrens Services,Children's Social Care,Support Service and Management Costs,Schools Catering,Kitchen Supplies - Food and Beverages,08/12/2017,3980203,597.33,Thomas Ridley & Son Ltd
Childrens Services,Children's Social Care,Support Service and Management Costs,Schools Catering,Kitchen Supplies - Food and Beverages,08/12/2017,3980206,366.09,Thomas Ridley & Son Ltd
Childrens Services,Children's Social Care,Support Service and Management Costs,Schools Catering,Kitchen Supplies - Food and Beverages,08/12/2017,3980215,295.74,Thomas Ridley & Son Ltd
Childrens Services,Children's Social Care,Support Service and Management Costs,Schools Catering,Kitchen Supplies - Food and Beverages,08/12/2017,3980219,405.83,Thomas Ridley & Son Ltd
Childrens Services,Children's Social Care,Support Service and Management Costs,Schools Catering,Kitchen Supplies - Food and Beverages,08/12/2017,3980225,285.09,Thomas Ridley & Son Ltd
Childrens Services,Children's Social Care,Support Service and Management Costs,Schools Catering,Kitchen Supplies - Food and Beverages,08/12/2017,3980228,378.54,Thomas Ridley & Son Ltd
Childrens Services,Children's Social Care,Support Service and Management Costs,Schools Catering,Kitchen Supplies - Food and Beverages,08/12/2017,3980230,297.53,Thomas Ridley & Son Ltd
Childrens Services,Children's Social Care,Support Service and Management Costs,Schools Catering,Kitchen Supplies - Food and Beverages,08/12/2017,3980232,532.14,Thomas Ridley & Son Ltd
Childrens Services,Children's Social Care,Support Service and Management Costs,Schools Catering,Kitchen Supplies - Food and Beverages,08/12/2017,3980233,489.44,Thomas Ridley & Son Ltd
Childrens Services,Children's Social Care,Support Service and Management Costs,Schools Catering,Kitchen Supplies - Food and Beverages,08/12/2017,3980236,261.19,Thomas Ridley & Son Ltd
Childrens Services,Children's Social Care,Support Service and Management Costs,Schools Catering,Kitchen Supplies - Food and Beverages,08/12/2017,3980238,520.07,Thomas Ridley & Son Ltd
Childrens Services,Children's Social Care,Support Service and Management Costs,Schools Catering,Kitchen Supplies - Food and Beverages,08/12/2017,3980240,432.43,Thomas Ridley & Son Ltd
Childrens Services,Children's Social Care,Support Service and Management Costs,Schools Catering,Kitchen Supplies - Food and Beverages,08/12/2017,3980242,940.06,Thomas Ridley & Son Ltd
Childrens Services,Children's Social Care,Support Service and Management Costs,Schools Catering,Kitchen Supplies - Food and Beverages,08/12/2017,3980246,757.80,Thomas Ridley & Son Ltd
Childrens Services,Children's Social Care,Support Service and Management Costs,Schools Catering,Kitchen Supplies - Food and Beverages,08/12/2017,3980265,316.35,Thomas Ridley & Son Ltd
Childrens Services,Children's Social Care,Support Service and Management Costs,Schools Catering,Kitchen Supplies - Food and Beverages,08/12/2017,3980269,322.87,Thomas Ridley & Son Ltd
Childrens Services,Children's Social Care,Support Service and Management Costs,Schools Catering,Kitchen Supplies - Food and Beverages,08/12/2017,3980278,502.54,Thomas Ridley & Son Ltd
Childrens Services,Children's Social Care,Support Service and Management Costs,Schools Catering,Kitchen Supplies - Food and Beverages,08/12/2017,3980280,362.65,Thomas Ridley & Son Ltd
Childrens Services,Children's Social Care,Support Service and Management Costs,Schools Catering,Kitchen Supplies - Food and Beverages,08/12/2017,3980282,691.67,Thomas Ridley & Son Ltd
Childrens Services,Children's Social Care,Support Service and Management Costs,Schools Catering,Kitchen Supplies - Food and Beverages,08/12/2017,3980292,881.32,Thomas Ridley & Son Ltd
Childrens Services,Children's Social Care,Support Service and Management Costs,Schools Catering,Kitchen Supplies - Food and Beverages,08/12/2017,3980293,320.67,Thomas Ridley & Son Ltd
Childrens Services,Children's Social Care,Support Service and Management Costs,Schools Catering,Kitchen Supplies - Food and Beverages,08/12/2017,3980294,838.09,Thomas Ridley & Son Ltd
Childrens Services,Children's Social Care,Support Service and Management Costs,Schools Catering,Kitchen Supplies - Food and Beverages,08/12/2017,3980295,254.81,Thomas Ridley & Son Ltd
Childrens Services,Children's Social Care,Support Service and Management Costs,Schools Catering,Kitchen Supplies - Food and Beverages,08/12/2017,3980298,825.02,Thomas Ridley & Son Ltd
Childrens Services,Children's Social Care,Support Service and Management Costs,Schools Catering,Kitchen Supplies - Food and Beverages,08/12/2017,3980299,394.25,Thomas Ridley & Son Ltd
Childrens Services,Children's Social Care,Support Service and Management Costs,Schools Catering,Kitchen Supplies - Food and Beverages,08/12/2017,3980303,260.13,Thomas Ridley & Son Ltd
Childrens Services,Children's Social Care,Support Service and Management Costs,Schools Catering,Kitchen Supplies - Food and Beverages,08/12/2017,3980694,464.91,Thomas Ridley & Son Ltd
Childrens Services,Children's Social Care,Children Looked After,Leaving Care-UASC,Leaving Care Financial Assistance - Supp Accom/Hous Rents,08/12/2017,3980696,929.10,Newhaven 16 Plus
Childrens Services,Children's Social Care,Support Service and Management Costs,Schools Catering,Kitchen Supplies - Food and Beverages,11/12/2017,3968562,"1,031.87",Thomas Ridley & Son Ltd
Childrens Services,Children's Social Care,Support Service and Management Costs,"Mulberry Caf�		",Kitchen Supplies - Food and Beverages,11/12/2017,3968563,692.58,Thomas Ridley & Son Ltd
Childrens Services,Children's Social Care,Support Service and Management Costs,Welfare Catering,Kitchen Supplies - Food and Beverages,11/12/2017,3968564,400.78,Thomas Ridley & Son Ltd
Childrens Services,Children's Social Care,Support Service and Management Costs,Sch. Meals A/c - Central Production Unit,Kitchen Supplies - Food and Beverages,11/12/2017,3968565,"1,157.70",Thomas Ridley & Son Ltd
Childrens Services,Children's Social Care,Support Service and Management Costs,Toby Lane Function,Kitchen Supplies - Food and Beverages,11/12/2017,3968566,263.08,Thomas Ridley & Son Ltd
Childrens Services,Children's Social Care,Support Service and Management Costs,Sch. Meals A/c - P.D.C. Cateen,Kitchen Supplies - Food and Beverages,11/12/2017,3968567,290.59,Thomas Ridley & Son Ltd
Childrens Services,Education Services,Early Years,Ocean CC,Stationery,11/12/2017,3968630,273.02,Office Depot (Catalogue)
Childrens Services,Children's Social Care,Support Service and Management Costs,Sch. Meals A/c - Central Production Unit,Kitchen Supplies - Food and Beverages,11/12/2017,3968638,507.37,Thomas Ridley & Son Ltd
Childrens Services,Children's Social Care,Support Service and Management Costs,Schools Catering,Kitchen Supplies - Food and Beverages,11/12/2017,3968654,838.98,Thomas Ridley & Son Ltd
Childrens Services,Children's Social Care,Support Service and Management Costs,Schools Catering,Kitchen Supplies - Food and Beverages,11/12/2017,3968667,268.16,Thomas Ridley & Son Ltd
Childrens Services,Children's Social Care,Support Service and Management Costs,Schools Catering,Kitchen Supplies - Food and Beverages,11/12/2017,3968673,457.78,Thomas Ridley & Son Ltd
Childrens Services,Children's Social Care,Support Service and Management Costs,Schools Catering,Kitchen Supplies - Food and Beverages,11/12/2017,3968678,970.00,Thomas Ridley & Son Ltd
Childrens Services,Children's Social Care,Support Service and Management Costs,Schools Catering,Kitchen Supplies - Food and Beverages,11/12/2017,3968682,453.21,Thomas Ridley & Son Ltd
Childrens Services,Children's Social Care,Support Service and Management Costs,Schools Catering,Kitchen Supplies - Food and Beverages,11/12/2017,3968686,297.00,Thomas Ridley & Son Ltd
Childrens Services,Children's Social Care,Support Service and Management Costs,Schools Catering,Kitchen Supplies - Food and Beverages,11/12/2017,3968690,368.50,Thomas Ridley & Son Ltd
Childrens Services,Children's Social Care,Support Service and Management Costs,Schools Catering,Kitchen Supplies - Food and Beverages,11/12/2017,3968694,684.19,Thomas Ridley & Son Ltd
Childrens Services,Children's Social Care,Support Service and Management Costs,Schools Catering,Kitchen Supplies - Food and Beverages,11/12/2017,3968702,406.61,Thomas Ridley & Son Ltd
Childrens Services,Children's Social Care,Support Service and Management Costs,Schools Catering,Kitchen Supplies - Food and Beverages,11/12/2017,3968706,"1,027.73",Thomas Ridley & Son Ltd
Childrens Services,Children's Social Care,Support Service and Management Costs,Schools Catering,Kitchen Supplies - Food and Beverages,11/12/2017,3968710,715.57,Thomas Ridley & Son Ltd
Childrens Services,Children's Social Care,Support Service and Management Costs,Schools Catering,Kitchen Supplies - Food and Beverages,11/12/2017,3968718,508.66,Thomas Ridley & Son Ltd
Childrens Services,Children's Social Care,Support Service and Management Costs,Schools Catering,Kitchen Supplies - Food and Beverages,11/12/2017,3968721,566.54,Thomas Ridley & Son Ltd
Childrens Services,Children's Social Care,Support Service and Management Costs,Schools Catering,Kitchen Supplies - Food and Beverages,11/12/2017,3968728,298.99,Prescott-Thomas LTD.
Childrens Services,Children's Social Care,Support Service and Management Costs,Schools Catering,Kitchen Supplies - Food and Beverages,11/12/2017,3968736,761.94,Thomas Ridley & Son Ltd
Childrens Services,Children's Social Care,Support Service and Management Costs,Schools Catering,Kitchen Supplies - Food and Beverages,11/12/2017,3968739,415.21,Thomas Ridley & Son Ltd
Childrens Services,Children's Social Care,Support Service and Management Costs,Schools Catering,Kitchen Supplies - Food and Beverages,11/12/2017,3968742,427.61,Thomas Ridley & Son Ltd
Childrens Services,Children's Social Care,Support Service and Management Costs,Schools Catering,Kitchen Supplies - Food and Beverages,11/12/2017,3968745,417.75,Thomas Ridley & Son Ltd
Childrens Services,Children's Social Care,Support Service and Management Costs,Schools Catering,Kitchen Supplies - Food and Beverages,11/12/2017,3968754,349.18,Thomas Ridley & Son Ltd
Childrens Services,Children's Social Care,Support Service and Management Costs,Schools Catering,Kitchen Supplies - Food and Beverages,11/12/2017,3968757,601.38,Thomas Ridley & Son Ltd
Childrens Services,Children's Social Care,Support Service and Management Costs,Schools Catering,Kitchen Supplies - Food and Beverages,11/12/2017,3968760,655.37,Thomas Ridley & Son Ltd
Childrens Services,Children's Social Care,Support Service and Management Costs,Schools Catering,Kitchen Supplies - Food and Beverages,11/12/2017,3968763,331.81,Thomas Ridley & Son Ltd
Childrens Services,Children's Social Care,Support Service and Management Costs,Schools Catering,Kitchen Supplies - Food and Beverages,11/12/2017,3968766,280.59,Thomas Ridley & Son Ltd
Childrens Services,Children's Social Care,Support Service and Management Costs,Schools Catering,Kitchen Supplies - Food and Beverages,11/12/2017,3968767,289.20,Prescott-Thomas LTD.
Childrens Services,Children's Social Care,Support Service and Management Costs,Schools Catering,Kitchen Supplies - Food and Beverages,11/12/2017,3968769,899.89,Thomas Ridley & Son Ltd
Childrens Services,Children's Social Care,Support Service and Management Costs,Schools Catering,Kitchen Supplies - Food and Beverages,11/12/2017,3968772,750.84,Thomas Ridley & Son Ltd
Childrens Services,Children's Social Care,Support Service and Management Costs,Schools Catering,Kitchen Supplies - Food and Beverages,11/12/2017,3968775,359.22,Thomas Ridley & Son Ltd
Childrens Services,Children's Social Care,Support Service and Management Costs,Schools Catering,Kitchen Supplies - Food and Beverages,11/12/2017,3968778,322.58,Thomas Ridley & Son Ltd
Childrens Services,Children's Social Care,Support Service and Management Costs,Schools Catering,Kitchen Supplies - Food and Beverages,11/12/2017,3968784,298.43,Thomas Ridley & Son Ltd
Childrens Services,Children's Social Care,Support Service and Management Costs,Schools Catering,Kitchen Supplies - Food and Beverages,11/12/2017,3968787,311.91,Thomas Ridley & Son Ltd
Childrens Services,Children's Social Care,Support Service and Management Costs,Schools Catering,Kitchen Supplies - Food and Beverages,11/12/2017,3968790,362.69,Thomas Ridley & Son Ltd
Childrens Services,Children's Social Care,Support Service and Management Costs,Schools Catering,Kitchen Supplies - Food and Beverages,11/12/2017,3968793,380.08,Thomas Ridley & Son Ltd
Childrens Services,Children's Social Care,Support Service and Management Costs,Schools Catering,Kitchen Supplies - Food and Beverages,11/12/2017,3968799,722.06,Thomas Ridley & Son Ltd
Childrens Services,Children's Social Care,Support Service and Management Costs,Schools Catering,Kitchen Supplies - Food and Beverages,11/12/2017,3968826,687.10,Thomas Ridley & Son Ltd
Childrens Services,Children's Social Care,Support Service and Management Costs,Schools Catering,Kitchen Supplies - Food and Beverages,11/12/2017,3968829,665.52,Thomas Ridley & Son Ltd
Childrens Services,Children's Social Care,Support Service and Management Costs,Schools Catering,Kitchen Supplies - Food and Beverages,11/12/2017,3968832,893.91,Thomas Ridley & Son Ltd
Childrens Services,Children's Social Care,Support Service and Management Costs,Schools Catering,Kitchen Supplies - Food and Beverages,11/12/2017,3968833,266.73,Prescott-Thomas LTD.
Childrens Services,Children's Social Care,Support Service and Management Costs,Schools Catering,Kitchen Supplies - Food and Beverages,11/12/2017,3968835,606.85,Thomas Ridley & Son Ltd
Childrens Services,Children's Social Care,Support Service and Management Costs,Schools Catering,Kitchen Supplies - Food and Beverages,11/12/2017,3968838,385.70,Thomas Ridley & Son Ltd
Childrens Services,Children's Social Care,Support Service and Management Costs,Schools Catering,Kitchen Supplies - Food and Beverages,11/12/2017,3968841,446.75,Thomas Ridley & Son Ltd
Childrens Services,Children's Social Care,Support Service and Management Costs,Schools Catering,Kitchen Supplies - Food and Beverages,11/12/2017,3968844,455.73,Thomas Ridley & Son Ltd
Childrens Services,Children's Social Care,Support Service and Management Costs,Schools Catering,Kitchen Supplies - Food and Beverages,11/12/2017,3968847,268.25,Thomas Ridley & Son Ltd
Childrens Services,Children's Social Care,Support Service and Management Costs,Schools Catering,Kitchen Supplies - Food and Beverages,11/12/2017,3968853,338.72,Thomas Ridley & Son Ltd
Childrens Services,Children's Social Care,Support Service and Management Costs,Schools Catering,Kitchen Supplies - Food and Beverages,11/12/2017,3968856,726.57,Thomas Ridley & Son Ltd
Childrens Services,Children's Social Care,Support Service and Management Costs,Schools Catering,Kitchen Supplies - Food and Beverages,11/12/2017,3968860,289.07,Thomas Ridley & Son Ltd
Childrens Services,Children's Social Care,Support Service and Management Costs,Schools Catering,Kitchen Supplies - Food and Beverages,11/12/2017,3968863,520.33,Thomas Ridley & Son Ltd
Childrens Services,Children's Social Care,Support Service and Management Costs,Schools Catering,Kitchen Supplies - Food and Beverages,11/12/2017,3968866,338.82,Thomas Ridley & Son Ltd
Childrens Services,Children's Social Care,Support Service and Management Costs,Schools Catering,Kitchen Supplies - Food and Beverages,11/12/2017,3968872,573.20,Thomas Ridley & Son Ltd
Childrens Services,Children's Social Care,Support Service and Management Costs,Schools Catering,Kitchen Supplies - Food and Beverages,11/12/2017,3968875,254.65,Thomas Ridley & Son Ltd
Childrens Services,Children's Social Care,Support Service and Management Costs,Schools Catering,Kitchen Supplies - Food and Beverages,11/12/2017,3968879,355.60,Thomas Ridley & Son Ltd
Childrens Services,Children's Social Care,Support Service and Management Costs,Schools Catering,Kitchen Supplies - Food and Beverages,11/12/2017,3968888,261.05,Thomas Ridley & Son Ltd
Childrens Services,Children's Social Care,Support Service and Management Costs,Schools Catering,Kitchen Supplies - Food and Beverages,11/12/2017,3968895,299.82,Thomas Ridley & Son Ltd
Childrens Services,Children's Social Care,Support Service and Management Costs,Schools Catering,Kitchen Supplies - Food and Beverages,11/12/2017,3968901,506.24,Thomas Ridley & Son Ltd
Childrens Services,Children's Social Care,Support Service and Management Costs,Schools Catering,Kitchen Supplies - Food and Beverages,11/12/2017,3968908,283.54,Thomas Ridley & Son Ltd
Childrens Services,Children's Social Care,Support Service and Management Costs,Schools Catering,Kitchen Supplies - Food and Beverages,11/12/2017,3968916,334.73,Thomas Ridley & Son Ltd
Childrens Services,Children's Social Care,Support Service and Management Costs,Schools Catering,Kitchen Supplies - Food and Beverages,11/12/2017,3968923,331.29,Thomas Ridley & Son Ltd
Childrens Services,Children's Social Care,Support Service and Management Costs,Schools Catering,Kitchen Supplies - Food and Beverages,11/12/2017,3968934,286.78,Thomas Ridley & Son Ltd
Childrens Services,Children's Social Care,Support Service and Management Costs,Schools Catering,Kitchen Supplies - Food and Beverages,11/12/2017,3968938,293.63,Thomas Ridley & Son Ltd
Childrens Services,Children's Social Care,Support Service and Management Costs,Schools Catering,Kitchen Supplies - Food and Beverages,11/12/2017,3968948,780.52,Thomas Ridley & Son Ltd
Childrens Services,Children's Social Care,Support Service and Management Costs,Schools Catering,Kitchen Supplies - Food and Beverages,11/12/2017,3968950,434.47,Thomas Ridley & Son Ltd
Childrens Services,Children's Social Care,Support Service and Management Costs,Schools Catering,Kitchen Supplies - Food and Beverages,11/12/2017,3968954,336.93,Thomas Ridley & Son Ltd
Childrens Services,Children's Social Care,Support Service and Management Costs,Schools Catering,Kitchen Supplies - Food and Beverages,11/12/2017,3968956,569.68,Thomas Ridley & Son Ltd
Childrens Services,Children's Social Care,Support Service and Management Costs,Schools Catering,Kitchen Supplies - Food and Beverages,11/12/2017,3968958,726.67,Thomas Ridley & Son Ltd
Childrens Services,Children's Social Care,Support Service and Management Costs,Schools Catering,Kitchen Supplies - Food and Beverages,11/12/2017,3968960,669.91,Thomas Ridley & Son Ltd
Childrens Services,Children's Social Care,Support Service and Management Costs,Schools Catering,Kitchen Supplies - Food and Beverages,11/12/2017,3968962,472.09,Thomas Ridley & Son Ltd
Childrens Services,Children's Social Care,Support Service and Management Costs,Schools Catering,Kitchen Supplies - Food and Beverages,11/12/2017,3968966,502.19,Thomas Ridley & Son Ltd
Childrens Services,Cultural and Related Services,Recreation & Sport,"Poplar Baths		",Payments to Private Contractors - Other Contractors,11/12/2017,3969404,"128,217.37",Folera Ltd
Childrens Services,Education Services,Early Years,Ocean CC,Stationery,11/12/2017,3969411,487.73,Office Depot (Catalogue)
Childrens Services,Children's Social Care,Support Service and Management Costs,Sch. Meals A/c - Central Production Unit,Kitchen Supplies - Food and Beverages,11/12/2017,3969463,"1,420.35",Thomas Ridley & Son Ltd
Childrens Services,Children's Social Care,Support Service and Management Costs,Welfare Catering,Kitchen Supplies - Food and Beverages,11/12/2017,3969464,620.46,Thomas Ridley & Son Ltd
Childrens Services,Children's Social Care,Support Service and Management Costs,"Mulberry Caf�		",Kitchen Supplies - Food and Beverages,11/12/2017,3969588,520.87,Thomas Ridley & Son Ltd
Childrens Services,Children's Social Care,Support Service and Management Costs,Schools Catering,Kitchen Supplies - Food and Beverages,11/12/2017,3969653,-302.19,Thomas Ridley & Son Ltd
Childrens Services,Children's Social Care,Support Service and Management Costs,Schools Catering,Kitchen Supplies - Food and Beverages,11/12/2017,3969670,303.53,Thomas Ridley & Son Ltd
Childrens Services,Children's Social Care,Support Service and Management Costs,Schools Catering,Kitchen Supplies - Food and Beverages,11/12/2017,3969672,264.89,Thomas Ridley & Son Ltd
Childrens Services,Children's Social Care,Support Service and Management Costs,Schools Catering,Kitchen Supplies - Food and Beverages,11/12/2017,3969674,299.70,Thomas Ridley & Son Ltd
Childrens Services,Children's Social Care,Support Service and Management Costs,Schools Catering,Kitchen Supplies - Food and Beverages,11/12/2017,3969688,460.31,Thomas Ridley & Son Ltd
Childrens Services,Children's Social Care,Support Service and Management Costs,Schools Catering,Kitchen Supplies - Food and Beverages,11/12/2017,3969691,284.08,Thomas Ridley & Son Ltd
Childrens Services,Children's Social Care,Support Service and Management Costs,Schools Catering,Kitchen Supplies - Food and Beverages,11/12/2017,3969700,750.23,Thomas Ridley & Son Ltd
Childrens Services,Children's Social Care,Support Service and Management Costs,Schools Catering,Kitchen Supplies - Food and Beverages,11/12/2017,3970229,341.54,Thomas Ridley & Son Ltd
Childrens Services,Children's Social Care,Support Service and Management Costs,Schools Catering,Kitchen Supplies - Food and Beverages,11/12/2017,3970231,464.45,Thomas Ridley & Son Ltd
Childrens Services,Children's Social Care,Support Service and Management Costs,Schools Catering,Kitchen Supplies - Food and Beverages,11/12/2017,3970233,638.42,Thomas Ridley & Son Ltd
Childrens Services,Children's Social Care,Support Service and Management Costs,Schools Catering,Kitchen Supplies - Food and Beverages,11/12/2017,3970235,515.24,Thomas Ridley & Son Ltd
Childrens Services,Children's Social Care,Support Service and Management Costs,Schools Catering,Kitchen Supplies - Food and Beverages,11/12/2017,3970237,841.05,Thomas Ridley & Son Ltd
Childrens Services,Children's Social Care,Support Service and Management Costs,Schools Catering,Kitchen Supplies - Food and Beverages,11/12/2017,3970240,521.91,Thomas Ridley & Son Ltd
Childrens Services,Children's Social Care,Support Service and Management Costs,Schools Catering,Kitchen Supplies - Food and Beverages,11/12/2017,3970242,745.18,Thomas Ridley & Son Ltd
Childrens Services,Children's Social Care,Support Service and Management Costs,Schools Catering,Kitchen Supplies - Food and Beverages,11/12/2017,3970244,256.46,Thomas Ridley & Son Ltd
Childrens Services,Children's Social Care,Support Service and Management Costs,Schools Catering,Kitchen Supplies - Food and Beverages,11/12/2017,3970246,264.50,Thomas Ridley & Son Ltd
Childrens Services,Children's Social Care,Support Service and Management Costs,Schools Catering,Kitchen Supplies - Food and Beverages,11/12/2017,3970248,637.19,Thomas Ridley & Son Ltd
Childrens Services,Children's Social Care,Support Service and Management Costs,Schools Catering,Kitchen Supplies - Food and Beverages,11/12/2017,3970250,362.53,Thomas Ridley & Son Ltd
Childrens Services,Children's Social Care,Support Service and Management Costs,Schools Catering,Kitchen Supplies - Food and Beverages,11/12/2017,3970252,328.90,Thomas Ridley & Son Ltd
Childrens Services,Children's Social Care,Support Service and Management Costs,Schools Catering,Kitchen Supplies - Food and Beverages,11/12/2017,3970254,930.31,Thomas Ridley & Son Ltd
Childrens Services,Children's Social Care,Support Service and Management Costs,Schools Catering,Kitchen Supplies - Food and Beverages,11/12/2017,3970256,633.07,Thomas Ridley & Son Ltd
Childrens Services,Children's Social Care,Support Service and Management Costs,Schools Catering,Kitchen Supplies - Food and Beverages,11/12/2017,3970258,302.93,Thomas Ridley & Son Ltd
Childrens Services,Children's Social Care,Support Service and Management Costs,Schools Catering,Kitchen Supplies - Food and Beverages,11/12/2017,3970266,377.87,Thomas Ridley & Son Ltd
Childrens Services,Children's Social Care,Support Service and Management Costs,Schools Catering,Kitchen Supplies - Food and Beverages,11/12/2017,3970268,313.86,Thomas Ridley & Son Ltd
Childrens Services,Children's Social Care,Support Service and Management Costs,Schools Catering,Kitchen Supplies - Food and Beverages,11/12/2017,3970270,443.08,Thomas Ridley & Son Ltd
Childrens Services,Children's Social Care,Support Service and Management Costs,Schools Catering,Kitchen Supplies - Food and Beverages,11/12/2017,3970272,462.32,Thomas Ridley & Son Ltd
Childrens Services,Children's Social Care,Support Service and Management Costs,Schools Catering,Kitchen Supplies - Food and Beverages,11/12/2017,3970274,409.70,Thomas Ridley & Son Ltd
Childrens Services,Children's Social Care,Support Service and Management Costs,Schools Catering,Kitchen Supplies - Food and Beverages,11/12/2017,3970276,403.05,Thomas Ridley & Son Ltd
Childrens Services,Children's Social Care,Support Service and Management Costs,Schools Catering,Kitchen Supplies - Food and Beverages,11/12/2017,3970277,283.96,Thomas Ridley & Son Ltd
Childrens Services,Children's Social Care,Support Service and Management Costs,Schools Catering,Kitchen Supplies - Food and Beverages,11/12/2017,3970284,356.43,Thomas Ridley & Son Ltd
Childrens Services,Children's Social Care,Support Service and Management Costs,Schools Catering,Kitchen Supplies - Food and Beverages,11/12/2017,3970286,687.87,Thomas Ridley & Son Ltd
Childrens Services,Children's Social Care,Support Service and Management Costs,Schools Catering,Kitchen Supplies - Food and Beverages,11/12/2017,3970293,499.47,Thomas Ridley & Son Ltd
Childrens Services,Education Services,Other Strategic Functions,Student Admissions,Training Expenses - Staff External Training (UK Based),11/12/2017,3970308,430.00,LLG Legal Training
Childrens Services,Children's Social Care,Support Service and Management Costs,Sch. Meals A/c - Central Production Unit,Kitchen Supplies - Food and Beverages,11/12/2017,3971417,374.16,Prescott-Thomas LTD.
Childrens Services,Children's Social Care,Children's and Young People's Safety,Child Protection Mgt & Admin,Meeting Expenses,11/12/2017,3971451,410.75,Account 3 Ltd
Childrens Services,Children's Social Care,Support Service and Management Costs,Professional Dev Centre,Office Furniture/Equipment,11/12/2017,3972105,"1,875.98",Unique Office Solutions
Childrens Services,Education Services,Services to Young People and Other Community Learners,Careers Service - Core,Computing - Purchase of Software,11/12/2017,3972576,708.22,Specialist Computer Centres PLC
Childrens Services,Cultural and Related Services,Open Spaces,Stepney Green,Repairs and Maintenance - Responsive - Buildings,11/12/2017,3973728,"1,780.00",Lubbe & Sons (Bulbs) Ltd
Childrens Services,Cultural and Related Services,Culture & Heritage,Arts-Park Events,Events & Exhibition Supplies,11/12/2017,3973748,254.45,Community Link Trading Ltd
Childrens Services,Cultural and Related Services,Open Spaces,Mile End Park,Rent Charges,11/12/2017,3974038,"6,543.95",Network Rail
Childrens Services,Cultural and Related Services,Open Spaces,Mile End Park,Rent Charges,11/12/2017,3974039,"10,297.30",Network Rail
Childrens Services,Cultural and Related Services,Open Spaces,Mile End Park,Rent Charges,11/12/2017,3974040,"2,258.37",Network Rail
Childrens Services,Education Services,Other Strategic Functions,CSF-Equalities Tracking & Dev,Third Party Payments - Other Establishments,11/12/2017,3974819,"1,900.00",Tower Hamlets Deaf Children's Society
Childrens Services,Education Services,Other Strategic Functions,CSF-Equalities Tracking & Dev,Education & Training - Non Staff Tuition Fees,11/12/2017,3974842,"3,750.00",University of Birmingham
Childrens Services,Children's Social Care,Family Support Services,Eva Armsby Family Centre,Services - Professional Fees - Legal Fees/Expenses,11/12/2017,3977913,950.50,Guardian Training Services Ltd
Childrens Services,Children's Social Care,Children Looked After,S23 Fam Pl In-Hse-For Adopt,Childrens Act Section 23 - Inter-Agency Fees,11/12/2017,3978146,"15,766.67",London Borough of Merton
Childrens Services,No Service Specified,No Division Specified,Capital-Minor Works (SC),Building Works - Main Works,11/12/2017,3979071,"39,591.44",CITY GATEWAY
Childrens Services,Education Services,Other Strategic Functions,Pupil & Student Services GF,Non Staff Transport Costs - Client Transport Costs,11/12/2017,3980681,"1,628.00",Lindel Services LTD - T/A Fox Transport
Childrens Services,Education Services,Other Strategic Functions,SEN External Travel,Non Staff Transport Costs - Reimbursement,11/12/2017,3980682,"87,763.00",Lindel Services LTD - T/A Fox Transport
Childrens Services,Education Services,Other Strategic Functions,Alternative Provision,Third Party Payments - Payments to Schools,11/12/2017,3980768,"3,000.00",BISHOP CHALLONER BOYS SCHOOL
Childrens Services,Education Services,Other Strategic Functions,Alternative Provision,Third Party Payments - Payments to Schools,11/12/2017,3980770,"3,000.00",George Green School
Childrens Services,Education Services,Other Strategic Functions,Alternative Provision,Third Party Payments - Payments to Schools,11/12/2017,3980772,"3,000.00",Green Spring Academy Shoreditch
Childrens Services,Education Services,Other Strategic Functions,Alternative Provision,Third Party Payments - Payments to Schools,11/12/2017,3980773,"4,000.00",BOW SCHOOL
Childrens Services,Education Services,Other Strategic Functions,Alternative Provision,Third Party Payments - Payments to Schools,11/12/2017,3980776,"3,000.00",LANGDON PARK SCHOOL
Childrens Services,Education Services,Other Strategic Functions,Alternative Provision,Third Party Payments - Payments to Schools,11/12/2017,3980777,"3,000.00",LANGDON PARK SCHOOL
Childrens Services,Children's Social Care,Support Service and Management Costs,Schools Catering,Kitchen Supplies - Food and Beverages,11/12/2017,3980781,"1,115.64",Thomas Ridley & Son Ltd
Childrens Services,Children's Social Care,Support Service and Management Costs,Swanlea,Kitchen Supplies - Food and Beverages,11/12/2017,3980783,-600.05,Thomas Ridley & Son Ltd
Childrens Services,Education Services,Other Strategic Functions,Alternative Provision,Third Party Payments - Payments to Schools,11/12/2017,3980812,"3,000.00",Sir John Cass Foundation&Redcoat School
Childrens Services,Education Services,Other Strategic Functions,Alternative Provision,Third Party Payments - Payments to Schools,11/12/2017,3980820,"3,000.00",BISHOP CHALLONER BOYS SCHOOL
Childrens Services,Children's Social Care,Support Service and Management Costs,Schools Catering,Kitchen Supplies - Food and Beverages,11/12/2017,3980822,271.69,Thomas Ridley & Son Ltd
Childrens Services,Education Services,Other Strategic Functions,Alternative Provision,Third Party Payments - Payments to Schools,11/12/2017,3980827,"3,000.00",BISHOP CHALLONER BOYS SCHOOL
Childrens Services,Children's Social Care,Support Service and Management Costs,Schools Catering,Kitchen Supplies - Food and Beverages,11/12/2017,3980829,422.94,Thomas Ridley & Son Ltd
Childrens Services,Education Services,Other Strategic Functions,Alternative Provision,Third Party Payments - Payments to Schools,11/12/2017,3980834,"3,000.00",Green Spring Academy Shoreditch
Childrens Services,Education Services,Other Strategic Functions,Alternative Provision,Third Party Payments - Payments to Schools,11/12/2017,3980840,"3,000.00",LANGDON PARK SCHOOL
Childrens Services,Education Services,Other Strategic Functions,Alternative Provision,Third Party Payments - Payments to Schools,11/12/2017,3980841,"3,000.00",Morpeth School
Childrens Services,Children's Social Care,Support Service and Management Costs,Schools Catering,Kitchen Supplies - Food and Beverages,11/12/2017,3980843,"1,193.37",Thomas Ridley & Son Ltd
Childrens Services,Education Services,Other Strategic Functions,Alternative Provision,Third Party Payments - Payments to Schools,11/12/2017,3980846,"3,000.00",Mulberry School for Girls
Childrens Services,Children's Social Care,Support Service and Management Costs,Schools Catering,Kitchen Supplies - Food and Beverages,11/12/2017,3980848,759.22,Thomas Ridley & Son Ltd
Childrens Services,Education Services,Other Strategic Functions,Alternative Provision,Third Party Payments - Payments to Schools,11/12/2017,3980851,"3,000.00",Oakland School
Childrens Services,Education Services,Other Strategic Functions,Alternative Provision,Third Party Payments - Payments to Schools,11/12/2017,3980852,"3,000.00",Oakland School
Childrens Services,Education Services,Other Strategic Functions,Alternative Provision,Third Party Payments - Payments to Schools,11/12/2017,3980857,"3,000.00",RAINES FOUNDATION SCHOOL
Childrens Services,Education Services,Other Strategic Functions,Alternative Provision,Third Party Payments - Payments to Schools,11/12/2017,3980859,"3,000.00",Sir John Cass Foundation&Redcoat School
Childrens Services,Children's Social Care,Support Service and Management Costs,Schools Catering,Kitchen Supplies - Food and Beverages,11/12/2017,3980861,733.30,Thomas Ridley & Son Ltd
Childrens Services,Education Services,Other Strategic Functions,Alternative Provision,Third Party Payments - Payments to Schools,11/12/2017,3980864,"4,000.00",ST Pauls Way Trust School
Childrens Services,Education Services,Other Strategic Functions,Alternative Provision,Third Party Payments - Payments to Schools,11/12/2017,3980865,"3,000.00",LBTH SWANLEA SCHOOL
Childrens Services,Children's Social Care,Support Service and Management Costs,Schools Catering,Kitchen Supplies - Food and Beverages,11/12/2017,3980867,357.11,Thomas Ridley & Son Ltd
Childrens Services,Children's Social Care,Support Service and Management Costs,Schools Catering,Kitchen Supplies - Food and Beverages,11/12/2017,3980872,434.86,Thomas Ridley & Son Ltd
Childrens Services,Education Services,Other Strategic Functions,Alternative Provision,Third Party Payments - Payments to Schools,11/12/2017,3980875,"3,000.00",LBTH SWANLEA SCHOOL
Childrens Services,Children's Social Care,Support Service and Management Costs,Schools Catering,Kitchen Supplies - Food and Beverages,11/12/2017,3980931,394.82,Thomas Ridley & Son Ltd
Childrens Services,Children's Social Care,Support Service and Management Costs,Schools Catering,Kitchen Supplies - Food and Beverages,11/12/2017,3980936,525.21,Thomas Ridley & Son Ltd
Childrens Services,Children's Social Care,Support Service and Management Costs,Schools Catering,Kitchen Supplies - Food and Beverages,11/12/2017,3980944,378.44,Thomas Ridley & Son Ltd
Childrens Services,Children's Social Care,Support Service and Management Costs,Schools Catering,Kitchen Supplies - Food and Beverages,11/12/2017,3980965,427.66,Thomas Ridley & Son Ltd
Childrens Services,Children's Social Care,Support Service and Management Costs,Schools Catering,Kitchen Supplies - Food and Beverages,11/12/2017,3980967,347.81,Thomas Ridley & Son Ltd
Childrens Services,Children's Social Care,Support Service and Management Costs,Schools Catering,Kitchen Supplies - Food and Beverages,11/12/2017,3980972,386.41,Thomas Ridley & Son Ltd
Childrens Services,Children's Social Care,Support Service and Management Costs,Schools Catering,Kitchen Supplies - Food and Beverages,11/12/2017,3980984,442.39,Thomas Ridley & Son Ltd
Childrens Services,Children's Social Care,Support Service and Management Costs,Schools Catering,Kitchen Supplies - Food and Beverages,11/12/2017,3980988,272.62,Thomas Ridley & Son Ltd
Childrens Services,Children's Social Care,Support Service and Management Costs,Schools Catering,Kitchen Supplies - Food and Beverages,11/12/2017,3980991,351.44,Thomas Ridley & Son Ltd
Childrens Services,Children's Social Care,Support Service and Management Costs,Schools Catering,Kitchen Supplies - Food and Beverages,11/12/2017,3981015,305.76,Thomas Ridley & Son Ltd
Childrens Services,Children's Social Care,Support Service and Management Costs,Schools Catering,Kitchen Supplies - Food and Beverages,11/12/2017,3981024,425.89,Thomas Ridley & Son Ltd
Childrens Services,Children's Social Care,Support Service and Management Costs,Schools Catering,Kitchen Supplies - Food and Beverages,11/12/2017,3981033,546.47,Thomas Ridley & Son Ltd
Childrens Services,Children's Social Care,Support Service and Management Costs,Schools Catering,Kitchen Supplies - Food and Beverages,11/12/2017,3981042,515.12,Thomas Ridley & Son Ltd
Childrens Services,Children's Social Care,Support Service and Management Costs,Schools Catering,Kitchen Supplies - Food and Beverages,11/12/2017,3981044,338.38,Thomas Ridley & Son Ltd
Childrens Services,Children's Social Care,Support Service and Management Costs,Schools Catering,Kitchen Supplies - Food and Beverages,11/12/2017,3981045,561.17,Thomas Ridley & Son Ltd
Childrens Services,Children's Social Care,Support Service and Management Costs,Schools Catering,Kitchen Supplies - Food and Beverages,11/12/2017,3981046,318.25,Thomas Ridley & Son Ltd
Childrens Services,Children's Social Care,Support Service and Management Costs,Schools Catering,Kitchen Supplies - Food and Beverages,11/12/2017,3981047,510.01,Thomas Ridley & Son Ltd
Childrens Services,Children's Social Care,Support Service and Management Costs,Schools Catering,Kitchen Supplies - Food and Beverages,11/12/2017,3981048,493.36,Thomas Ridley & Son Ltd
Childrens Services,Children's Social Care,Support Service and Management Costs,Schools Catering,Kitchen Supplies - Food and Beverages,11/12/2017,3981049,454.07,Thomas Ridley & Son Ltd
Childrens Services,Children's Social Care,Support Service and Management Costs,Schools Catering,Kitchen Supplies - Food and Beverages,11/12/2017,3981050,707.11,Thomas Ridley & Son Ltd
Childrens Services,Children's Social Care,Support Service and Management Costs,Schools Catering,Kitchen Supplies - Food and Beverages,11/12/2017,3981052,296.05,Thomas Ridley & Son Ltd
Childrens Services,Children's Social Care,Support Service and Management Costs,Schools Catering,Kitchen Supplies - Food and Beverages,11/12/2017,3981053,363.08,Thomas Ridley & Son Ltd
Childrens Services,Children's Social Care,Support Service and Management Costs,Schools Catering,Kitchen Supplies - Food and Beverages,11/12/2017,3981056,329.01,Thomas Ridley & Son Ltd
Childrens Services,Children's Social Care,Support Service and Management Costs,Schools Catering,Kitchen Supplies - Food and Beverages,11/12/2017,3981057,386.06,Thomas Ridley & Son Ltd
Childrens Services,Children's Social Care,Support Service and Management Costs,Schools Catering,Kitchen Supplies - Food and Beverages,11/12/2017,3981058,336.19,Thomas Ridley & Son Ltd
Childrens Services,Children's Social Care,Support Service and Management Costs,Schools Catering,Kitchen Supplies - Food and Beverages,11/12/2017,3981062,253.92,Thomas Ridley & Son Ltd
Childrens Services,Children's Social Care,Support Service and Management Costs,Schools Catering,Kitchen Supplies - Food and Beverages,11/12/2017,3981064,421.45,Thomas Ridley & Son Ltd
Childrens Services,Children's Social Care,Support Service and Management Costs,Schools Catering,Kitchen Supplies - Food and Beverages,11/12/2017,3981065,411.86,Thomas Ridley & Son Ltd
Childrens Services,Children's Social Care,Support Service and Management Costs,Schools Catering,Kitchen Supplies - Food and Beverages,11/12/2017,3981066,369.50,Thomas Ridley & Son Ltd
Childrens Services,Children's Social Care,Support Service and Management Costs,Schools Catering,Kitchen Supplies - Food and Beverages,11/12/2017,3981067,581.65,Thomas Ridley & Son Ltd
Childrens Services,Children's Social Care,Support Service and Management Costs,Schools Catering,Kitchen Supplies - Food and Beverages,11/12/2017,3981068,417.05,Thomas Ridley & Son Ltd
Childrens Services,Children's Social Care,Support Service and Management Costs,Schools Catering,Kitchen Supplies - Food and Beverages,11/12/2017,3981069,640.95,Thomas Ridley & Son Ltd
Childrens Services,Children's Social Care,Support Service and Management Costs,Schools Catering,Kitchen Supplies - Food and Beverages,11/12/2017,3981070,380.59,Thomas Ridley & Son Ltd
Childrens Services,Children's Social Care,Support Service and Management Costs,Schools Catering,Kitchen Supplies - Food and Beverages,11/12/2017,3981071,503.98,Thomas Ridley & Son Ltd
Childrens Services,Children's Social Care,Support Service and Management Costs,Schools Catering,Kitchen Supplies - Food and Beverages,11/12/2017,3981072,804.15,Thomas Ridley & Son Ltd
Childrens Services,Children's Social Care,Support Service and Management Costs,Schools Catering,Kitchen Supplies - Food and Beverages,11/12/2017,3981073,371.72,Thomas Ridley & Son Ltd
Childrens Services,Children's Social Care,Support Service and Management Costs,Schools Catering,Kitchen Supplies - Food and Beverages,11/12/2017,3981074,310.28,Thomas Ridley & Son Ltd
Childrens Services,Children's Social Care,Support Service and Management Costs,Schools Catering,Kitchen Supplies - Food and Beverages,11/12/2017,3981075,701.11,Thomas Ridley & Son Ltd
Childrens Services,Children's Social Care,Support Service and Management Costs,Schools Catering,Kitchen Supplies - Food and Beverages,11/12/2017,3981076,"1,073.86",Thomas Ridley & Son Ltd
Childrens Services,Children's Social Care,Support Service and Management Costs,Schools Catering,Kitchen Supplies - Food and Beverages,11/12/2017,3981077,958.38,Thomas Ridley & Son Ltd
Childrens Services,Children's Social Care,Support Service and Management Costs,Schools Catering,Kitchen Supplies - Food and Beverages,11/12/2017,3981078,512.33,Thomas Ridley & Son Ltd
Childrens Services,Children's Social Care,Support Service and Management Costs,Schools Catering,Kitchen Supplies - Food and Beverages,11/12/2017,3981079,489.13,Thomas Ridley & Son Ltd
Childrens Services,Children's Social Care,Support Service and Management Costs,Schools Catering,Kitchen Supplies - Food and Beverages,11/12/2017,3981080,413.07,Thomas Ridley & Son Ltd
Childrens Services,Children's Social Care,Support Service and Management Costs,Schools Catering,Kitchen Supplies - Food and Beverages,11/12/2017,3981081,253.53,Thomas Ridley & Son Ltd
Childrens Services,Children's Social Care,Support Service and Management Costs,Schools Catering,Kitchen Supplies - Food and Beverages,11/12/2017,3981082,790.16,Thomas Ridley & Son Ltd
Childrens Services,Children's Social Care,Support Service and Management Costs,Schools Catering,Kitchen Supplies - Food and Beverages,11/12/2017,3981084,"1,422.91",Thomas Ridley & Son Ltd
Childrens Services,Children's Social Care,Support Service and Management Costs,Schools Catering,Kitchen Supplies - Food and Beverages,11/12/2017,3981086,697.41,Thomas Ridley & Son Ltd
Childrens Services,Children's Social Care,Support Service and Management Costs,Schools Catering,Kitchen Supplies - Food and Beverages,11/12/2017,3981088,428.19,Thomas Ridley & Son Ltd
Childrens Services,Children's Social Care,Support Service and Management Costs,Schools Catering,Kitchen Supplies - Food and Beverages,11/12/2017,3981089,"1,037.71",Thomas Ridley & Son Ltd
Childrens Services,Children's Social Care,Support Service and Management Costs,Schools Catering,Kitchen Supplies - Food and Beverages,11/12/2017,3981090,"1,156.14",Thomas Ridley & Son Ltd
Childrens Services,Children's Social Care,Support Service and Management Costs,Schools Catering,Kitchen Supplies - Food and Beverages,11/12/2017,3981091,991.00,Thomas Ridley & Son Ltd
Childrens Services,Children's Social Care,Support Service and Management Costs,Schools Catering,Kitchen Supplies - Food and Beverages,11/12/2017,3981092,323.20,Thomas Ridley & Son Ltd
Childrens Services,Children's Social Care,Support Service and Management Costs,Schools Catering,Kitchen Supplies - Food and Beverages,11/12/2017,3981094,962.04,Thomas Ridley & Son Ltd
Childrens Services,Children's Social Care,Support Service and Management Costs,Schools Catering,Kitchen Supplies - Food and Beverages,11/12/2017,3981096,295.52,Thomas Ridley & Son Ltd
Childrens Services,Children's Social Care,Support Service and Management Costs,Schools Catering,Kitchen Supplies - Food and Beverages,11/12/2017,3981097,276.36,Thomas Ridley & Son Ltd
Childrens Services,Children's Social Care,Support Service and Management Costs,Schools Catering,Kitchen Supplies - Food and Beverages,11/12/2017,3981100,358.21,Thomas Ridley & Son Ltd
Childrens Services,Children's Social Care,Support Service and Management Costs,Schools Catering,Kitchen Supplies - Food and Beverages,11/12/2017,3981101,429.99,Thomas Ridley & Son Ltd
Childrens Services,Children's Social Care,Support Service and Management Costs,Schools Catering,Kitchen Supplies - Food and Beverages,11/12/2017,3981102,325.78,Thomas Ridley & Son Ltd
Childrens Services,Children's Social Care,Support Service and Management Costs,Schools Catering,Kitchen Supplies - Food and Beverages,11/12/2017,3981103,398.69,Thomas Ridley & Son Ltd
Childrens Services,Children's Social Care,Support Service and Management Costs,Schools Catering,Kitchen Supplies - Food and Beverages,11/12/2017,3981104,359.92,Thomas Ridley & Son Ltd
Childrens Services,Children's Social Care,Support Service and Management Costs,Schools Catering,Kitchen Supplies - Food and Beverages,11/12/2017,3981105,"1,300.82",Thomas Ridley & Son Ltd
Childrens Services,Children's Social Care,Support Service and Management Costs,Schools Catering,Kitchen Supplies - Food and Beverages,11/12/2017,3981107,777.18,Thomas Ridley & Son Ltd
Childrens Services,Children's Social Care,Support Service and Management Costs,Schools Catering,Kitchen Supplies - Food and Beverages,11/12/2017,3981108,911.78,Thomas Ridley & Son Ltd
Childrens Services,Children's Social Care,Support Service and Management Costs,Schools Catering,Kitchen Supplies - Food and Beverages,11/12/2017,3981109,"1,068.12",Thomas Ridley & Son Ltd
Childrens Services,Children's Social Care,Support Service and Management Costs,Schools Catering,Kitchen Supplies - Food and Beverages,11/12/2017,3981110,363.00,Thomas Ridley & Son Ltd
Childrens Services,Children's Social Care,Support Service and Management Costs,Schools Catering,Kitchen Supplies - Food and Beverages,11/12/2017,3981111,438.42,Thomas Ridley & Son Ltd
Childrens Services,Children's Social Care,Support Service and Management Costs,Schools Catering,Kitchen Supplies - Food and Beverages,11/12/2017,3981112,797.87,Thomas Ridley & Son Ltd
Childrens Services,Children's Social Care,Support Service and Management Costs,Schools Catering,Kitchen Supplies - Food and Beverages,11/12/2017,3981113,600.05,Thomas Ridley & Son Ltd
Childrens Services,Children's Social Care,Support Service and Management Costs,Schools Catering,Kitchen Supplies - Food and Beverages,11/12/2017,3981115,601.43,Thomas Ridley & Son Ltd
Childrens Services,Children's Social Care,Support Service and Management Costs,Schools Catering,Kitchen Supplies - Food and Beverages,11/12/2017,3981116,313.52,Thomas Ridley & Son Ltd
Childrens Services,Children's Social Care,Support Service and Management Costs,Schools Catering,Kitchen Supplies - Food and Beverages,11/12/2017,3981117,952.66,Thomas Ridley & Son Ltd
Childrens Services,Children's Social Care,Support Service and Management Costs,Schools Catering,Kitchen Supplies - Food and Beverages,11/12/2017,3981118,495.26,Thomas Ridley & Son Ltd
Childrens Services,Children's Social Care,Support Service and Management Costs,Schools Catering,Kitchen Supplies - Food and Beverages,11/12/2017,3981120,691.04,Thomas Ridley & Son Ltd
Childrens Services,Children's Social Care,Support Service and Management Costs,Schools Catering,Kitchen Supplies - Food and Beverages,11/12/2017,3981122,917.43,Thomas Ridley & Son Ltd
Childrens Services,Children's Social Care,Support Service and Management Costs,Schools Catering,Kitchen Supplies - Food and Beverages,11/12/2017,3981125,494.33,Thomas Ridley & Son Ltd
Childrens Services,Children's Social Care,Support Service and Management Costs,Schools Catering,Kitchen Supplies - Food and Beverages,11/12/2017,3981126,473.83,Thomas Ridley & Son Ltd
Childrens Services,Children's Social Care,Support Service and Management Costs,Schools Catering,Kitchen Supplies - Food and Beverages,11/12/2017,3981127,355.95,Thomas Ridley & Son Ltd
Childrens Services,Children's Social Care,Support Service and Management Costs,Schools Catering,Kitchen Supplies - Food and Beverages,11/12/2017,3981129,"1,349.41",Thomas Ridley & Son Ltd
Childrens Services,Children's Social Care,Support Service and Management Costs,Schools Catering,Kitchen Supplies - Food and Beverages,11/12/2017,3981132,842.55,Thomas Ridley & Son Ltd
Childrens Services,Children's Social Care,Support Service and Management Costs,Schools Catering,Kitchen Supplies - Food and Beverages,11/12/2017,3981133,971.24,Thomas Ridley & Son Ltd
Childrens Services,Children's Social Care,Support Service and Management Costs,Schools Catering,Kitchen Supplies - Food and Beverages,11/12/2017,3981134,661.40,Thomas Ridley & Son Ltd
Childrens Services,Children's Social Care,Support Service and Management Costs,Schools Catering,Kitchen Supplies - Food and Beverages,11/12/2017,3981135,316.46,Thomas Ridley & Son Ltd
Childrens Services,Children's Social Care,Support Service and Management Costs,Schools Catering,Kitchen Supplies - Food and Beverages,11/12/2017,3981136,886.87,Thomas Ridley & Son Ltd
Childrens Services,Children's Social Care,Support Service and Management Costs,Schools Catering,Kitchen Supplies - Food and Beverages,11/12/2017,3981137,"1,209.14",Thomas Ridley & Son Ltd
Childrens Services,Children's Social Care,Support Service and Management Costs,Schools Catering,Kitchen Supplies - Food and Beverages,11/12/2017,3981138,323.17,Thomas Ridley & Son Ltd
Childrens Services,Children's Social Care,Support Service and Management Costs,Schools Catering,Kitchen Supplies - Food and Beverages,11/12/2017,3981140,715.18,Thomas Ridley & Son Ltd
Childrens Services,Children's Social Care,Support Service and Management Costs,Schools Catering,Kitchen Supplies - Food and Beverages,11/12/2017,3981143,852.40,Thomas Ridley & Son Ltd
Childrens Services,Children's Social Care,Support Service and Management Costs,Schools Catering,Kitchen Supplies - Food and Beverages,11/12/2017,3981146,740.75,Thomas Ridley & Son Ltd
Childrens Services,Children's Social Care,Support Service and Management Costs,Schools Catering,Kitchen Supplies - Food and Beverages,11/12/2017,3981147,349.33,Thomas Ridley & Son Ltd
Childrens Services,Children's Social Care,Support Service and Management Costs,Schools Catering,Kitchen Supplies - Food and Beverages,11/12/2017,3981149,379.68,Thomas Ridley & Son Ltd
Childrens Services,Children's Social Care,Support Service and Management Costs,Schools Catering,Kitchen Supplies - Food and Beverages,11/12/2017,3981151,870.50,Thomas Ridley & Son Ltd
Childrens Services,Children's Social Care,Support Service and Management Costs,Schools Catering,Kitchen Supplies - Food and Beverages,11/12/2017,3981155,926.75,Thomas Ridley & Son Ltd
Childrens Services,Children's Social Care,Support Service and Management Costs,Schools Catering,Kitchen Supplies - Food and Beverages,11/12/2017,3981156,259.14,Thomas Ridley & Son Ltd
Childrens Services,Children's Social Care,Support Service and Management Costs,Schools Catering,Kitchen Supplies - Food and Beverages,11/12/2017,3981158,891.33,Thomas Ridley & Son Ltd
Childrens Services,Children's Social Care,Support Service and Management Costs,Schools Catering,Kitchen Supplies - Food and Beverages,11/12/2017,3981160,306.52,Thomas Ridley & Son Ltd
Childrens Services,Children's Social Care,Support Service and Management Costs,Schools Catering,Kitchen Supplies - Food and Beverages,11/12/2017,3981161,255.32,Thomas Ridley & Son Ltd
Childrens Services,Children's Social Care,Support Service and Management Costs,Schools Catering,Kitchen Supplies - Food and Beverages,11/12/2017,3981162,"1,377.66",Thomas Ridley & Son Ltd
Childrens Services,Children's Social Care,Support Service and Management Costs,Schools Catering,Kitchen Supplies - Food and Beverages,11/12/2017,3981166,252.32,Thomas Ridley & Son Ltd
Childrens Services,Children's Social Care,Support Service and Management Costs,Schools Catering,Kitchen Supplies - Food and Beverages,11/12/2017,3981167,378.44,Thomas Ridley & Son Ltd
Childrens Services,Children's Social Care,Support Service and Management Costs,Schools Catering,Kitchen Supplies - Food and Beverages,11/12/2017,3981170,527.02,Thomas Ridley & Son Ltd
Childrens Services,Children's Social Care,Support Service and Management Costs,Schools Catering,Kitchen Supplies - Food and Beverages,11/12/2017,3981174,452.27,Thomas Ridley & Son Ltd
Childrens Services,Children's Social Care,Support Service and Management Costs,Schools Catering,Kitchen Supplies - Food and Beverages,11/12/2017,3981176,339.16,Thomas Ridley & Son Ltd
Childrens Services,Children's Social Care,Support Service and Management Costs,Schools Catering,Kitchen Supplies - Food and Beverages,11/12/2017,3981178,"1,259.18",Thomas Ridley & Son Ltd
Childrens Services,Children's Social Care,Support Service and Management Costs,Schools Catering,Kitchen Supplies - Food and Beverages,11/12/2017,3981179,357.00,Thomas Ridley & Son Ltd
Childrens Services,Children's Social Care,Support Service and Management Costs,Schools Catering,Kitchen Supplies - Food and Beverages,11/12/2017,3981181,253.39,Thomas Ridley & Son Ltd
Childrens Services,Children's Social Care,Support Service and Management Costs,Schools Catering,Kitchen Supplies - Food and Beverages,11/12/2017,3981182,"1,177.29",Thomas Ridley & Son Ltd
Childrens Services,Children's Social Care,Support Service and Management Costs,Schools Catering,Kitchen Supplies - Food and Beverages,11/12/2017,3981184,"1,028.64",Thomas Ridley & Son Ltd
Childrens Services,Children's Social Care,Support Service and Management Costs,Schools Catering,Kitchen Supplies - Food and Beverages,11/12/2017,3981189,413.88,Thomas Ridley & Son Ltd
Childrens Services,Children's Social Care,Support Service and Management Costs,Schools Catering,Kitchen Supplies - Food and Beverages,11/12/2017,3981190,"1,056.36",Thomas Ridley & Son Ltd
Childrens Services,Education Services,Other Strategic Functions,Alternative Provision,Third Party Payments - Payments to Schools,11/12/2017,3981396,"3,000.00",LBTH SWANLEA SCHOOL
Childrens Services,Cultural and Related Services,Open Spaces,Victoria Park,Water Services - Metered,11/12/2017,3981448,"3,151.86",CASTLE WATER
Childrens Services,Children's Social Care,Support Service and Management Costs,Schools Catering,Kitchen Supplies - Food and Beverages,11/12/2017,3981501,275.89,Thomas Ridley & Son Ltd
Childrens Services,Education Services,Other Strategic Functions,High Needs FE Colleges,Third Party Payments - Payments to Schools,13/12/2017,3843926,"-3,698.67",Epping Forest College
Childrens Services,Education Services,Other Strategic Functions,High Needs FE Colleges,Third Party Payments - Payments to Schools,13/12/2017,3878194,"2,810.38",Epping Forest College
Childrens Services,Children's Social Care,Children Looked After,S23 Fam Pl P&V-F/Care,Childrens Act Section 23 - Placement Fee,13/12/2017,3958393,"4,588.66",Welcome Foster Care
Childrens Services,Children's Social Care,Service Strategy,89 CA Sec 17 Chld in Need BOW,Non Staff Transport Costs - Reimbursement,13/12/2017,3961285,400.00,Mile End Car Hire Limited
Childrens Services,No Service Specified,No Division Specified,Capital-Minor Works (SC),Other Internal Fees - Other Internal Fees,13/12/2017,3969481,"1,470.00",Arcus Consulting LLP
Childrens Services,Children's Social Care,Children Looked After,Leaving Care-UASC,Leaving Care Financial Assistance - Reg Plan Maint L-Allow,13/12/2017,3969503,"1,298.57",Pangea Support Services
Childrens Services,Children's Social Care,Children Looked After,Leaving Care-UASC,Leaving Care Financial Assistance - Supp Accom/Hous Rents,13/12/2017,3969507,"1,050.00",Pangea Support Services
Childrens Services,Children's Social Care,Children Looked After,Leaving Care-UASC,Leaving Care Financial Assistance - Supp Accom/Hous Rents,13/12/2017,3969509,"1,050.00",Pangea Support Services
Childrens Services,Children's Social Care,Children Looked After,Leaving Care-UASC,Leaving Care Financial Assistance - Supp Accom/Hous Rents,13/12/2017,3969511,"1,050.00",Pangea Support Services
Childrens Services,Children's Social Care,Support Service and Management Costs,"Mulberry Caf�		",Kitchen Supplies - Food and Beverages,13/12/2017,3970375,378.22,Thomas Ridley & Son Ltd
Childrens Services,Children's Social Care,Support Service and Management Costs,Sch. Meals A/c - Central Production Unit,Kitchen Supplies - Food and Beverages,13/12/2017,3970376,"1,103.96",Thomas Ridley & Son Ltd
Childrens Services,Children's Social Care,Support Service and Management Costs,Schools Catering,Kitchen Supplies - Food and Beverages,13/12/2017,3970474,750.07,Thomas Ridley & Son Ltd
Childrens Services,Children's Social Care,Support Service and Management Costs,Schools Catering,Kitchen Supplies - Food and Beverages,13/12/2017,3970478,290.57,Thomas Ridley & Son Ltd
Childrens Services,Children's Social Care,Support Service and Management Costs,Schools Catering,Kitchen Supplies - Food and Beverages,13/12/2017,3970482,664.04,Thomas Ridley & Son Ltd
Childrens Services,Children's Social Care,Support Service and Management Costs,Schools Catering,Kitchen Supplies - Food and Beverages,13/12/2017,3970489,575.01,Thomas Ridley & Son Ltd
Childrens Services,Children's Social Care,Support Service and Management Costs,Schools Catering,Kitchen Supplies - Food and Beverages,13/12/2017,3970491,352.26,Thomas Ridley & Son Ltd
Childrens Services,Children's Social Care,Support Service and Management Costs,Schools Catering,Kitchen Supplies - Food and Beverages,13/12/2017,3970492,474.03,Thomas Ridley & Son Ltd
Childrens Services,Children's Social Care,Support Service and Management Costs,Schools Catering,Kitchen Supplies - Food and Beverages,13/12/2017,3970498,379.93,Thomas Ridley & Son Ltd
Childrens Services,Children's Social Care,Support Service and Management Costs,Schools Catering,Kitchen Supplies - Food and Beverages,13/12/2017,3970499,397.54,Thomas Ridley & Son Ltd
Childrens Services,Children's Social Care,Support Service and Management Costs,Schools Catering,Kitchen Supplies - Food and Beverages,13/12/2017,3970501,767.04,Thomas Ridley & Son Ltd
Childrens Services,Children's Social Care,Support Service and Management Costs,Schools Catering,Kitchen Supplies - Food and Beverages,13/12/2017,3970502,400.18,Thomas Ridley & Son Ltd
Childrens Services,Children's Social Care,Support Service and Management Costs,Schools Catering,Kitchen Supplies - Food and Beverages,13/12/2017,3970504,645.71,Thomas Ridley & Son Ltd
Childrens Services,Children's Social Care,Support Service and Management Costs,Schools Catering,Kitchen Supplies - Food and Beverages,13/12/2017,3970506,338.92,Thomas Ridley & Son Ltd
Childrens Services,Children's Social Care,Support Service and Management Costs,Schools Catering,Kitchen Supplies - Food and Beverages,13/12/2017,3970507,528.01,Thomas Ridley & Son Ltd
Childrens Services,Children's Social Care,Support Service and Management Costs,Schools Catering,Kitchen Supplies - Food and Beverages,13/12/2017,3970509,858.31,Thomas Ridley & Son Ltd
Childrens Services,Children's Social Care,Support Service and Management Costs,Schools Catering,Kitchen Supplies - Food and Beverages,13/12/2017,3970512,563.32,Thomas Ridley & Son Ltd
Childrens Services,Children's Social Care,Support Service and Management Costs,Schools Catering,Kitchen Supplies - Food and Beverages,13/12/2017,3970513,864.07,Thomas Ridley & Son Ltd
Childrens Services,Children's Social Care,Support Service and Management Costs,Schools Catering,Kitchen Supplies - Food and Beverages,13/12/2017,3970515,321.44,Thomas Ridley & Son Ltd
Childrens Services,Children's Social Care,Support Service and Management Costs,Schools Catering,Kitchen Supplies - Food and Beverages,13/12/2017,3970518,250.76,Thomas Ridley & Son Ltd
Childrens Services,Children's Social Care,Support Service and Management Costs,Schools Catering,Kitchen Supplies - Food and Beverages,13/12/2017,3970524,299.44,Thomas Ridley & Son Ltd
Childrens Services,Children's Social Care,Support Service and Management Costs,Schools Catering,Kitchen Supplies - Food and Beverages,13/12/2017,3970525,709.82,Thomas Ridley & Son Ltd
Childrens Services,Children's Social Care,Support Service and Management Costs,Schools Catering,Kitchen Supplies - Food and Beverages,13/12/2017,3970528,555.40,Thomas Ridley & Son Ltd
Childrens Services,Children's Social Care,Support Service and Management Costs,Schools Catering,Kitchen Supplies - Food and Beverages,13/12/2017,3970531,"1,135.70",Thomas Ridley & Son Ltd
Childrens Services,Children's Social Care,Support Service and Management Costs,Schools Catering,Kitchen Supplies - Food and Beverages,13/12/2017,3970535,263.33,Thomas Ridley & Son Ltd
Childrens Services,Children's Social Care,Support Service and Management Costs,Schools Catering,Kitchen Supplies - Food and Beverages,13/12/2017,3970536,397.62,Thomas Ridley & Son Ltd
Childrens Services,Children's Social Care,Support Service and Management Costs,Schools Catering,Kitchen Supplies - Food and Beverages,13/12/2017,3970546,518.52,Thomas Ridley & Son Ltd
Childrens Services,Education Services,Early Years,Around Poplar CC,Stationery,13/12/2017,3971328,399.71,Office Depot (Catalogue)
Childrens Services,Education Services,Other Strategic Functions,Special Education Needs DSG,Third Party Payments - Payments to Schools,13/12/2017,3971346,"3,931.56",Woodcroft School Ltd
Childrens Services,Children's Social Care,Children Looked After,S23 Fam Pl P&V-F/Care,Childrens Act Section 23 - Placement Fee,13/12/2017,3971350,"4,050.00",St Christopher's Fellowship
Childrens Services,Education Services,Other Strategic Functions,High Needs FE Colleges,Third Party Payments - Payments to Schools,13/12/2017,3971355,"8,923.20",Epping Forest College
Childrens Services,Children's Social Care,Support Service and Management Costs,Welfare Catering,Kitchen Supplies - Food and Beverages,13/12/2017,3971363,801.06,Thomas Ridley & Son Ltd
Childrens Services,Children's Social Care,Support Service and Management Costs,Sch. Meals A/c - Central Production Unit,Kitchen Supplies - Food and Beverages,13/12/2017,3971364,792.88,Thomas Ridley & Son Ltd
Childrens Services,Children's Social Care,Service Strategy,89 CA Sec 17 Chld in Need BOW,Services - Professional Fees - Translation Fees,13/12/2017,3971406,"1,683.00",Oncall Interpreters LTD
Childrens Services,Children's Social Care,Children Looked After,S23 Family Placements P&V,Childrens Act Section 23 - Placement Fee,13/12/2017,3971430,"3,251.10",Safehouses
Childrens Services,Education Services,Other Strategic Functions,High Needs Other Boroughs,Third Party Payments - Payments to Schools,13/12/2017,3971440,"5,000.00",Stormont House School
Childrens Services,Education Services,Other Strategic Functions,High Needs Other Boroughs,Third Party Payments - Payments to Schools,13/12/2017,3971441,"3,167.00",Stormont House School
Childrens Services,Children's Social Care,Support Service and Management Costs,Sch. Meals A/c - Central Production Unit,Kitchen Supplies - Food and Beverages,13/12/2017,3971453,285.48,Thomas Ridley & Son Ltd
Childrens Services,Children's Social Care,Support Service and Management Costs,Schools Catering,Kitchen Supplies - Food and Beverages,13/12/2017,3971488,364.22,Thomas Ridley & Son Ltd
Childrens Services,Children's Social Care,Support Service and Management Costs,Schools Catering,Kitchen Supplies - Food and Beverages,13/12/2017,3971499,370.59,Thomas Ridley & Son Ltd
Childrens Services,Children's Social Care,Children Looked After,S23-Resi-P&V/OLA-Child Home,Childrens Act Section 23 - Placement Fee,13/12/2017,3971500,"2,332.00",Horizon Residential Homes LTD
Childrens Services,Children's Social Care,Support Service and Management Costs,Schools Catering,Kitchen Supplies - Food and Beverages,13/12/2017,3971510,717.96,Thomas Ridley & Son Ltd
Childrens Services,Children's Social Care,Support Service and Management Costs,Schools Catering,Kitchen Supplies - Food and Beverages,13/12/2017,3971515,410.14,Thomas Ridley & Son Ltd
Childrens Services,Children's Social Care,Support Service and Management Costs,Schools Catering,Kitchen Supplies - Food and Beverages,13/12/2017,3971522,813.46,Thomas Ridley & Son Ltd
Childrens Services,Children's Social Care,Support Service and Management Costs,Schools Catering,Kitchen Supplies - Food and Beverages,13/12/2017,3971527,641.30,Thomas Ridley & Son Ltd
Childrens Services,Children's Social Care,Support Service and Management Costs,Schools Catering,Kitchen Supplies - Food and Beverages,13/12/2017,3971533,917.30,Thomas Ridley & Son Ltd
Childrens Services,Children's Social Care,Support Service and Management Costs,Schools Catering,Kitchen Supplies - Food and Beverages,13/12/2017,3971538,"1,244.17",Thomas Ridley & Son Ltd
Childrens Services,Children's Social Care,Support Service and Management Costs,Schools Catering,Kitchen Supplies - Food and Beverages,13/12/2017,3971543,817.52,Thomas Ridley & Son Ltd
Childrens Services,Children's Social Care,Support Service and Management Costs,Schools Catering,Kitchen Supplies - Food and Beverages,13/12/2017,3971545,508.75,Thomas Ridley & Son Ltd
Childrens Services,Children's Social Care,Support Service and Management Costs,Schools Catering,Kitchen Supplies - Food and Beverages,13/12/2017,3971554,743.60,Thomas Ridley & Son Ltd
Childrens Services,Children's Social Care,Support Service and Management Costs,Schools Catering,Kitchen Supplies - Food and Beverages,13/12/2017,3971560,451.73,Thomas Ridley & Son Ltd
Childrens Services,Children's Social Care,Support Service and Management Costs,Schools Catering,Kitchen Supplies - Food and Beverages,13/12/2017,3971565,286.35,Thomas Ridley & Son Ltd
Childrens Services,Children's Social Care,Support Service and Management Costs,Childrens Services IT Trading,Services - Professional Fees - Consultants Fees,13/12/2017,3971686,"12,380.00",Agilisys Professional Services
Childrens Services,Children's Social Care,Support Service and Management Costs,Childrens Services IT Trading,Services - Professional Fees - Consultants Fees,13/12/2017,3971687,"9,384.00",Agilisys Professional Services
Childrens Services,Children's Social Care,Children Looked After,Virtual School PPG,Agency Staff - Associations,13/12/2017,3972157,"1,150.75",Academics ltd
Childrens Services,Children's Social Care,Children Looked After,Virtual School PPG,Agency Staff - Associations,13/12/2017,3972158,920.60,Academics ltd
Childrens Services,Children's Social Care,Children Looked After,Virtual School PPG,Agency Staff - Associations,13/12/2017,3972159,"1,150.75",Academics ltd
Childrens Services,Children's Social Care,Children Looked After,Virtual School PPG,Agency Staff - Associations,13/12/2017,3972160,"1,150.75",Academics ltd
Childrens Services,Children's Social Care,Children Looked After,Virtual School PPG,Agency Staff - Associations,13/12/2017,3972161,690.45,Academics ltd
Childrens Services,Children's Social Care,Children Looked After,Virtual School PPG,Agency Staff - Associations,13/12/2017,3972162,"1,150.75",Academics ltd
Childrens Services,Education Services,Other Strategic Functions,Auxilary Aids,Educational/Training Supplies - Resources,13/12/2017,3972184,273.19,Connevans Limited
Childrens Services,Children's Social Care,Support Service and Management Costs,Sch. Meals A/c - Central Production Unit,Kitchen Supplies - Food and Beverages,13/12/2017,3972222,565.00,William White Meats Ltd
Childrens Services,Children's Social Care,Support Service and Management Costs,Welfare Catering,Kitchen Supplies - Food and Beverages,13/12/2017,3972238,386.04,William White Meats Ltd
Childrens Services,Children's Social Care,Support Service and Management Costs,Schools Catering,Kitchen Supplies - Food and Beverages,13/12/2017,3972410,539.60,William White Meats Ltd
Childrens Services,Children's Social Care,Support Service and Management Costs,Schools Catering,Kitchen Supplies - Food and Beverages,13/12/2017,3972428,275.24,William White Meats Ltd
Childrens Services,Children's Social Care,Support Service and Management Costs,Schools Catering,Kitchen Supplies - Food and Beverages,13/12/2017,3972440,354.26,William White Meats Ltd
Childrens Services,Children's Social Care,Children Looked After,S23-Resi-P&V/OLA-Sec Acc-Wel,Third Party Payments - Day Care,13/12/2017,3972455,"12,312.90",Rossie Secure Accommodation Services
Childrens Services,Children's Social Care,Children Looked After,S23-Resi-P&V/OLA-Sec Acc-Wel,Childrens Act Section 23 - Placement Fee,13/12/2017,3972455,"12,312.90",Rossie Secure Accommodation Services
Childrens Services,Cultural and Related Services,Culture & Heritage,Arts-Park Events,Events & Exhibition Supplies,13/12/2017,3972505,500.00,ENTERTEE HIRE SERVICES LTD
Childrens Services,Cultural and Related Services,Culture & Heritage,Arts-Park Events,Events & Exhibition Supplies,13/12/2017,3972506,"1,632.00",M & J Engineers
Childrens Services,Cultural and Related Services,Culture & Heritage,Arts-Park Events,Events & Exhibition Supplies,13/12/2017,3972507,626.00,M & J Engineers
Childrens Services,Children's Social Care,Support Service and Management Costs,Sch. Meals A/c - St. Paul's Way Comm. Trust,Tools and Equipment - Purchase,13/12/2017,3972574,820.00,Hobart UK
Childrens Services,Children's Social Care,Support Service and Management Costs,Sch. Meals A/c - Marner,Tools and Equipment - Purchase,13/12/2017,3972575,820.00,Hobart UK
Childrens Services,Education Services,Other Strategic Functions,Music Trading Account,Events & Exhibition Supplies,13/12/2017,3973689,"2,000.00",Redacted Section 40 FOI Act
Childrens Services,Cultural and Related Services,Culture & Heritage,Arts-Park Events,Events & Exhibition Supplies,13/12/2017,3973749,"1,825.50",Community Link Trading Ltd
Childrens Services,Children's Social Care,Children Looked After,S23-Resi-P&V/OLA-Child Home,Childrens Act Section 23 - Placement Fee,13/12/2017,3974526,"17,748.21",Castle Homes Care Ltd
Childrens Services,Children's Social Care,Children Looked After,S23-Resi-P&V/OLA-Child Home,Childrens Act Section 23 - Placement Fee,13/12/2017,3974527,"17,131.50",Castle Homes Care Ltd
Childrens Services,Education Services,Other Strategic Functions,Special Education Needs DSG,Third Party Payments - Payments to Schools,13/12/2017,3974738,720.00,Supply Desk Ltd
Childrens Services,Children's Social Care,Children Looked After,Leaving Care-UASC,Leaving Care Financial Assistance - Supp Accom/Hous Rents,13/12/2017,3977101,"1,085.00",Pangea Support Services
Childrens Services,No Service Specified,No Division Specified,Capital-Minor Works (SC),Building Works - Main Works,13/12/2017,3977965,"139,570.13",Tower Hamlets Schools LTD
Childrens Services,Education Services,Early Years,Ocean CC,Educational/Training Supplies - Arts & Crafts,13/12/2017,3977985,849.84,Rahmqvist UK LTD
Childrens Services,Children's Social Care,Commissioning and Social Work,Family Support and Protection Team 9,Social Care - Day Care,13/12/2017,3978040,560.00,UK Room (London) Ltd
Childrens Services,Children's Social Care,Children Looked After,Leaving Care-UASC,Leaving Care Financial Assistance - Supp Accom/Hous Rents,13/12/2017,3978349,"1,050.00",Pangea Support Services
Childrens Services,Education Services,Other Strategic Functions,Music Trading Account,Meeting Expenses,13/12/2017,3978407,450.00,Osmani Trust
Childrens Services,Children's Social Care,Service Strategy,89 CA Sec 17 Chld in Need POPS,Childrens Act Section 17 - Expert Assessmt/Witness Costs,13/12/2017,3978584,"3,730.30",Communica Ltd
Childrens Services,Children's Social Care,Support Service and Management Costs,"Mulberry Caf�		",Kitchen Supplies - Catering Equipment,13/12/2017,3978944,288.99,W V Howe LTD
Childrens Services,Children's Social Care,Service Strategy,89 CA Sec 17 Chld in Need WAPP,Non Staff Transport Costs - Reimbursement,13/12/2017,3979008,280.00,Mile End Car Hire Limited
Childrens Services,Children's Social Care,Service Strategy,89 CA Sec 17 Chld in Need WAPP,Non Staff Transport Costs - Reimbursement,13/12/2017,3979045,770.00,Mile End Car Hire Limited
Childrens Services,Children's Social Care,Services for young people,Positive Activities Young Pple,Educational/Training Supplies - Resources,13/12/2017,3979862,558.33,Genesis Cinema
Childrens Services,Children's Social Care,Service Strategy,CSC Childrens Resources M & A,Social Care - Drugs/Alcohol Dual Dia,13/12/2017,3980037,795.00,Talking Life
Childrens Services,Children's Social Care,Support Service and Management Costs,Schools Catering,Kitchen Supplies - Food and Beverages,13/12/2017,3981192,"1,021.72",Thomas Ridley & Son Ltd
Childrens Services,Education Services,Other Strategic Functions,Schools Library,Printing - External,13/12/2017,3981277,687.98,Bertram Library Services
Childrens Services,Children's Social Care,Support Service and Management Costs,Schools Catering,Kitchen Supplies - Food and Beverages,13/12/2017,3981432,285.84,Thomas Ridley & Son Ltd
Childrens Services,Children's Social Care,Support Service and Management Costs,Schools Catering,Kitchen Supplies - Food and Beverages,13/12/2017,3981439,686.75,Thomas Ridley & Son Ltd
Childrens Services,Children's Social Care,Support Service and Management Costs,Schools Catering,Kitchen Supplies - Food and Beverages,13/12/2017,3981452,356.36,Thomas Ridley & Son Ltd
Childrens Services,Children's Social Care,Support Service and Management Costs,Schools Catering,Kitchen Supplies - Food and Beverages,13/12/2017,3981463,278.90,Thomas Ridley & Son Ltd
Childrens Services,Children's Social Care,Support Service and Management Costs,Schools Catering,Kitchen Supplies - Food and Beverages,13/12/2017,3981471,304.09,Thomas Ridley & Son Ltd
Childrens Services,Children's Social Care,Support Service and Management Costs,Schools Catering,Kitchen Supplies - Food and Beverages,13/12/2017,3981477,428.59,Thomas Ridley & Son Ltd
Childrens Services,Children's Social Care,Support Service and Management Costs,Schools Catering,Kitchen Supplies - Food and Beverages,13/12/2017,3981483,"1,124.90",Thomas Ridley & Son Ltd
Childrens Services,Children's Social Care,Support Service and Management Costs,Schools Catering,Kitchen Supplies - Food and Beverages,13/12/2017,3981484,507.71,Thomas Ridley & Son Ltd
Childrens Services,Children's Social Care,Support Service and Management Costs,Schools Catering,Kitchen Supplies - Food and Beverages,13/12/2017,3981486,766.92,Thomas Ridley & Son Ltd
Childrens Services,Children's Social Care,Support Service and Management Costs,Schools Catering,Kitchen Supplies - Food and Beverages,13/12/2017,3981487,369.06,Thomas Ridley & Son Ltd
Childrens Services,Children's Social Care,Support Service and Management Costs,Schools Catering,Kitchen Supplies - Food and Beverages,13/12/2017,3981489,"1,279.48",Thomas Ridley & Son Ltd
Childrens Services,Children's Social Care,Support Service and Management Costs,Schools Catering,Kitchen Supplies - Food and Beverages,13/12/2017,3981491,255.85,Thomas Ridley & Son Ltd
Childrens Services,Children's Social Care,Support Service and Management Costs,Schools Catering,Kitchen Supplies - Food and Beverages,13/12/2017,3981493,562.88,Thomas Ridley & Son Ltd
Childrens Services,Children's Social Care,Support Service and Management Costs,Schools Catering,Kitchen Supplies - Food and Beverages,13/12/2017,3981494,346.71,Thomas Ridley & Son Ltd
Childrens Services,Children's Social Care,Support Service and Management Costs,Schools Catering,Kitchen Supplies - Food and Beverages,13/12/2017,3981495,513.30,Thomas Ridley & Son Ltd
Childrens Services,Children's Social Care,Support Service and Management Costs,Schools Catering,Kitchen Supplies - Food and Beverages,13/12/2017,3981497,445.07,Thomas Ridley & Son Ltd
Childrens Services,Children's Social Care,Support Service and Management Costs,Schools Catering,Kitchen Supplies - Food and Beverages,13/12/2017,3981498,823.63,Thomas Ridley & Son Ltd
Childrens Services,Children's Social Care,Support Service and Management Costs,Schools Catering,Kitchen Supplies - Food and Beverages,13/12/2017,3981500,689.64,Thomas Ridley & Son Ltd
Childrens Services,Children's Social Care,Support Service and Management Costs,Schools Catering,Kitchen Supplies - Food and Beverages,13/12/2017,3981503,723.13,Thomas Ridley & Son Ltd
Childrens Services,Children's Social Care,Support Service and Management Costs,Schools Catering,Kitchen Supplies - Food and Beverages,13/12/2017,3981505,"1,183.92",Thomas Ridley & Son Ltd
Childrens Services,Children's Social Care,Support Service and Management Costs,Schools Catering,Kitchen Supplies - Food and Beverages,13/12/2017,3981510,440.06,Thomas Ridley & Son Ltd
Childrens Services,Children's Social Care,Support Service and Management Costs,Schools Catering,Kitchen Supplies - Food and Beverages,13/12/2017,3981512,657.49,Thomas Ridley & Son Ltd
Childrens Services,Children's Social Care,Support Service and Management Costs,Schools Catering,Kitchen Supplies - Food and Beverages,13/12/2017,3981514,785.80,Thomas Ridley & Son Ltd
Childrens Services,Children's Social Care,Support Service and Management Costs,Schools Catering,Kitchen Supplies - Food and Beverages,13/12/2017,3981517,407.04,Thomas Ridley & Son Ltd
Childrens Services,Children's Social Care,Support Service and Management Costs,Schools Catering,Kitchen Supplies - Food and Beverages,13/12/2017,3981518,453.32,Thomas Ridley & Son Ltd
Childrens Services,Children's Social Care,Support Service and Management Costs,Schools Catering,Kitchen Supplies - Food and Beverages,13/12/2017,3981519,533.12,Thomas Ridley & Son Ltd
Childrens Services,Children's Social Care,Support Service and Management Costs,Schools Catering,Kitchen Supplies - Food and Beverages,13/12/2017,3981526,416.83,Thomas Ridley & Son Ltd
Childrens Services,Children's Social Care,Support Service and Management Costs,Schools Catering,Kitchen Supplies - Food and Beverages,13/12/2017,3981530,483.87,Thomas Ridley & Son Ltd
Childrens Services,Children's Social Care,Support Service and Management Costs,Schools Catering,Kitchen Supplies - Food and Beverages,13/12/2017,3981533,331.58,Thomas Ridley & Son Ltd
Childrens Services,Children's Social Care,Support Service and Management Costs,Schools Catering,Kitchen Supplies - Food and Beverages,13/12/2017,3981535,301.76,Thomas Ridley & Son Ltd
Childrens Services,Children's Social Care,Support Service and Management Costs,Schools Catering,Kitchen Supplies - Food and Beverages,13/12/2017,3981537,569.49,Thomas Ridley & Son Ltd
Childrens Services,Children's Social Care,Support Service and Management Costs,Schools Catering,Kitchen Supplies - Food and Beverages,13/12/2017,3981539,647.68,Thomas Ridley & Son Ltd
Childrens Services,Children's Social Care,Support Service and Management Costs,Schools Catering,Kitchen Supplies - Food and Beverages,13/12/2017,3981540,429.23,Thomas Ridley & Son Ltd
Childrens Services,Children's Social Care,Support Service and Management Costs,Schools Catering,Kitchen Supplies - Food and Beverages,13/12/2017,3981545,777.61,Thomas Ridley & Son Ltd
Childrens Services,Children's Social Care,Support Service and Management Costs,Schools Catering,Kitchen Supplies - Food and Beverages,13/12/2017,3981549,515.28,Thomas Ridley & Son Ltd
Childrens Services,Children's Social Care,Support Service and Management Costs,Schools Catering,Kitchen Supplies - Food and Beverages,13/12/2017,3981555,290.45,Thomas Ridley & Son Ltd
Childrens Services,Children's Social Care,Support Service and Management Costs,Schools Catering,Kitchen Supplies - Food and Beverages,13/12/2017,3981559,984.55,Thomas Ridley & Son Ltd
Childrens Services,Children's Social Care,Support Service and Management Costs,Schools Catering,Kitchen Supplies - Food and Beverages,13/12/2017,3981562,358.45,Thomas Ridley & Son Ltd
Childrens Services,Children's Social Care,Support Service and Management Costs,Schools Catering,Kitchen Supplies - Food and Beverages,13/12/2017,3981563,279.74,Thomas Ridley & Son Ltd
Childrens Services,Children's Social Care,Support Service and Management Costs,Schools Catering,Kitchen Supplies - Food and Beverages,13/12/2017,3981564,273.39,Thomas Ridley & Son Ltd
Childrens Services,Children's Social Care,Support Service and Management Costs,Schools Catering,Kitchen Supplies - Food and Beverages,13/12/2017,3981565,457.75,Thomas Ridley & Son Ltd
Childrens Services,Children's Social Care,Support Service and Management Costs,Schools Catering,Kitchen Supplies - Food and Beverages,13/12/2017,3981566,306.78,Thomas Ridley & Son Ltd
Childrens Services,Children's Social Care,Support Service and Management Costs,Schools Catering,Kitchen Supplies - Food and Beverages,13/12/2017,3981567,422.77,Thomas Ridley & Son Ltd
Childrens Services,Children's Social Care,Support Service and Management Costs,Schools Catering,Kitchen Supplies - Food and Beverages,13/12/2017,3981568,377.05,Thomas Ridley & Son Ltd
Childrens Services,Children's Social Care,Support Service and Management Costs,Schools Catering,Kitchen Supplies - Food and Beverages,13/12/2017,3981570,414.48,Thomas Ridley & Son Ltd
Childrens Services,Children's Social Care,Support Service and Management Costs,Schools Catering,Kitchen Supplies - Food and Beverages,13/12/2017,3981573,391.12,Thomas Ridley & Son Ltd
Childrens Services,Children's Social Care,Support Service and Management Costs,Schools Catering,Kitchen Supplies - Food and Beverages,13/12/2017,3981574,953.34,Thomas Ridley & Son Ltd
Childrens Services,Children's Social Care,Support Service and Management Costs,Schools Catering,Kitchen Supplies - Food and Beverages,13/12/2017,3981576,440.37,Thomas Ridley & Son Ltd
Childrens Services,Children's Social Care,Support Service and Management Costs,Schools Catering,Kitchen Supplies - Food and Beverages,13/12/2017,3981579,486.47,Thomas Ridley & Son Ltd
Childrens Services,Children's Social Care,Support Service and Management Costs,Schools Catering,Kitchen Supplies - Food and Beverages,13/12/2017,3981673,767.08,Thomas Ridley & Son Ltd
Childrens Services,Children's Social Care,Children Looked After,S23 Fam Pl In-Hse-S/Term F/C,Childrens Act Section 23 - Commissioned Services,13/12/2017,3981677,"4,774.20",Healthcare South West Ltd
Childrens Services,Children's Social Care,Support Service and Management Costs,Schools Catering,Kitchen Supplies - Food and Beverages,13/12/2017,3981686,370.65,Thomas Ridley & Son Ltd
Childrens Services,Children's Social Care,Support Service and Management Costs,Schools Catering,Kitchen Supplies - Food and Beverages,13/12/2017,3981694,389.57,Thomas Ridley & Son Ltd
Childrens Services,Children's Social Care,Support Service and Management Costs,Schools Catering,Kitchen Supplies - Food and Beverages,13/12/2017,3981707,256.00,Thomas Ridley & Son Ltd
Childrens Services,Children's Social Care,Support Service and Management Costs,Schools Catering,Kitchen Supplies - Food and Beverages,13/12/2017,3981723,443.38,Thomas Ridley & Son Ltd
Childrens Services,Children's Social Care,Support Service and Management Costs,Schools Catering,Kitchen Supplies - Food and Beverages,13/12/2017,3981731,252.93,Thomas Ridley & Son Ltd
Childrens Services,Children's Social Care,Support Service and Management Costs,Schools Catering,Kitchen Supplies - Food and Beverages,13/12/2017,3981738,872.39,Thomas Ridley & Son Ltd
Childrens Services,Children's Social Care,Support Service and Management Costs,Schools Catering,Kitchen Supplies - Food and Beverages,13/12/2017,3981742,883.59,Thomas Ridley & Son Ltd
Childrens Services,Children's Social Care,Support Service and Management Costs,Schools Catering,Kitchen Supplies - Food and Beverages,13/12/2017,3981746,635.72,Thomas Ridley & Son Ltd
Childrens Services,Children's Social Care,Support Service and Management Costs,Schools Catering,Kitchen Supplies - Food and Beverages,13/12/2017,3981752,551.85,Thomas Ridley & Son Ltd
Childrens Services,Children's Social Care,Support Service and Management Costs,Schools Catering,Kitchen Supplies - Food and Beverages,13/12/2017,3981754,792.01,Thomas Ridley & Son Ltd
Childrens Services,Children's Social Care,Support Service and Management Costs,Schools Catering,Kitchen Supplies - Food and Beverages,13/12/2017,3981756,360.11,Thomas Ridley & Son Ltd
Childrens Services,Children's Social Care,Support Service and Management Costs,Schools Catering,Kitchen Supplies - Food and Beverages,13/12/2017,3981761,521.35,Thomas Ridley & Son Ltd
Childrens Services,Children's Social Care,Support Service and Management Costs,Schools Catering,Kitchen Supplies - Food and Beverages,13/12/2017,3981764,"1,130.40",Thomas Ridley & Son Ltd
Childrens Services,Children's Social Care,Support Service and Management Costs,Schools Catering,Kitchen Supplies - Food and Beverages,13/12/2017,3981766,598.20,Thomas Ridley & Son Ltd
Childrens Services,Children's Social Care,Support Service and Management Costs,Schools Catering,Kitchen Supplies - Food and Beverages,13/12/2017,3981774,328.10,Thomas Ridley & Son Ltd
Childrens Services,Children's Social Care,Support Service and Management Costs,Schools Catering,Kitchen Supplies - Food and Beverages,13/12/2017,3981778,332.91,Thomas Ridley & Son Ltd
Childrens Services,Adult Social Care,Support Service and Management Costs,Org Development L&D Training,Training Expenses - Staff External Training (UK Based),13/12/2017,3982188,650.00,Mental Health Trainers & Associates
Childrens Services,Education Services,Other Strategic Functions,SEN External Travel,Non Staff Transport Costs - Reimbursement,13/12/2017,3982221,"4,840.00",IHS Corporation Ltd
Childrens Services,Children's Social Care,Support Service and Management Costs,Schools Catering,Kitchen Supplies - Food and Beverages,15/12/2017,3901605,252.93,Thomas Ridley & Son Ltd
Childrens Services,Education Services,Early Years,Ocean CC,Community Equipment  Supplies - Non Store Items,15/12/2017,3968559,390.96,ESPO
Childrens Services,Children's Social Care,Children Looked After,Leaving Care-UASC,Leaving Care Financial Assistance - Supp Accom/Hous Rents,15/12/2017,3969497,"1,050.00",Pangea Support Services
Childrens Services,Children's Social Care,Children Looked After,Leaving Care-UASC,Leaving Care Financial Assistance - Supp Accom/Hous Rents,15/12/2017,3969499,"1,050.00",Pangea Support Services
Childrens Services,Children's Social Care,Children Looked After,Leaving Care-UASC,Leaving Care Financial Assistance - Supp Accom/Hous Rents,15/12/2017,3969506,"1,050.00",Pangea Support Services
Childrens Services,Children's Social Care,Children Looked After,Leaving Care-UASC,Leaving Care Financial Assistance - Supp Accom/Hous Rents,15/12/2017,3969508,"1,050.00",Pangea Support Services
Childrens Services,Children's Social Care,Children Looked After,Leaving Care-UASC,Leaving Care Financial Assistance - Supp Accom/Hous Rents,15/12/2017,3969518,"1,050.00",Pangea Support Services
Childrens Services,Children's Social Care,Children Looked After,Leaving Care-UASC,Leaving Care Financial Assistance - Supp Accom/Hous Rents,15/12/2017,3969524,"1,050.00",Pangea Support Services
Childrens Services,Children's Social Care,Support Service and Management Costs,Schools Catering,Kitchen Supplies - Food and Beverages,15/12/2017,3970480,617.32,Thomas Ridley & Son Ltd
Childrens Services,Children's Social Care,Service Strategy,89 CA Sec 17 Chld in Need POPS,Childrens Act Section 17 - Spec Pymnts Legal,15/12/2017,3971549,791.80,Alere Toxicology PLC
Childrens Services,Children's Social Care,Children Looked After,S23-Resi-P&V/OLA-Child Home,Childrens Act Section 23 - Placement Fee,15/12/2017,3971692,"10,407.12",Care 2 Share 2
Childrens Services,Children's Social Care,Children Looked After,S23 Fam Pl P&V-F/Care,Childrens Act Section 23 - Placement Fee,15/12/2017,3971695,"5,766.72",Moments Fostering Ltd
Childrens Services,Children's Social Care,Support Service and Management Costs,"Mulberry Caf�		",Kitchen Supplies - Food and Beverages,15/12/2017,3971706,292.87,Thomas Ridley & Son Ltd
Childrens Services,Children's Social Care,Support Service and Management Costs,Sch. Meals A/c - Central Production Unit,Kitchen Supplies - Food and Beverages,15/12/2017,3971711,"1,094.76",Thomas Ridley & Son Ltd
Childrens Services,Children's Social Care,Support Service and Management Costs,Toby Lane Function,Kitchen Supplies - Food and Beverages,15/12/2017,3971712,305.48,Thomas Ridley & Son Ltd
Childrens Services,Children's Social Care,Support Service and Management Costs,"Mulberry Caf�		",Kitchen Supplies - Food and Beverages,15/12/2017,3971756,397.21,Thomas Ridley & Son Ltd
Childrens Services,Children's Social Care,Support Service and Management Costs,Schools Catering,Kitchen Supplies - Food and Beverages,15/12/2017,3971767,524.54,Thomas Ridley & Son Ltd
Childrens Services,Children's Social Care,Support Service and Management Costs,Schools Catering,Kitchen Supplies - Food and Beverages,15/12/2017,3971769,305.95,Thomas Ridley & Son Ltd
Childrens Services,Children's Social Care,Support Service and Management Costs,Schools Catering,Kitchen Supplies - Food and Beverages,15/12/2017,3971773,495.22,Thomas Ridley & Son Ltd
Childrens Services,Children's Social Care,Support Service and Management Costs,Schools Catering,Kitchen Supplies - Food and Beverages,15/12/2017,3971775,498.79,Thomas Ridley & Son Ltd
Childrens Services,Children's Social Care,Support Service and Management Costs,Schools Catering,Kitchen Supplies - Food and Beverages,15/12/2017,3971776,357.16,Thomas Ridley & Son Ltd
Childrens Services,Children's Social Care,Support Service and Management Costs,Schools Catering,Kitchen Supplies - Food and Beverages,15/12/2017,3971777,364.91,Thomas Ridley & Son Ltd
Childrens Services,Children's Social Care,Support Service and Management Costs,Schools Catering,Kitchen Supplies - Food and Beverages,15/12/2017,3971778,809.58,Thomas Ridley & Son Ltd
Childrens Services,Children's Social Care,Support Service and Management Costs,Schools Catering,Kitchen Supplies - Food and Beverages,15/12/2017,3971779,370.32,Thomas Ridley & Son Ltd
Childrens Services,Children's Social Care,Support Service and Management Costs,Schools Catering,Kitchen Supplies - Food and Beverages,15/12/2017,3971780,594.63,Thomas Ridley & Son Ltd
Childrens Services,Children's Social Care,Support Service and Management Costs,Schools Catering,Kitchen Supplies - Food and Beverages,15/12/2017,3971781,312.79,Thomas Ridley & Son Ltd
Childrens Services,Children's Social Care,Support Service and Management Costs,Schools Catering,Kitchen Supplies - Food and Beverages,15/12/2017,3971782,384.97,Thomas Ridley & Son Ltd
Childrens Services,Children's Social Care,Support Service and Management Costs,Schools Catering,Kitchen Supplies - Food and Beverages,15/12/2017,3971783,525.21,Thomas Ridley & Son Ltd
Childrens Services,Children's Social Care,Support Service and Management Costs,Schools Catering,Kitchen Supplies - Food and Beverages,15/12/2017,3971785,334.54,Thomas Ridley & Son Ltd
Childrens Services,Children's Social Care,Support Service and Management Costs,Schools Catering,Kitchen Supplies - Food and Beverages,15/12/2017,3971786,512.58,Thomas Ridley & Son Ltd
Childrens Services,Children's Social Care,Support Service and Management Costs,Schools Catering,Kitchen Supplies - Food and Beverages,15/12/2017,3971787,406.10,Thomas Ridley & Son Ltd
Childrens Services,Children's Social Care,Support Service and Management Costs,Schools Catering,Kitchen Supplies - Food and Beverages,15/12/2017,3971788,701.29,Thomas Ridley & Son Ltd
Childrens Services,Children's Social Care,Support Service and Management Costs,Schools Catering,Kitchen Supplies - Food and Beverages,15/12/2017,3971789,314.48,Thomas Ridley & Son Ltd
Childrens Services,Children's Social Care,Support Service and Management Costs,Schools Catering,Kitchen Supplies - Food and Beverages,15/12/2017,3971790,558.30,Thomas Ridley & Son Ltd
Childrens Services,Children's Social Care,Support Service and Management Costs,Schools Catering,Kitchen Supplies - Food and Beverages,15/12/2017,3971792,494.18,Thomas Ridley & Son Ltd
Childrens Services,Children's Social Care,Support Service and Management Costs,Schools Catering,Kitchen Supplies - Food and Beverages,15/12/2017,3971793,345.98,Thomas Ridley & Son Ltd
Childrens Services,Children's Social Care,Support Service and Management Costs,Schools Catering,Kitchen Supplies - Food and Beverages,15/12/2017,3971795,274.76,Thomas Ridley & Son Ltd
Childrens Services,Children's Social Care,Support Service and Management Costs,Schools Catering,Kitchen Supplies - Food and Beverages,15/12/2017,3971797,605.97,Thomas Ridley & Son Ltd
Childrens Services,Children's Social Care,Support Service and Management Costs,Schools Catering,Kitchen Supplies - Food and Beverages,15/12/2017,3971798,306.16,Thomas Ridley & Son Ltd
Childrens Services,Children's Social Care,Support Service and Management Costs,Schools Catering,Kitchen Supplies - Food and Beverages,15/12/2017,3971799,280.35,Thomas Ridley & Son Ltd
Childrens Services,Children's Social Care,Support Service and Management Costs,Schools Catering,Kitchen Supplies - Food and Beverages,15/12/2017,3971802,412.19,Thomas Ridley & Son Ltd
Childrens Services,Children's Social Care,Support Service and Management Costs,Schools Catering,Kitchen Supplies - Food and Beverages,15/12/2017,3971803,457.25,Thomas Ridley & Son Ltd
Childrens Services,Children's Social Care,Support Service and Management Costs,Schools Catering,Kitchen Supplies - Food and Beverages,15/12/2017,3971805,"1,192.11",Thomas Ridley & Son Ltd
Childrens Services,Children's Social Care,Support Service and Management Costs,Schools Catering,Kitchen Supplies - Food and Beverages,15/12/2017,3971806,745.32,Thomas Ridley & Son Ltd
Childrens Services,Children's Social Care,Support Service and Management Costs,Schools Catering,Kitchen Supplies - Food and Beverages,15/12/2017,3971807,773.28,Thomas Ridley & Son Ltd
Childrens Services,Children's Social Care,Support Service and Management Costs,Schools Catering,Kitchen Supplies - Food and Beverages,15/12/2017,3971808,638.89,Thomas Ridley & Son Ltd
Childrens Services,Children's Social Care,Support Service and Management Costs,Schools Catering,Kitchen Supplies - Food and Beverages,15/12/2017,3971809,298.08,Thomas Ridley & Son Ltd
Childrens Services,Children's Social Care,Support Service and Management Costs,Schools Catering,Kitchen Supplies - Food and Beverages,15/12/2017,3971811,315.18,Thomas Ridley & Son Ltd
Childrens Services,Children's Social Care,Support Service and Management Costs,Schools Catering,Kitchen Supplies - Food and Beverages,15/12/2017,3971812,571.30,Thomas Ridley & Son Ltd
Childrens Services,Children's Social Care,Support Service and Management Costs,Schools Catering,Kitchen Supplies - Food and Beverages,15/12/2017,3971813,428.77,Thomas Ridley & Son Ltd
Childrens Services,Children's Social Care,Support Service and Management Costs,Schools Catering,Kitchen Supplies - Food and Beverages,15/12/2017,3971815,470.23,Thomas Ridley & Son Ltd
Childrens Services,Children's Social Care,Support Service and Management Costs,Schools Catering,Kitchen Supplies - Food and Beverages,15/12/2017,3971816,343.04,Thomas Ridley & Son Ltd
Childrens Services,Children's Social Care,Support Service and Management Costs,Schools Catering,Kitchen Supplies - Food and Beverages,15/12/2017,3971817,306.21,Thomas Ridley & Son Ltd
Childrens Services,Children's Social Care,Support Service and Management Costs,Schools Catering,Kitchen Supplies - Food and Beverages,15/12/2017,3971818,441.10,Thomas Ridley & Son Ltd
Childrens Services,Children's Social Care,Support Service and Management Costs,Schools Catering,Kitchen Supplies - Food and Beverages,15/12/2017,3971820,351.40,Thomas Ridley & Son Ltd
Childrens Services,Children's Social Care,Support Service and Management Costs,Schools Catering,Kitchen Supplies - Food and Beverages,15/12/2017,3971821,555.69,Thomas Ridley & Son Ltd
Childrens Services,Children's Social Care,Support Service and Management Costs,Schools Catering,Kitchen Supplies - Food and Beverages,15/12/2017,3971822,367.50,Thomas Ridley & Son Ltd
Childrens Services,Children's Social Care,Support Service and Management Costs,Schools Catering,Kitchen Supplies - Food and Beverages,15/12/2017,3971823,816.79,Thomas Ridley & Son Ltd
Childrens Services,Children's Social Care,Support Service and Management Costs,Schools Catering,Kitchen Supplies - Food and Beverages,15/12/2017,3971824,491.65,Thomas Ridley & Son Ltd
Childrens Services,Children's Social Care,Support Service and Management Costs,Schools Catering,Kitchen Supplies - Food and Beverages,15/12/2017,3971826,268.76,Thomas Ridley & Son Ltd
Childrens Services,Children's Social Care,Support Service and Management Costs,Schools Catering,Kitchen Supplies - Food and Beverages,15/12/2017,3971827,956.69,Thomas Ridley & Son Ltd
Childrens Services,Children's Social Care,Support Service and Management Costs,Schools Catering,Kitchen Supplies - Food and Beverages,15/12/2017,3971828,430.84,Thomas Ridley & Son Ltd
Childrens Services,Children's Social Care,Support Service and Management Costs,Schools Catering,Kitchen Supplies - Food and Beverages,15/12/2017,3971830,912.82,Thomas Ridley & Son Ltd
Childrens Services,Children's Social Care,Support Service and Management Costs,Schools Catering,Kitchen Supplies - Food and Beverages,15/12/2017,3971831,356.73,Thomas Ridley & Son Ltd
Childrens Services,Children's Social Care,Support Service and Management Costs,Schools Catering,Kitchen Supplies - Food and Beverages,15/12/2017,3971848,383.98,Thomas Ridley & Son Ltd
Childrens Services,Children's Social Care,Support Service and Management Costs,Schools Catering,Kitchen Supplies - Food and Beverages,15/12/2017,3972078,915.14,Thomas Ridley & Son Ltd
Childrens Services,Children's Social Care,Support Service and Management Costs,Schools Catering,Kitchen Supplies - Food and Beverages,15/12/2017,3972079,432.68,Thomas Ridley & Son Ltd
Childrens Services,Children's Social Care,Support Service and Management Costs,Schools Catering,Kitchen Supplies - Food and Beverages,15/12/2017,3972080,478.70,Thomas Ridley & Son Ltd
Childrens Services,Children's Social Care,Support Service and Management Costs,Schools Catering,Kitchen Supplies - Food and Beverages,15/12/2017,3972082,270.09,Thomas Ridley & Son Ltd
Childrens Services,Children's Social Care,Support Service and Management Costs,Schools Catering,Kitchen Supplies - Food and Beverages,15/12/2017,3972084,632.20,Thomas Ridley & Son Ltd
Childrens Services,Children's Social Care,Support Service and Management Costs,Schools Catering,Kitchen Supplies - Food and Beverages,15/12/2017,3972085,326.64,Thomas Ridley & Son Ltd
Childrens Services,Education Services,Other Strategic Functions,High Needs Other Boroughs,Third Party Payments - Payments to Schools,15/12/2017,3972191,"13,144.80",The London Nautical School
Childrens Services,Children's Social Care,Support Service and Management Costs,Schools Catering,Kitchen Supplies - Food and Beverages,15/12/2017,3972220,274.50,William White Meats Ltd
Childrens Services,Children's Social Care,Support Service and Management Costs,Welfare Catering,Kitchen Supplies - Food and Beverages,15/12/2017,3972246,523.34,William White Meats Ltd
Childrens Services,Children's Social Care,Support Service and Management Costs,Schools Catering,Kitchen Supplies - Food and Beverages,15/12/2017,3972436,299.41,William White Meats Ltd
Childrens Services,Children's Social Care,Support Service and Management Costs,Schools Catering,Kitchen Supplies - Food and Beverages,15/12/2017,3972448,396.50,William White Meats Ltd
Childrens Services,Children's Social Care,Support Service and Management Costs,Schools Catering,Kitchen Supplies - Food and Beverages,15/12/2017,3972981,700.89,William White Meats Ltd
Childrens Services,Children's Social Care,Support Service and Management Costs,Schools Catering,Kitchen Supplies - Food and Beverages,15/12/2017,3972985,274.50,William White Meats Ltd
Childrens Services,Children's Social Care,Support Service and Management Costs,Schools Catering,Kitchen Supplies - Food and Beverages,15/12/2017,3972994,274.50,William White Meats Ltd
Childrens Services,Children's Social Care,Support Service and Management Costs,Schools Catering,Kitchen Supplies - Food and Beverages,15/12/2017,3972997,447.44,William White Meats Ltd
Childrens Services,Children's Social Care,Support Service and Management Costs,Schools Catering,Kitchen Supplies - Food and Beverages,15/12/2017,3973006,267.37,William White Meats Ltd
Childrens Services,Children's Social Care,Support Service and Management Costs,Schools Catering,Kitchen Supplies - Food and Beverages,15/12/2017,3973009,274.50,William White Meats Ltd
Childrens Services,Children's Social Care,Support Service and Management Costs,Schools Catering,Kitchen Supplies - Food and Beverages,15/12/2017,3973016,274.50,William White Meats Ltd
Childrens Services,Children's Social Care,Support Service and Management Costs,Schools Catering,Kitchen Supplies - Food and Beverages,15/12/2017,3973031,351.75,William White Meats Ltd
Childrens Services,Children's Social Care,Support Service and Management Costs,Schools Catering,Kitchen Supplies - Food and Beverages,15/12/2017,3973042,267.40,William White Meats Ltd
Childrens Services,Children's Social Care,Support Service and Management Costs,Schools Catering,Kitchen Supplies - Food and Beverages,15/12/2017,3973054,448.14,William White Meats Ltd
